Workbook

Sheet 2018 Pre-Draft Rosters
B1: Lightning (Mike Goodman) | F1: Evolution (Bruce) | J1: Miggy Pop (Colin) | N1: Woap (Mike) | R1: The Dominant Brand (Brandon) | V1: Guzzlers (Rhonda) | Z1: Moneyballers (Rob) | AD1: Booya's (Cathy) | AH1: Freebirds (Todd) | AL1: Numbats (Tom) | AP1: TheDunnShow (Dave)
B2: Pos. | C2: Player | D2: $ | E2: years | F2: Pos. | G2: Player | H2: $ | I2: years | J2: Pos. | K2: Player | L2: $ | M2: years | N2: Pos. | O2: Player | P2: $ | Q2: years | R2: Pos. | S2: Player | T2: $ | U2: years | V2: Pos. | W2: Player | X2: $ | Y2: years | Z2: Pos. | AA2: Player | AB2: $ | AC2: years | AD2: Pos. | AE2: Player | AF2: $ | AG2: years | AH2: Pos. | AI2: Player | AJ2: $ | AK2: years | AL2: Pos. | AM2: Player | AN2: $ | AO2: years | AP2: Pos. | AQ2: Player | AR2: $ | AS2: years
A3: =11-COUNT(D3,H3,L3,P3,T3,X3,AB3,AF3,AJ3,AN3,AR3) -> 7 | B3: C | C3: Gary Sánchez NYY - C | D3: 15 | E3: 2 | F3: C | G3: Mike Zunino Sea - C | H3: 6 | I3: 2 | J3: C | N3: C | R3: C | S3: Brian McCann Hou - C | T3: 11 | U3: 1 | V3: C | Z3: C | AA3: Welington Castillo CWS - C | AB3: 6 | AC3: 1 | AD3: C | AH3: C | AL3: C | AP3: C
A4: 6 | B4: 1B | F4: 1B | J4: 1B | K4: Yuli Gurriel Hou - 1B | L4: 10 | M4: 2 | N4: 1B | R4: 1B | V4: 1B | Z4: 1B | AA4: José Abreu CWS - 1B | AB4: 37 | AC4: 1 | AD4: 1B | AH4: 1B | AI4: Yonder Alonso Cle - 1B | AJ4: 5 | AK4: 1 | AL4: 1B | AM4: Greg Bird NYY - 1B | AN4: 5 | AO4: 1 | AP4: 1B | AQ4: Justin Smoak Tor - 1B | AR4: 5 | AS4: 1
A5: =11-COUNT(D5,H5,L5,P5,T5,X5,AB5,AF5,AJ5,AN5,AR5) -> 3 | B5: 2B | C5: Jose Altuve Hou - 2B | D5: 51 | E5: 1 | F5: 2B | G5: Rougned Odor Tex - 2B | H5: 15 | I5: 1 | J5: 2B | K5: Jonathan Schoop Bal - 2B | L5: 17 | M5: 2 | N5: 2B | O5: Robinson Canó Sea - 2B | P5: 26 | Q5: 1 | R5: 2B | V5: 2B | W5: Brian Dozier Min - 2B | X5: 8 | Y5: 1 | Z5: 2B | AD5: 2B | AE5: José Ramírez Cle - 2B,3B | AF5: 15 | AG5: 2 | AH5: 2B | AI5: Marwin González Hou - 1B,2B,3B,SS,OF | AJ5: 5 | AK5: 1 | AL5: 2B | AM5: Yoán Moncada CWS - 2B | AN5: 11 | AO5: 2 | AP5: 2B
A6: 4 | B6: 3B | C6: Ryon Healy Sea - 1B,3B | D6: 5 | E6: 1 | F6: 3B | G6: Joey Gallo Tex - 1B,3B,OF | H6: 10 | I6: 2 | J6: 3B | K6: Miguel Sanó Min - 1B,3B | L6: 15 | M6: 1 | N6: 3B | O6: Mike Moustakas KC - 3B | P6: 17 | Q6: 1 | R6: 3B | S6: Nicholas Castellanos Det - 3B,OF | T6: 23 | U6: 1 | V6: 3B | Z6: 3B | AD6: 3B | AH6: 3B | AI6: Matt Davidson CWS - 1B,3B | AJ6: 5 | AK6: 1 | AL6: 3B | AM6: Alex Bregman Hou - 3B,SS | AN6: 15 | AO6: 3 | AP6: 3B
A7: =11-COUNT(D7,H7,L7,P7,T7,X7,AB7,AF7,AJ7,#REF!,AR7) -> 4 | B7: SS | C7: Francisco Lindor Cle - SS | D7: 15 | E7: 1 | F7: SS | G7: Tim Anderson CWS - SS | H7: 10 | I7: 1 | J7: SS | K7: Marcus Semien Oak - SS | L7: 5 | M7: 1 | N7: SS | R7: SS | S7: Xander Bogaerts Bos - SS | T7: 35 | U7: 1 | V7: SS | W7: Tim Beckham Bal - 2B,SS | X7: 5 | Y7: 1 | Z7: SS | AD7: SS | AE7: Didi Gregorius NYY - SS | AF7: 6 | AG7: 2 | AH7: SS | AL7: SS | AP7: SS | AQ7: Carlos Correa Hou - SS | AR7: 15 | AS7: 1
A8: =11-COUNT(D8,H8,L8,P8,T8,X8,AB8,AF8,AJ8,AN8,AR8) -> 4 | B8: OF#1 | C8: Justin Upton LAA - OF | D8: 42 | E8: 1 | F8: OF#1 | J8: OF#1 | K8: Eduardo Núñez Bos - 2B,3B,SS,OF | L8: 5 | M8: 1 | N8: OF#1 | O8: Mike Trout LAA - OF | P8: 63 | Q8: 1 | R8: OF#1 | V8: OF#1 | W8: Mookie Betts Bos - OF | X8: 15 | Y8: 1 | Z8: OF#1 | AD8: OF#1 | AE8: Brett Gardner NYY - OF | AF8: 1 | AG8: 1 | AH8: OF#1 | AL8: OF#1 | AM8: Nomar Mazara Tex - OF | AN8: 10 | AO8: 1 | AP8: OF#1 | AQ8: Aaron Judge NYY - OF | AR8: 15 | AS8: 3
A9: 5 | B9: OF#2 | C9: Josh Reddick Hou - OF | D9: 1 | E9: 1 | F9: OF#2 | J9: OF#2 | K9: Mark Trumbo Bal - OF | L9: 10 | M9: 1 | N9: OF#2 | O9: Kevin Kiermaier TB - OF | P9: 2 | Q9: 1 | R9: OF#2 | V9: OF#2 | W9: Whit Merrifield KC - 2B,OF | X9: 10 | Y9: 2 | Z9: OF#2 | AD9: OF#2 | AE9: Mitch Haniger Sea - OF | AF9: 7 | AG9: 2 | AH9: OF#2 | AL9: OF#2 | AP9: OF#2 | AQ9: Delino DeShields Tex - OF | AR9: 5 | AS9: 1
A10: 6 | B10: OF#3 | F10: OF#3 | G10: Trey Mancini Bal - 1B,OF | H10: 5 | I10: 1 | J10: OF#3 | K10: Jackie Bradley Jr. Bos - OF | L10: 10 | M10: 1 | N10: OF#3 | O10: Andrew Benintendi Bos - OF | P10: 10 | Q10: 2 | R10: OF#3 | V10: OF#3 | Z10: OF#3 | AA10: Kevin Pillar Tor - OF | AB10: 15 | AC10: 1 | AD10: OF#3 | AH10: OF#3 | AI10: Byron Buxton Min - OF | AJ10: 21 | AK10: 3 | AL10: OF#3 | AP10: OF#3
A11: 10 | B11: DH | F11: DH | J11: DH | N11: DH | R11: DH | V11: DH | W11: Brad Miller TB - 2B | X11: 6 | Y11: 1 | Z11: DH | AD11: DH | AH11: DH | AL11: DH | AP11: DH
A12: =11-COUNT(D12,#REF!,L12,P12,T12,X12,AB12,AF12,#REF!,AN12,AR12) -> 5 | B12: SP#1 | C12: Dylan Bundy Bal - SP | D12: 10 | E12: 1 | F12: SP#1 | G12: Collin McHugh Hou - SP | H12: 6 | I12: 1 | J12: SP#1 | N12: SP#1 | O12: Michael Fulmer Det - SP | P12: 15 | Q12: 2 | R12: SP#1 | S12: Carlos Carrasco Cle - SP | T12: 37 | U12: 2 | V12: SP#1 | Z12: SP#1 | AD12: SP#1 | AE12: Trevor Bauer Cle - SP | AF12: 13 | AG12: 1 | AH12: SP#1 | AI12: Cole Hamels Tex - SP | AJ12: 10 | AK12: 1 | AL12: SP#1 | AM12: Charlie Morton Hou - SP | AN12: 5 | AO12: 1 | AP12: SP#1 | AQ12: Chris Sale Bos - SP | AR12: 52 | AS12: 2
A13: =11-COUNT(D13,#REF!,L13,P13,T13,X13,AB13,AF13,AJ13,AN13,AR13) -> 6 | B13: SP#2 | C13: James Paxton Sea - SP | D13: 26 | E13: 1 | F13: SP#2 | G13: Alex Cobb TB - SP | H13: 5 | I13: 1 | J13: SP#2 | N13: SP#2 | O13: Blake Snell TB - SP | P13: 10 | Q13: 2 | R13: SP#2 | S13: Kevin Gausman Bal - SP | T13: 24 | U13: 1 | V13: SP#2 | Z13: SP#2 | AD13: SP#2 | AH13: SP#2 | AL13: SP#2 | AM13: Sean Manaea Oak - SP | AN13: 10 | AO13: 1 | AP13: SP#2 | AQ13: Sonny Gray NYY - SP | AR13: 7 | AS13: 2
A14: =11-COUNT(D14,H16,L14,P14,T14,X14,AB14,AF14,AJ14,AN14,AR14) -> 8 | B14: SP#3 | C14: Jake Faria TB - SP | D14: 5 | E14: 1 | F14: SP#3 | G14: Danny Duffy KC - SP | H14: 10 | I14: 1 | J14: SP#3 | N14: SP#3 | R14: SP#3 | V14: SP#3 | W14: Dallas Keuchel Hou - SP | X14: 23 | Y14: 1 | Z14: SP#3 | AD14: SP#3 | AH14: SP#3 | AL14: SP#3 | AP14: SP#3
A15: =11-COUNT(D19,H13,L15,P15,T15,X15,AB15,AF15,AJ15,AN15,AR15) -> 6 | B15: SP#4 | F15: SP#4 | J15: SP#4 | K15: Jordan Montgomery NYY - SP | L15: 5 | M15: 1 | N15: SP#4 | R15: SP#4 | V15: SP#4 | W15: Justin Verlander Hou - SP | X15: 27 | Y15: 1 | Z15: SP#4 | AA15: Rick Porcello Bos - SP | AB15: 6 | AC15: 1 | AD15: SP#4 | AH15: SP#4 | AL15: SP#4 | AP15: SP#4
A16: =11-COUNT(D17,#REF!,L16,P16,T16,X16,AB16,AF16,AJ12,AN16,AR16) -> 4 | B16: SP#5 | F16: SP#5 | G16: José Berríos Min - SP | H16: 15 | I16: 3 | J16: SP#5 | K16: Carlos Rodón CWS - SP | L16: 11 | M16: 1 | N16: SP#5 | O16: J.A. Happ Tor - SP | P16: 6 | Q16: 1 | R16: SP#5 | S16: Ervin Santana Min - SP | T16: 10 | U16: 1 | V16: SP#5 | W16: CC Sabathia NYY - SP | X16: 1 | Y16: 1 | Z16: SP#5 | AA16: Aaron Sanchez Tor - SP | AB16: 15 | AC16: 1 | AD16: SP#5 | AH16: SP#5 | AL16: SP#5 | AP16: SP#5
A17: =11-COUNT(#REF!,H17,L17,P17,T17,X17,AB17,AF17,AJ17,AN17,AR17) -> 9 | B17: RP#1 | C17: Cam Bedrosian LAA - RP | D17: 10 | E17: 1 | F17: RP#1 | G17: Blake Parker LAA - RP | H17: 5 | I17: 1 | J17: RP#1 | N17: RP#1 | R17: RP#1 | V17: RP#1 | Z17: RP#1 | AD17: RP#1 | AH17: RP#1 | AL17: RP#1 | AP17: RP#1 | AQ17: Blake Treinen Oak - RP | AR17: 5 | AS17: 1
A18: 9 | B18: RP#2 | C18: Nate Jones CWS - RP | D18: 10 | E18: 1 | F18: RP#2 | J18: RP#2 | N18: RP#2 | R18: RP#2 | V18: RP#2 | Z18: RP#2 | AD18: RP#2 | AH18: RP#2 | AI18: Dellin Betances NYY - RP | AJ18: 20 | AK18: 1 | AL18: RP#2 | AP18: RP#2
A19: =11-COUNT(#REF!,H19,L19,P19,T19,X19,AB19,AF19,AJ19,AN19,AR19) -> 6 | B19: RP#3 | C19: Cody Allen Cle - RP | D19: 32 | E19: 1 | F19: RP#3 | J19: RP#3 | K19: Tony Zych Sea - RP | L19: 1 | M19: 1 | N19: RP#3 | R19: RP#3 | S19: Matt Bush Tex - RP | T19: 6 | U19: 1 | V19: RP#3 | Z19: RP#3 | AA19: Ryan Tepera Tor - RP | AB19: 5 | AC19: 1 | AD19: RP#3 | AE19: Aroldis Chapman NYY - RP | AF19: 53 | AG19: 2 | AH19: RP#3 | AI19: Chris Devenski Hou - RP | AJ19: 5 | AK19: 1 | AL19: RP#3 | AP19: RP#3
A20: =11-COUNT(#REF!,#REF!,L20,P20,T20,X20,AB20,AF20,AJ20,AN20,AR20) -> 5 | B20: RP#4 | C20: Álex Cláudio Tex - RP | D20: 5 | E20: 1 | F20: RP#4 | G20: Brad Peacock Hou - SP,RP | H20: 10 | I20: 2 | J20: RP#4 | K20: Edwin Díaz Sea - RP | L20: 15 | M20: 2 | N20: RP#4 | R20: RP#4 | S20: Alex Colomé TB - RP | T20: 14 | U20: 1 | V20: RP#4 | Z20: RP#4 | AA20: Kelvin Herrera KC - RP | AB20: 6 | AC20: 1 | AD20: RP#4 | AE20: Andrew Miller Cle - RP | AF20: 25 | AG20: 2 | AH20: RP#4 | AI20: Shane Greene Det - RP | AJ20: 5 | AK20: 1 | AL20: RP#4 | AM20: Mike Clevinger Cle - SP,RP | AN20: 5 | AO20: 1 | AP20: RP#4
C21: Current Used Points | D21: =SUM(D3:D20) -> 227 | G21: Current Used Points | H21: =SUM(H3:H20) -> 97 | K21: Current Used Points | L21: =SUM(L3:L20) -> 104 | O21: Current Used Points | P21: =SUM(P3:P20) -> 149 | S21: Current Used Points | T21: =SUM(T3:T20) -> 160 | W21: Current Used Points | X21: =SUM(X3:X20) -> 95 | AA21: Current Used Points | AB21: =SUM(AB3:AB20) -> 90 | AE21: Current Used Points | AF21: =SUM(AF3:AF20) -> 120 | AI21: Current Used Points | AJ21: =SUM(AJ3:AJ20) -> 76 | AM21: Current Used Points | AN21: =SUM(AN3:AN20) -> 61 | AQ21: Current Used Points | AR21: =SUM(AR3:AR20) -> 104
C22: Remaining Points | D22: =SUM(260-D21) -> 33 | G22: Remaining Points | H22: =SUM(260-H21) -> 163 | K22: Remaining Points | L22: =SUM(260-L21) -> 156 | O22: Remaining Points | P22: =SUM(260-P21) -> 111 | S22: Remaining Points | T22: =SUM(260-T21) -> 100 | W22: Remaining Points | X22: =SUM(260-X21) -> 165 | AA22: Remaining Points | AB22: =SUM(260-AB21) -> 170 | AE22: Remaining Points | AF22: =SUM(260-AF21) -> 140 | AI22: Remaining Points | AJ22: =SUM(260-AJ21) -> 184 | AM22: Remaining Points | AN22: =SUM(260-AN21) -> 199 | AQ22: Remaining Points | AR22: =SUM(260-AR21) -> 156
B23: Maximum Bidding Points | D23: =(D22-(18-COUNT(D3:D20))+(IF(COUNT(D3:D20)=18,0,1))) -> 29 | F23: Maximum Bidding Points | H23: =(H22-(18-COUNT(H3:H20))+(IF(COUNT(H3:H20)=18,0,1))) -> 157 | J23: Maximum Bidding Points | L23: =(L22-(18-COUNT(L3:L20))+(IF(COUNT(L3:L20)=18,0,1))) -> 150 | N23: Maximum Bidding Points | P23: =(P22-(18-COUNT(P3:P20))+(IF(COUNT(P3:P20)=18,0,1))) -> 102 | R23: Maximum Bidding Points | T23: =(T22-(18-COUNT(T3:T20))+(IF(COUNT(T3:T20)=18,0,1))) -> 91 | V23: Maximum Bidding Points | X23: =(X22-(18-COUNT(X3:X20))+(IF(COUNT(X3:X20)=18,0,1))) -> 156 | Z23: Maximum Bidding Points | AB23: =(AB22-(18-COUNT(AB3:AB20))+(IF(COUNT(AB3:AB20)=18,0,1))) -> 160 | AD23: Maximum Bidding Points | AF23: =(AF22-(18-COUNT(AF3:AF20))+(IF(COUNT(AF3:AF20)=18,0,1))) -> 130 | AH23: Maximum Bidding Points | AJ23: =(AJ22-(18-COUNT(AJ3:AJ20))+(IF(COUNT(AJ3:AJ20)=18,0,1))) -> 175 | AL23: Maximum Bidding Points | AN23: =(AN22-(18-COUNT(AN3:AN20))+(IF(COUNT(AN3:AN20)=18,0,1))) -> 189 | AP23: Maximum Bidding Points | AR23: =(AR22-(18-COUNT(AR3:AR20))+(IF(COUNT(AR3:AR20)=18,0,1))) -> 146
B24: Remaining # of Players to Draft | D24: =18-COUNT(D3:D20) -> 5 | F24: Remaining # of Players to Draft | H24: =18-COUNT(H3:H20) -> 7 | J24: Remaining # of Players to Draft | L24: =18-COUNT(L3:L20) -> 7 | N24: Remaining # of Players to Draft | P24: =18-COUNT(P3:P20) -> 10 | R24: Remaining # of Players to Draft | T24: =18-COUNT(T3:T20) -> 10 | V24: Remaining # of Players to Draft | X24: =18-COUNT(X3:X20) -> 10 | Z24: Remaining # of Players to Draft | AB24: =18-COUNT(AB3:AB20) -> 11 | AD24: Remaining # of Players to Draft | AF24: =18-COUNT(AF3:AF20) -> 11 | AH24: Remaining # of Players to Draft | AJ24: =18-COUNT(AJ3:AJ20) -> 10 | AL24: Remaining # of Players to Draft | AN24: =18-COUNT(AN3:AN20) -> 11 | AP24: Remaining # of Players to Draft | AR24: =18-COUNT(AR3:AR20) -> 11
C27: Matt Olson Oak - 1B,OF | D27: 5 | E27: r2018 | G27: Bradley Zimmer Cle - OF | H27: 5 | I27: r2018 | K27: Franklin Barreto Oak - 2B,SS | L27: 5 | M27: r2018 | O27: Rafael Devers Bos - 3B | P27: 5 | Q27: r2018 | AA27: AJ Reed Hou - 1B | AB27: 5 | AC27: r2018 | AE27: David Price Bos - SP,RP | AF27: 30 | AG27: r2018 | AI27: Michael Kopech CWS - SP | AJ27: 1 | AK27: r2018 | AM27: Jeimer Candelario Det - 3B | AN27: 5 | AO27: r2018 | AQ27: Willy Adames TB - SS | AR27: 5 | AS27: r2018
C28: Austin Hays Bal - OF | D28: 5 | E28: r2018 | G28: Lucas Giolito CWS - SP | H28: 5 | I28: r2018 | K28: Clint Frazier NYY - OF | L28: 5 | M28: r2018 | O28: Gleyber Torres NYY - SS | P28: 5 | Q28: r2018 | AI28: Carson Smith Bos - RP | AJ28: 5 | AK28: r2018 | AQ28: Marco Gonzales Sea - SP | AR28: 5 | AS28: r2018
C29: Dustin Fowler Oak - OF | D29: 5 | E29: r2018 | O29: Kyle Tucker Hou - OF | P29: 5 | Q29: r2018 | AI29: Addison Reed Min - RP | AJ29: 5 | AK29: r2018
C34: ="Draft Order = "&VLOOKUP("Lightning (Mike Goodman)",draft_order,2,FALSE) -> Draft Order = 11 | G34: ="Draft Order = "&VLOOKUP("Evolution (Bruce)",draft_order,2,FALSE) -> Draft Order = 4 | K34: ="Draft Order = "&VLOOKUP("Miggy Pop (Colin)",draft_order,2,FALSE) -> Draft Order = 7 | O34: ="Draft Order = "&VLOOKUP("Woap (Mike)",draft_order,2,FALSE) -> Draft Order = 6 | S34: ="Draft Order = "&VLOOKUP("The Dominant Brand (Brandon)",draft_order,2,FALSE) -> Draft Order = 5 | W34: ="Draft Order = "&VLOOKUP("Guzzlers (Rhonda)",draft_order,2,FALSE) -> Draft Order = 10 | AA34: ="Draft Order = "&VLOOKUP("Moneyballers (Rob)",draft_order,2,FALSE) -> Draft Order = 1 | AE34: ="Draft Order = "&VLOOKUP("Booya's (Cathy)",draft_order,2,FALSE) -> Draft Order = 2 | AI34: ="Draft Order = "&VLOOKUP("Freebirds (Todd)",draft_order,2,FALSE) -> Draft Order = 3 | AM34: ="Draft Order = "&VLOOKUP("Numbats (Tom)",draft_order,2,FALSE) -> Draft Order = 8 | AQ34: ="Draft Order = "&VLOOKUP("TheDunnShow (Dave)",draft_order,2,FALSE) -> Draft Order = 9

Sheet Draft List
A1: 113 | B1: Owner | C1: Player | D1: Bid | E1: Team/Position | F1: Rank | G1: AB/Innings | H1: R/Wins | I1: HR/Saves | J1: RBI/SO | K1: SB/ERA | L1: Avg./WHIP
A2: 1 | B2: Lightning (Mike Goodman) | C2: Gary Sánchez | D2: 15 | E2: NYY - C | F2: 26 | G2: 131/471 | H2: 79 | I2: 33 | J2: 90 | K2: 2 | L2: .278
A3: 2 | B3: Lightning (Mike Goodman) | C3: José Altuve | D3: 51 | E3: Hou - 2B | F3: 2 | G3: 204/590 | H3: 112 | I3: 24 | J3: 81 | K3: 32 | L3: .346
A4: 3 | B4: Lightning (Mike Goodman) | C4: Ryon Healy | D4: 5 | E4: Sea - 1B,3B | F4: 309 | G4: 156/576 | H4: 66 | I4: 25 | J4: 78 | K4: 0 | L4: .271
A5: 4 | B5: Lightning (Mike Goodman) | C5: Francisco Lindor | D5: 15 | E5: Cle - SS | F5: 20 | G5: 178/651 | H5: 99 | I5: 33 | J5: 89 | K5: 15 | L5: .273
A6: 5 | B6: Lightning (Mike Goodman) | C6: Justin Upton | D6: 42 | E6: LAA - OF | F6: 38 | G6: 152/557 | H6: 100 | I6: 35 | J6: 109 | K6: 14 | L6: .273
A7: 6 | B7: Lightning (Mike Goodman) | C7: Josh Reddick | D7: 1 | E7: Hou - OF | F7: 205 | G7: 150/477 | H7: 77 | I7: 13 | J7: 82 | K7: 7 | L7: .314
A8: 7 | B8: Lightning (Mike Goodman) | C8: Dylan Bundy | D8: 10 | E8: Bal - SP | F8: 194 | G8: 169.2 | H8: 13 | I8: 0 | J8: 152 | K8: 4.24 | L8: 1.20
A9: 8 | B9: Lightning (Mike Goodman) | C9: James Paxton | D9: 26 | E9: Sea - SP | F9: 75 | G9: 136.0 | H9: 12 | I9: 0 | J9: 156 | K9: 2.98 | L9: 1.10
A10: 9 | B10: Lightning (Mike Goodman) | C10: Jake Faria | D10: 5 | E10: TB - SP | F10: 232 | G10: 86.2 | H10: 5 | I10: 0 | J10: 84 | K10: 3.43 | L10: 1.18
A11: 10 | B11: Lightning (Mike Goodman) | C11: Cam Bedrosian | D11: 10 | E11: LAA - RP | F11: 287 | G11: 44.2 | H11: 6 | I11: 6 | J11: 53 | K11: 4.43 | L11: 1.30
A12: 11 | B12: Lightning (Mike Goodman) | C12: Nate Jones | D12: 10 | E12: CWS - RP | F12: 297 | G12: 11.2 | H12: 1 | I12: 0 | J12: 15 | K12: 2.31 | L12: 1.29
A13: 12 | B13: Lightning (Mike Goodman) | C13: Cody Allen | D13: 32 | E13: Cle - RP | F13: 105 | G13: 67.1 | H13: 3 | I13: 30 | J13: 92 | K13: 2.94 | L13: 1.16
A14: 13 | B14: Lightning (Mike Goodman) | C14: Álex Cláudio | D14: 5 | E14: Tex - RP | F14: 315 | G14: 82.2 | H14: 4 | I14: 11 | J14: 56 | K14: 2.50 | L14: 1.04
A15: 14 | B15: Lightning (Mike Goodman) | C15: Matt Olson | D15: 5 | E15: Oak - 1B,OF | F15: 123 | G15: 49/189 | H15: 33 | I15: 24 | J15: 45 | K15: 0 | L15: .259
A16: 15 | B16: Lightning (Mike Goodman) | C16: Austin Hays | D16: 5 | E16: Bal - OF | F16: 1528 | G16: 13/60 | H16: 4 | I16: 1 | J16: 8 | K16: 0 | L16: .217
A17: 16 | B17: Lightning (Mike Goodman) | C17: Dustin Fowler | D17: 5 | E17: Oak - OF | F17: 1622 | G17: -/- | H17: - | I17: - | J17: - | K17: - | L17: -
A18: 17 | B18: Evolution (Bruce) | C18: Mike Zunino | D18: 6 | E18: Sea - C | F18: 203 | G18: 97/387 | H18: 52 | I18: 25 | J18: 64 | K18: 1 | L18: .251
A19: 18 | B19: Miggy Pop (Colin) | C19: Rougned Odor | D19: 15 | E19: Tex - 2B | F19: 92 | G19: 124/607 | H19: 79 | I19: 30 | J19: 75 | K19: 15 | L19: .204
A20: 19 | B20: Evolution (Bruce) | C20: Joey Gallo | D20: 10 | E20: Tex - 1B,3B,OF | F20: 113 | G20: 94/449 | H20: 85 | I20: 41 | J20: 80 | K20: 7 | L20: .209
A21: 20 | B21: Evolution (Bruce) | C21: Tim Anderson | D21: 10 | E21: CWS - SS | F21: 210 | G21: 151/587 | H21: 72 | I21: 17 | J21: 56 | K21: 15 | L21: .257
A22: 21 | B22: Evolution (Bruce) | C22: Trey Mancini | D22: 5 | E22: Bal - 1B,OF | F22: 242 | G22: 159/543 | H22: 65 | I22: 24 | J22: 78 | K22: 1 | L22: .293
A23: 22 | B23: Evolution (Bruce) | C23: Collin McHugh | D23: 6 | E23: Hou - SP | F23: 444 | G23: 63.1 | H23: 5 | I23: 0 | J23: 62 | K23: 3.55 | L23: 1.29
A24: 23 | B24: Evolution (Bruce) | C24: Alex Cobb | D24: 5 | E24: TB - SP | F24: 211 | G24: 179.1 | H24: 12 | I24: 0 | J24: 128 | K24: 3.66 | L24: 1.22
A25: 24 | B25: Evolution (Bruce) | C25: José Berríos | D25: 15 | E25: Min - SP | F25: 98 | G25: 145.2 | H25: 14 | I25: 0 | J25: 139 | K25: 3.89 | L25: 1.23
A26: 25 | B26: Evolution (Bruce) | C26: Danny Duffy | D26: 10 | E26: KC - SP | F26: 144 | G26: 146.1 | H26: 9 | I26: 0 | J26: 130 | K26: 3.81 | L26: 1.26
A27: 26 | B27: Evolution (Bruce) | C27: Blake Parker | D27: 5 | E27: LAA - RP | F27: 245 | G27: 67.1 | H27: 3 | I27: 8 | J27: 86 | K27: 2.54 | L27: 0.83
A28: 27 | B28: Evolution (Bruce) | C28: Brad Peacock | D28: 10 | E28: Hou - SP,RP | F28: 276 | G28: 132.0 | H28: 13 | I28: 0 | J28: 161 | K28: 3.00 | L28: 1.19
A29: 28 | B29: Evolution (Bruce) | C29: Bradley Zimmer | D29: 5 | E29: Cle - OF | F29: 183 | G29: 72/299 | H29: 41 | I29: 8 | J29: 39 | K29: 18 | L29: .241
A30: 29 | B30: Evolution (Bruce) | C30: Lucas Giolito | D30: 5 | E30: CWS - SP | F30: 263 | G30: 45.1 | H30: 3 | I30: 0 | J30: 34 | K30: 2.38 | L30: 0.95
A31: 30 | B31: Miggy Pop (Colin) | C31: Yuli Gurriel | D31: 10 | E31: Hou - 1B | F31: 174 | G31: 158/529 | H31: 69 | I31: 18 | J31: 75 | K31: 3 | L31: .299
A32: 31 | B32: Miggy Pop (Colin) | C32: Jonathan Schoop | D32: 17 | E32: Bal - 2B | F32: 77 | G32: 182/622 | H32: 92 | I32: 32 | J32: 105 | K32: 1 | L32: .293
A33: 32 | B33: Miggy Pop (Colin) | C33: Miguel Sanó | D33: 15 | E33: Min - 1B,3B | F33: 100 | G33: 112/424 | H33: 75 | I33: 28 | J33: 77 | K33: 0 | L33: .264
A34: 33 | B34: Miggy Pop (Colin) | C34: Marcus Semien | D34: 5 | E34: Oak - SS | F34: 226 | G34: 85/342 | H34: 53 | I34: 10 | J34: 40 | K34: 12 | L34: .249
A35: 34 | B35: Miggy Pop (Colin) | C35: Eduardo Núñez | D35: 5 | E35: Bos - 2B,3B,SS,OF | F35: 228 | G35: 146/467 | H35: 60 | I35: 12 | J35: 58 | K35: 24 | L35: .313
A36: 35 | B36: Miggy Pop (Colin) | C36: Mark Trumbo | D36: 10 | E36: Bal - OF | F36: 188 | G36: 131/559 | H36: 79 | I36: 23 | J36: 65 | K36: 1 | L36: .234
A37: 36 | B37: Miggy Pop (Colin) | C37: Jackie Bradley Jr. | D37: 10 | E37: Bos - OF | F37: 217 | G37: 118/482 | H37: 58 | I37: 17 | J37: 63 | K37: 8 | L37: .245
A38: 37 | B38: Miggy Pop (Colin) | C38: Jordan Montgomery | D38: 5 | E38: NYY - SP | F38: 288 | G38: 155.1 | H38: 9 | I38: 0 | J38: 144 | K38: 3.88 | L38: 1.23
A39: 38 | B39: Miggy Pop (Colin) | C39: Carlos Rodón | D39: 11 | E39: CWS - SP | F39: 285 | G39: 69.1 | H39: 2 | I39: 0 | J39: 76 | K39: 4.15 | L39: 1.37
A40: 39 | B40: Miggy Pop (Colin) | C40: Tony Zych | D40: 1 | E40: Sea - RP | F40: 422 | G40: 40.2 | H40: 6 | I40: 1 | J40: 35 | K40: 2.66 | L40: 1.25
A41: 40 | B41: Miggy Pop (Colin) | C41: Edwin Díaz | D41: 15 | E41: Sea - RP | F41: 97 | G41: 66.0 | H41: 4 | I41: 34 | J41: 89 | K41: 3.27 | L41: 1.15
A42: 41 | B42: Miggy Pop (Colin) | C42: Franklin Barreto | D42: 5 | E42: Oak - 2B,SS | F42: 1473 | G42: 14/71 | H42: 10 | I42: 2 | J42: 6 | K42: 2 | L42: .197
A43: 42 | B43: Miggy Pop (Colin) | C43: Clint Frazier | D43: 5 | E43: NYY - OF | F43: 1403 | G43: 31/134 | H43: 16 | I43: 4 | J43: 17 | K43: 1 | L43: .231
A44: 43 | B44: Woap (Mike) | C44: Robinson Canó | D44: 26 | E44: Sea - 2B | F44: 54 | G44: 166/592 | H44: 79 | I44: 23 | J44: 97 | K44: 1 | L44: .280
A45: 44 | B45: Woap (Mike) | C45: Mike Moustakas | D45: 17 | E45: KC - 3B | F45: 101 | G45: 151/555 | H45: 75 | I45: 38 | J45: 85 | K45: 0 | L45: .272
A46: 45 | B46: Woap (Mike) | C46: Mike Trout | D46: 63 | E46: LAA - OF | F46: 1 | G46: 123/402 | H46: 92 | I46: 33 | J46: 72 | K46: 22 | L46: .306
A47: 46 | B47: Woap (Mike) | C47: Kevin Kiermaier | D47: 2 | E47: TB - OF | F47: 152 | G47: 105/380 | H47: 56 | I47: 15 | J47: 39 | K47: 16 | L47: .276
A48: 47 | B48: Woap (Mike) | C48: Andrew Benintendi | D48: 10 | E48: Bos - OF | F48: 43 | G48: 155/573 | H48: 84 | I48: 20 | J48: 90 | K48: 20 | L48: .271
A49: 48 | B49: Woap (Mike) | C49: Michael Fulmer | D49: 15 | E49: Det - SP | F49: 169 | G49: 164.2 | H49: 10 | I49: 0 | J49: 114 | K49: 3.83 | L49: 1.15
A50: 49 | B50: Woap (Mike) | C50: Blake Snell | D50: 10 | E50: TB - SP | F50: 171 | G50: 129.1 | H50: 5 | I50: 0 | J50: 119 | K50: 4.04 | L50: 1.33
A51: 50 | B51: Woap (Mike) | C51: J.A. Happ | D51: 6 | E51: Tor - SP | F51: 255 | G51: 145.1 | H51: 10 | I51: 0 | J51: 142 | K51: 3.53 | L51: 1.31
A52: 51 | B52: Woap (Mike) | C52: Rafael Devers | D52: 5 | E52: Bos - 3B | F52: 83 | G52: 63/222 | H52: 34 | I52: 10 | J52: 30 | K52: 3 | L52: .284
A53: 52 | B53: Woap (Mike) | C53: Gleyber Torres | D53: 5 | E53: NYY - SS | F53: 332 | G53: -/- | H53: - | I53: - | J53: - | K53: - | L53: -
A54: 53 | B54: Woap (Mike) | C54: Kyle Tucker | D54: 5 | E54: Hou - OF | F54: 1616 | G54: -/- | H54: - | I54: - | J54: - | K54: - | L54: -
A55: 54 | B55: The Dominant Brand (Brandon) | C55: Brian McCann | D55: 11 | E55: Hou - C | F55: 216 | G55: 84/349 | H55: 47 | I55: 18 | J55: 62 | K55: 1 | L55: .241
A56: 55 | B56: The Dominant Brand (Brandon) | C56: Nicholas Castellanos | D56: 23 | E56: Det - 3B,OF | F56: 133 | G56: 167/614 | H56: 73 | I56: 26 | J56: 101 | K56: 4 | L56: .272
A57: 56 | B57: The Dominant Brand (Brandon) | C57: Xander Bogaerts | D57: 35 | E57: Bos - SS | F57: 61 | G57: 156/571 | H57: 94 | I57: 10 | J57: 62 | K57: 15 | L57: .273
A58: 57 | B58: The Dominant Brand (Brandon) | C58: Carlos Carrasco | D58: 37 | E58: Cle - SP | F58: 34 | G58: 200.0 | H58: 18 | I58: 0 | J58: 226 | K58: 3.29 | L58: 1.10
A59: 58 | B59: The Dominant Brand (Brandon) | C59: Kevin Gausman | D59: 24 | E59: Bal - SP | F59: 182 | G59: 186.2 | H59: 11 | I59: 0 | J59: 179 | K59: 4.68 | L59: 1.49
A60: 59 | B60: The Dominant Brand (Brandon) | C60: Ervin Santana | D60: 10 | E60: Min - SP | F60: 301 | G60: 211.1 | H60: 16 | I60: 0 | J60: 167 | K60: 3.28 | L60: 1.13
A61: 60 | B61: The Dominant Brand (Brandon) | C61: Matt Bush | D61: 6 | E61: Tex - RP | F61: 413 | G61: 52.1 | H61: 3 | I61: 10 | J61: 58 | K61: 3.78 | L61: 1.45
A62: 61 | B62: The Dominant Brand (Brandon) | C62: Alex Colomé | D62: 14 | E62: TB - RP | F62: 134 | G62: 66.2 | H62: 2 | I62: 47 | J62: 58 | K62: 3.24 | L62: 1.20
A63: 62 | B63: Guzzlers (Rhonda) | C63: Brian Dozier | D63: 8 | E63: Min - 2B | F63: 41 | G63: 167/617 | H63: 106 | I63: 34 | J63: 93 | K63: 16 | L63: .271
A64: 63 | B64: Guzzlers (Rhonda) | C64: Tim Beckham | D64: 5 | E64: Bal - 2B,SS | F64: 323 | G64: 148/533 | H64: 67 | I64: 22 | J64: 62 | K64: 6 | L64: .278
A65: 64 | B65: Guzzlers (Rhonda) | C65: Mookie Betts | D65: 15 | E65: Bos - OF | F65: 7 | G65: 166/628 | H65: 101 | I65: 24 | J65: 102 | K65: 26 | L65: .264
A66: 65 | B66: Guzzlers (Rhonda) | C66: Whit Merrifield | D66: 10 | E66: KC - 2B,OF | F66: 106 | G66: 169/587 | H66: 80 | I66: 19 | J66: 78 | K66: 34 | L66: .288
A67: 66 | B67: Guzzlers (Rhonda) | C67: Brad Miller | D67: 6 | E67: TB - 2B | F67: 1208 | G67: 68/338 | H67: 43 | I67: 9 | J67: 40 | K67: 5 | L67: .201
A68: 67 | B68: Guzzlers (Rhonda) | C68: Dallas Keuchel | D68: 23 | E68: Hou - SP | F68: 70 | G68: 145.2 | H68: 14 | I68: 0 | J68: 125 | K68: 2.90 | L68: 1.12
A69: 68 | B69: Guzzlers (Rhonda) | C69: Justin Verlander | D69: 27 | E69: Hou - SP | F69: 35 | G69: 206.0 | H69: 15 | I69: 0 | J69: 219 | K69: 3.36 | L69: 1.17
A70: 69 | B70: Guzzlers (Rhonda) | C70: CC Sabathia | D70: 1 | E70: NYY - SP | F70: 368 | G70: 148.2 | H70: 14 | I70: 0 | J70: 120 | K70: 3.69 | L70: 1.27
A71: 70 | B71: Numbats (Tom) | C71: Greg Bird | D71: 5 | E71: NYY - 1B | F71: 121 | G71: 28/147 | H71: 20 | I71: 9 | J71: 28 | K71: 0 | L71: .190
A72: 71 | B72: Numbats (Tom) | C72: Yoán Moncada | D72: 11 | E72: CWS - 2B | F72: 151 | G72: 46/199 | H72: 31 | I72: 8 | J72: 22 | K72: 3 | L72: .231
A73: 72 | B73: Numbats (Tom) | C73: Alex Bregman | D73: 15 | E73: Hou - 3B,SS | F73: 55 | G73: 158/556 | H73: 88 | I73: 19 | J73: 71 | K73: 17 | L73: .284
A74: 73 | B74: Numbats (Tom) | C74: Nomar Mazara | D74: 10 | E74: Tex - OF | F74: 150 | G74: 140/554 | H74: 64 | I74: 20 | J74: 101 | K74: 2 | L74: .253
A75: 74 | B75: Numbats (Tom) | C75: Charlie Morton | D75: 5 | E75: Hou - SP | F75: 209 | G75: 146.2 | H75: 14 | I75: 0 | J75: 163 | K75: 3.62 | L75: 1.19
A76: 75 | B76: Numbats (Tom) | C76: Sean Manaea | D76: 10 | E76: Oak - SP | F76: 224 | G76: 158.2 | H76: 12 | I76: 0 | J76: 140 | K76: 4.37 | L76: 1.40
A77: 76 | B77: Numbats (Tom) | C77: Mike Clevinger | D77: 5 | E77: Cle - SP,RP | F77: 259 | G77: 121.2 | H77: 12 | I77: 0 | J77: 137 | K77: 3.11 | L77: 1.25
A78: 77 | B78: Numbats (Tom) | C78: Jeimer Candelario | D78: 5 | E78: Det - 3B | F78: 293 | G78: 36/127 | H78: 18 | I78: 3 | J78: 16 | K78: 0 | L78: .283
A79: 78 | B79: TheDunnShow (Dave) | C79: Justin Smoak | D79: 5 | E79: Tor - 1B | F79: 87 | G79: 151/560 | H79: 85 | I79: 38 | J79: 90 | K79: 0 | L79: .270
A80: 79 | B80: TheDunnShow (Dave) | C80: Carlos Correa | D80: 15 | E80: Hou - SS | F80: 15 | G80: 133/422 | H80: 82 | I80: 24 | J80: 84 | K80: 2 | L80: .315
A81: 80 | B81: TheDunnShow (Dave) | C81: Aaron Judge | D81: 15 | E81: NYY - OF | F81: 17 | G81: 154/542 | H81: 128 | I81: 52 | J81: 114 | K81: 9 | L81: .284
A82: 81 | B82: TheDunnShow (Dave) | C82: Delino DeShields | D82: 5 | E82: Tex - OF | F82: 207 | G82: 101/376 | H82: 75 | I82: 6 | J82: 22 | K82: 29 | L82: .269
A83: 82 | B83: TheDunnShow (Dave) | C83: Chris Sale | D83: 52 | E83: Bos - SP | F83: 13 | G83: 214.1 | H83: 17 | I83: 0 | J83: 308 | K83: 2.90 | L83: 0.97
A84: 83 | B84: TheDunnShow (Dave) | C84: Sonny Gray | D84: 7 | E84: NYY - SP | F84: 126 | G84: 162.1 | H84: 10 | I84: 0 | J84: 153 | K84: 3.55 | L84: 1.21
A85: 84 | B85: TheDunnShow (Dave) | C85: Blake Treinen | D85: 5 | E85: Oak - RP | F85: 215 | G85: 75.2 | H85: 3 | I85: 16 | J85: 74 | K85: 3.93 | L85: 1.39
A86: 85 | B86: TheDunnShow (Dave) | C86: Willy Adames | D86: 5 | E86: TB - SS | F86: 1676 | G86: -/- | H86: - | I86: - | J86: - | K86: - | L86: -
A87: 86 | B87: TheDunnShow (Dave) | C87: Marco Gonzales | D87: 5 | E87: Sea - SP | F87: 1213 | G87: 40.0 | H87: 1 | I87: 0 | J87: 32 | K87: 6.08 | L87: 1.75
A88: 87 | B88: Booya's (Cathy) | C88: José Ramírez | D88: 15 | E88: Cle - 2B,3B | F88: 25 | G88: 186/585 | H88: 107 | I88: 29 | J88: 83 | K88: 17 | L88: .318
A89: 88 | B89: Booya's (Cathy) | C89: Didi Gregorius | D89: 6 | E89: NYY - SS | F89: 119 | G89: 153/534 | H89: 73 | I89: 25 | J89: 87 | K89: 3 | L89: .287
A90: 89 | B90: Booya's (Cathy) | C90: Brett Gardner | D90: 1 | E90: NYY - OF | F90: 138 | G90: 157/594 | H90: 96 | I90: 21 | J90: 63 | K90: 23 | L90: .264
A91: 90 | B91: Booya's (Cathy) | C91: Mitch Haniger | D91: 7 | E91: Sea - OF | F91: 236 | G91: 104/369 | H91: 58 | I91: 16 | J91: 47 | K91: 5 | L91: .282
A92: 91 | B92: Booya's (Cathy) | C92: Trevor Bauer | D92: 13 | E92: Cle - SP | F92: 168 | G92: 176.1 | H92: 17 | I92: 0 | J92: 196 | K92: 4.19 | L92: 1.37
A93: 92 | B93: Booya's (Cathy) | C93: Aroldis Chapman | D93: 53 | E93: NYY - RP | F93: 74 | G93: 50.1 | H93: 4 | I93: 22 | J93: 69 | K93: 3.22 | L93: 1.13
A94: 93 | B94: Booya's (Cathy) | C94: Andrew Miller | D94: 25 | E94: Cle - RP | F94: 197 | G94: 62.2 | H94: 4 | I94: 2 | J94: 95 | K94: 1.44 | L94: 0.83
A95: 94 | B95: Booya's (Cathy) | C95: David Price | D95: 30 | E95: Bos - SP,RP | F95: 128 | G95: 74.2 | H95: 6 | I95: 0 | J95: 76 | K95: 3.38 | L95: 1.19
A96: 95 | B96: Freebirds (Todd) | C96: Yonder Alonso | D96: 5 | E96: Cle - 1B | F96: 270 | G96: 120/451 | H96: 72 | I96: 28 | J96: 67 | K96: 2 | L96: .266
A97: 96 | B97: Freebirds (Todd) | C97: Marwin González | D97: 5 | E97: Hou - 1B,2B,3B,SS,OF | F97: 195 | G97: 138/455 | H97: 67 | I97: 23 | J97: 90 | K97: 8 | L97: .303
A98: 97 | B98: Freebirds (Todd) | C98: Matt Davidson | D98: 5 | E98: CWS - 1B,3B | F98: 1171 | G98: 91/414 | H98: 43 | I98: 26 | J98: 68 | K98: 0 | L98: .220
A99: 98 | B99: Freebirds (Todd) | C99: Byron Buxton | D99: 21 | E99: Min - OF | F99: 56 | G99: 117/462 | H99: 69 | I99: 16 | J99: 51 | K99: 29 | L99: .253
A100: 99 | B100: Freebirds (Todd) | C100: Cole Hamels | D100: 10 | E100: Tex - SP | F100: 177 | G100: 148.0 | H100: 11 | I100: 0 | J100: 105 | K100: 4.20 | L100: 1.20
A101: 100 | B101: Freebirds (Todd) | C101: Dellin Betances | D101: 20 | E101: NYY - RP | F101: 261 | G101: 59.2 | H101: 3 | I101: 10 | J101: 100 | K101: 2.87 | L101: 1.22
A102: 101 | B102: Freebirds (Todd) | C102: Chris Devenski | D102: 5 | E102: Hou - RP | F102: 328 | G102: 80.2 | H102: 8 | I102: 4 | J102: 100 | K102: 2.68 | L102: 0.94
A103: 102 | B103: Freebirds (Todd) | C103: Shane Greene | D103: 5 | E103: Det - RP | F103: 246 | G103: 67.2 | H103: 4 | I103: 9 | J103: 73 | K103: 2.66 | L103: 1.24
A104: 103 | B104: Freebirds (Todd) | C104: Michael Kopech | D104: 1 | E104: CWS - SP | F104: 312 | G104: - | H104: - | I104: - | J104: - | K104: - | L104: -
A105: 104 | B105: Freebirds (Todd) | C105: Carson Smith | D105: 5 | E105: Bos - RP | F105: 586 | G105: 6.2 | H105: 0 | I105: 1 | J105: 7 | K105: 1.35 | L105: 1.35
A106: 105 | B106: Freebirds (Todd) | C106: Addison Reed | D106: 5 | E106: Min - RP | F106: 321 | G106: 76.0 | H106: 2 | I106: 19 | J106: 76 | K106: 2.84 | L106: 1.05
A107: 106 | B107: Moneyballers (Rob) | C107: Welington Castillo | D107: 6 | E107: CWS - C | F107: 235 | G107: 96/341 | H107: 44 | I107: 20 | J107: 53 | K107: 0 | L107: .282
A108: 107 | B108: Moneyballers (Rob) | C108: José Abreu | D108: 37 | E108: CWS - 1B | F108: 33 | G108: 189/621 | H108: 95 | I108: 33 | J108: 102 | K108: 3 | L108: .304
A109: 108 | B109: Moneyballers (Rob) | C109: Kevin Pillar | D109: 15 | E109: Tor - OF | F109: 426 | G109: 150/587 | H109: 72 | I109: 16 | J109: 42 | K109: 15 | L109: .256
A110: 109 | B110: Moneyballers (Rob) | C110: Rick Porcello | D110: 6 | E110: Bos - SP | F110: 244 | G110: 203.1 | H110: 11 | I110: 0 | J110: 181 | K110: 4.65 | L110: 1.40
A111: 110 | B111: Moneyballers (Rob) | C111: Aaron Sanchez | D111: 15 | E111: Tor - SP | F111: 253 | G111: 36.0 | H111: 1 | I111: 0 | J111: 24 | K111: 4.25 | L111: 1.72
A112: 111 | B112: Moneyballers (Rob) | C112: Ryan Tepera | D112: 5 | E112: Tor - RP | F112: 384 | G112: 77.2 | H112: 7 | I112: 2 | J112: 81 | K112: 3.59 | L112: 1.13
A113: 112 | B113: Moneyballers (Rob) | C113: Kelvin Herrera | D113: 6 | E113: KC - RP | F113: 163 | G113: 59.1 | H113: 3 | I113: 26 | J113: 56 | K113: 4.25 | L113: 1.35
A114: 113 | B114: Moneyballers (Rob) | C114: AJ Reed | D114: 5 | E114: Hou - 1B | F114: 1853 | G114: 0/6 | H114: 0 | I114: 0 | J114: 0 | K114: 0 | L114: .000

Sheet Summary
A1: Owners | B1: Current Used Points | C1: Remaining Points | D1: Max Bidding Points | E1: Players Left to Draft | F1: C | G1: 1B | H1: 2B | I1: 3B | J1: SS | K1: OF | L1: DH | M1: SP | N1: RP | O1: Reserve
A2: Lightning (Mike Goodman) | B2: =used1 -> 227 | C2: ='2018 Pre-Draft Rosters'!D22 -> 33 | D2: ='2018 Pre-Draft Rosters'!D23 -> 29 | E2: ='2018 Pre-Draft Rosters'!D24 -> 5 | F2: =1-COUNT('2018 Pre-Draft Rosters'!D3) -> 0 | G2: =1-COUNT('2018 Pre-Draft Rosters'!D4) -> 1 | H2: =1-COUNT('2018 Pre-Draft Rosters'!D5) -> 0 | I2: =1-COUNT('2018 Pre-Draft Rosters'!D6) -> 0 | J2: =1-COUNT('2018 Pre-Draft Rosters'!D7) -> 0 | K2: =3-COUNT('2018 Pre-Draft Rosters'!D8:D10) -> 1 | L2: =1-COUNT('2018 Pre-Draft Rosters'!D11) -> 1 | M2: =5-COUNT('2018 Pre-Draft Rosters'!D12:D16) -> 2 | N2: =4-COUNT('2018 Pre-Draft Rosters'!D17:D20) -> 0 | O2: =7-COUNT('2018 Pre-Draft Rosters'!D27:D33) -> 4
A3: Evolution (Bruce) | B3: =used2 -> 97 | C3: ='2018 Pre-Draft Rosters'!H22 -> 163 | D3: ='2018 Pre-Draft Rosters'!H23 -> 157 | E3: ='2018 Pre-Draft Rosters'!H24 -> 7 | F3: =1-COUNT('2018 Pre-Draft Rosters'!H3) -> 0 | G3: =1-COUNT('2018 Pre-Draft Rosters'!H4) -> 1 | H3: =1-COUNT('2018 Pre-Draft Rosters'!H5) -> 0 | I3: =1-COUNT('2018 Pre-Draft Rosters'!H6) -> 0 | J3: =1-COUNT('2018 Pre-Draft Rosters'!H7) -> 0 | K3: =3-COUNT('2018 Pre-Draft Rosters'!H8:H10) -> 2 | L3: =1-COUNT('2018 Pre-Draft Rosters'!H11) -> 1 | M3: =5-COUNT('2018 Pre-Draft Rosters'!H12:H16) -> 1 | N3: =4-COUNT('2018 Pre-Draft Rosters'!H17:H20) -> 2 | O3: =7-COUNT('2018 Pre-Draft Rosters'!H27:H33) -> 5
A4: The Soylent Knights (Colin) | B4: =used3 -> 104 | C4: ='2018 Pre-Draft Rosters'!L22 -> 156 | D4: ='2018 Pre-Draft Rosters'!L23 -> 150 | E4: ='2018 Pre-Draft Rosters'!L24 -> 7 | F4: =1-COUNT('2018 Pre-Draft Rosters'!L3) -> 1 | G4: =1-COUNT('2018 Pre-Draft Rosters'!L4) -> 0 | H4: =1-COUNT('2018 Pre-Draft Rosters'!L5) -> 0 | I4: =1-COUNT('2018 Pre-Draft Rosters'!L6) -> 0 | J4: =1-COUNT('2018 Pre-Draft Rosters'!L7) -> 0 | K4: =3-COUNT('2018 Pre-Draft Rosters'!L8:L10) -> 0 | L4: =1-COUNT('2018 Pre-Draft Rosters'!L11) -> 1 | M4: =5-COUNT('2018 Pre-Draft Rosters'!L12:L16) -> 3 | N4: =4-COUNT('2018 Pre-Draft Rosters'!L17:L20) -> 2 | O4: =7-COUNT('2018 Pre-Draft Rosters'!L27:L33) -> 5
A5: Woap (Mike) | B5: =used4 -> 149 | C5: ='2018 Pre-Draft Rosters'!P22 -> 111 | D5: ='2018 Pre-Draft Rosters'!P23 -> 102 | E5: ='2018 Pre-Draft Rosters'!P24 -> 10 | F5: =1-COUNT('2018 Pre-Draft Rosters'!P3) -> 1 | G5: =1-COUNT('2018 Pre-Draft Rosters'!P4) -> 1 | H5: =1-COUNT('2018 Pre-Draft Rosters'!P5) -> 0 | I5: =1-COUNT('2018 Pre-Draft Rosters'!P6) -> 0 | J5: =1-COUNT('2018 Pre-Draft Rosters'!P7) -> 1 | K5: =3-COUNT('2018 Pre-Draft Rosters'!P8:P10) -> 0 | L5: =1-COUNT('2018 Pre-Draft Rosters'!P11) -> 1 | M5: =5-COUNT('2018 Pre-Draft Rosters'!P12:P16) -> 2 | N5: =4-COUNT('2018 Pre-Draft Rosters'!P17:P20) -> 4 | O5: =7-COUNT('2018 Pre-Draft Rosters'!P27:P33) -> 4
A6: The Dominant Brand (Brandon) | B6: =used5 -> 160 | C6: ='2018 Pre-Draft Rosters'!T22 -> 100 | D6: ='2018 Pre-Draft Rosters'!T23 -> 91 | E6: ='2018 Pre-Draft Rosters'!T24 -> 10 | F6: =1-COUNT('2018 Pre-Draft Rosters'!T3) -> 0 | G6: =1-COUNT('2018 Pre-Draft Rosters'!T4) -> 1 | H6: =1-COUNT('2018 Pre-Draft Rosters'!T5) -> 1 | I6: =1-COUNT('2018 Pre-Draft Rosters'!T6) -> 0 | J6: =1-COUNT('2018 Pre-Draft Rosters'!T7) -> 0 | K6: =3-COUNT('2018 Pre-Draft Rosters'!T8:T10) -> 3 | L6: =1-COUNT('2018 Pre-Draft Rosters'!T11) -> 1 | M6: =5-COUNT('2018 Pre-Draft Rosters'!T12:T16) -> 2 | N6: =4-COUNT('2018 Pre-Draft Rosters'!T17:T20) -> 2 | O6: =7-COUNT('2018 Pre-Draft Rosters'!T27:T33) -> 7
A7: Guzzlers (Rhonda) | B7: =used6 -> 95 | C7: ='2018 Pre-Draft Rosters'!X22 -> 165 | D7: ='2018 Pre-Draft Rosters'!X23 -> 156 | E7: ='2018 Pre-Draft Rosters'!X24 -> 10 | F7: =1-COUNT('2018 Pre-Draft Rosters'!X3) -> 1 | G7: =1-COUNT('2018 Pre-Draft Rosters'!X4) -> 1 | H7: =1-COUNT('2018 Pre-Draft Rosters'!X5) -> 0 | I7: =1-COUNT('2018 Pre-Draft Rosters'!X6) -> 1 | J7: =1-COUNT('2018 Pre-Draft Rosters'!X7) -> 0 | K7: =3-COUNT('2018 Pre-Draft Rosters'!X8:X10) -> 1 | L7: =1-COUNT('2018 Pre-Draft Rosters'!X11) -> 0 | M7: =5-COUNT('2018 Pre-Draft Rosters'!X12:X16) -> 2 | N7: =4-COUNT('2018 Pre-Draft Rosters'!X17:X20) -> 4 | O7: =7-COUNT('2018 Pre-Draft Rosters'!X27:X33) -> 7
A8: Moneyballers (Rob) | B8: =used7 -> 90 | C8: ='2018 Pre-Draft Rosters'!AB22 -> 170 | D8: ='2018 Pre-Draft Rosters'!AB23 -> 160 | E8: ='2018 Pre-Draft Rosters'!AB24 -> 11 | F8: =1-COUNT('2018 Pre-Draft Rosters'!AB3) -> 0 | G8: =1-COUNT('2018 Pre-Draft Rosters'!AB4) -> 0 | H8: =1-COUNT('2018 Pre-Draft Rosters'!AB5) -> 1 | I8: =1-COUNT('2018 Pre-Draft Rosters'!AB6) -> 1 | J8: =1-COUNT('2018 Pre-Draft Rosters'!AB7) -> 1 | K8: =3-COUNT('2018 Pre-Draft Rosters'!AB8:AB10) -> 2 | L8: =1-COUNT('2018 Pre-Draft Rosters'!AB11) -> 1 | M8: =5-COUNT('2018 Pre-Draft Rosters'!AB12:AB16) -> 3 | N8: =4-COUNT('2018 Pre-Draft Rosters'!AB17:AB20) -> 2 | O8: =7-COUNT('2018 Pre-Draft Rosters'!AB27:AB33) -> 6
A9: Booya's (Cathy) | B9: =used8 -> 120 | C9: ='2018 Pre-Draft Rosters'!AF22 -> 140 | D9: ='2018 Pre-Draft Rosters'!AF23 -> 130 | E9: ='2018 Pre-Draft Rosters'!AF24 -> 11 | F9: =1-COUNT('2018 Pre-Draft Rosters'!AF3) -> 1 | G9: =1-COUNT('2018 Pre-Draft Rosters'!AF4) -> 1 | H9: =1-COUNT('2018 Pre-Draft Rosters'!AF5) -> 0 | I9: =1-COUNT('2018 Pre-Draft Rosters'!AF6) -> 1 | J9: =1-COUNT('2018 Pre-Draft Rosters'!AF7) -> 0 | K9: =3-COUNT('2018 Pre-Draft Rosters'!AF8:AF10) -> 1 | L9: =1-COUNT('2018 Pre-Draft Rosters'!AF11) -> 1 | M9: =5-COUNT('2018 Pre-Draft Rosters'!AF12:AF16) -> 4 | N9: =4-COUNT('2018 Pre-Draft Rosters'!AF17:AF20) -> 2 | O9: =7-COUNT('2018 Pre-Draft Rosters'!AF27:AF33) -> 6
A10: Freebirds (Todd) | B10: =used9 -> 76 | C10: ='2018 Pre-Draft Rosters'!AJ22 -> 184 | D10: ='2018 Pre-Draft Rosters'!AJ23 -> 175 | E10: ='2018 Pre-Draft Rosters'!AJ24 -> 10 | F10: =1-COUNT('2018 Pre-Draft Rosters'!AJ3) -> 1 | G10: =1-COUNT('2018 Pre-Draft Rosters'!AJ4) -> 0 | H10: =1-COUNT('2018 Pre-Draft Rosters'!AJ5) -> 0 | I10: =1-COUNT('2018 Pre-Draft Rosters'!AJ6) -> 0 | J10: =1-COUNT('2018 Pre-Draft Rosters'!AJ7) -> 1 | K10: =3-COUNT('2018 Pre-Draft Rosters'!AJ8:AJ10) -> 2 | L10: =1-COUNT('2018 Pre-Draft Rosters'!AJ11) -> 1 | M10: =5-COUNT('2018 Pre-Draft Rosters'!AJ12:AJ15) -> 4 | N10: =4-COUNT('2018 Pre-Draft Rosters'!AJ17:AJ20) -> 1 | O10: =7-COUNT('2018 Pre-Draft Rosters'!AJ27:AJ33) -> 4
A11: Numbats (Tom) | B11: =used10 -> 61 | C11: ='2018 Pre-Draft Rosters'!AN22 -> 199 | D11: ='2018 Pre-Draft Rosters'!AN23 -> 189 | E11: ='2018 Pre-Draft Rosters'!AN24 -> 11 | F11: =1-COUNT('2018 Pre-Draft Rosters'!AN3) -> 1 | G11: =1-COUNT('2018 Pre-Draft Rosters'!AN4) -> 0 | H11: =1-COUNT('2018 Pre-Draft Rosters'!AN5) -> 0 | I11: =1-COUNT('2018 Pre-Draft Rosters'!AN6) -> 0 | J11: =1-COUNT('2018 Pre-Draft Rosters'!#REF!) -> 1 | K11: =3-COUNT('2018 Pre-Draft Rosters'!AN8:AN10) -> 2 | L11: =1-COUNT('2018 Pre-Draft Rosters'!AN11) -> 1 | M11: =5-COUNT('2018 Pre-Draft Rosters'!AN12:AN16) -> 3 | N11: =4-COUNT('2018 Pre-Draft Rosters'!AN17:AN20) -> 3 | O11: =7-COUNT('2018 Pre-Draft Rosters'!AN7:AN33) -> -2
A12: TheDunnShow (Dave) | B12: =used11 -> 104 | C12: ='2018 Pre-Draft Rosters'!AR22 -> 156 | D12: ='2018 Pre-Draft Rosters'!AR23 -> 146 | E12: ='2018 Pre-Draft Rosters'!AR24 -> 11 | F12: =1-COUNT('2018 Pre-Draft Rosters'!AR3) -> 1 | G12: =1-COUNT('2018 Pre-Draft Rosters'!AR4) -> 0 | H12: =1-COUNT('2018 Pre-Draft Rosters'!AR5) -> 1 | I12: =1-COUNT('2018 Pre-Draft Rosters'!AR6) -> 1 | J12: =1-COUNT('2018 Pre-Draft Rosters'!AR7) -> 0 | K12: =3-COUNT('2018 Pre-Draft Rosters'!AR8:AR10) -> 1 | L12: =1-COUNT('2018 Pre-Draft Rosters'!AR11) -> 1 | M12: =5-COUNT('2018 Pre-Draft Rosters'!AR12:AR16) -> 3 | N12: =4-COUNT('2018 Pre-Draft Rosters'!AR17:AR20) -> 3 | O12: =7-COUNT('2018 Pre-Draft Rosters'!AR27:AR33) -> 5
E13: =SUM(E2:E12) -> 103 | F13: =SUM(F2:F12) -> 7 | G13: 6 | H13: 3 | I13: 4 | J13: 4 | K13: 15 | L13: 10 | M13: 29 | N13: 25 | O13: 51

Sheet Catchers
A1: Player | B1: Team | C1: Rank | D1: H/AB | E1: R | F1: HR | G1: RBI | H1: SB | I1: Avg.
A2: Salvador Perez | B2: KC - C | C2: 148 | D2: 126/471 | E2: 57 | F2: 27 | G2: 80 | H2: 1 | I2: .268
A3: Evan Gattis | B3: Hou - C | C3: 189 | D3: 79/300 | E3: 41 | F3: 12 | G3: 55 | H3: 0 | I3: .263
A4: Wilson Ramos | B4: TB - C | C4: 202 | D4: 54/208 | E4: 19 | F4: 11 | G4: 35 | H4: 0 | I4: .260
A5: Jonathan Lucroy | B5: Oak - C | C5: 279 | D5: 112/423 | E5: 45 | F5: 6 | G5: 40 | H5: 1 | I5: .265
A6: Russell Martin | B6: Tor - C,3B | C6: 290 | D6: 68/307 | E6: 49 | F6: 13 | G6: 35 | H6: 1 | I6: .221
A7: Robinson Chirinos | B7: Tex - C | C7: 306 | D7: 67/263 | E7: 46 | F7: 17 | G7: 38 | H7: 1 | I7: .255
A8: James McCann | B8: Det - C | C8: 1192 | D8: 89/352 | E8: 39 | F8: 13 | G8: 49 | H8: 1 | I8: .253
A9: Christian Vázquez | B9: Bos - C | C9: 1206 | D9: 94/324 | E9: 43 | F9: 5 | G9: 32 | H9: 7 | I9: .290
A10: Jason Castro | B10: Min - C | C10: 1222 | D10: 86/356 | E10: 49 | F10: 10 | G10: 47 | H10: 0 | I10: .242
A11: Yan Gomes | B11: Cle - C | C11: 1232 | D11: 79/341 | E11: 43 | F11: 14 | G11: 56 | H11: 0 | I11: .232
A12: Sandy Leon | B12: Bos - C | C12: 1278 | D12: 61/271 | E12: 32 | F12: 7 | G12: 39 | H12: 0 | I12: .225
A13: Martín Maldonado | B13: LAA - C | C13: 1294 | D13: 95/429 | E13: 43 | F13: 14 | G13: 38 | H13: 0 | I13: .221
A14: René Rivera | B14: LAA - C | C14: 1295 | D14: 55/218 | E14: 23 | F14: 10 | G14: 35 | H14: 0 | I14: .252
A15: Jesús Sucre | B15: TB - C | C15: 1318 | D15: 45/176 | E15: 20 | F15: 7 | G15: 29 | H15: 2 | I15: .256
A16: Kevan Smith | B16: CWS - C | C16: 1325 | D16: 78/276 | E16: 23 | F16: 4 | G16: 30 | H16: 0 | I16: .283
A17: Caleb Joseph | B17: Bal - C | C17: 1326 | D17: 65/254 | E17: 31 | F17: 8 | G17: 28 | H17: 0 | I17: .256
A18: John Hicks | B18: Det - C,1B | C18: 1331 | D18: 46/173 | E18: 25 | F18: 6 | G18: 22 | H18: 2 | I18: .266
A19: Derek Norris | B19: Det - C | C19: 1338 | D19: 36/179 | E19: 21 | F19: 9 | G19: 24 | H19: 1 | I19: .201
A20: Roberto Pérez | B20: Cle - C | C20: 1350 | D20: 45/217 | E20: 22 | F20: 8 | G20: 38 | H20: 0 | I20: .207
A21: Omar Narváez | B21: CWS - C | C21: 1361 | D21: 70/253 | E21: 23 | F21: 2 | G21: 14 | H21: 0 | I21: .277
A22: Bruce Maxwell | B22: Oak - C | C22: 1378 | D22: 52/219 | E22: 21 | F22: 3 | G22: 22 | H22: 0 | I22: .237
A23: Drew Butera | B23: KC - C | C23: 1398 | D23: 37/163 | E23: 18 | F23: 3 | G23: 14 | H23: 0 | I23: .227
A24: Carlos Ruiz | B24: Sea - C | C24: 1407 | D24: 27/125 | E24: 14 | F24: 3 | G24: 11 | H24: 1 | I24: .216
A25: Austin Romine | B25: NYY - C,1B | C25: 1408 | D25: 50/229 | E25: 19 | F25: 2 | G25: 21 | H25: 0 | I25: .218
A26: Ryan Hanigan | B26: Cle - C | C26: 1429 | D26: 27/101 | E26: 9 | F26: 2 | G26: 12 | H26: 0 | I26: .267
A27: Brett Nicholas | B27: Tex - C | C27: 1443 | D27: 15/63 | E27: 7 | F27: 2 | G27: 11 | H27: 0 | I27: .238
A28: Geovany Soto | B28: CWS - C | C28: 1446 | D28: 8/42 | E28: 5 | F28: 3 | G28: 9 | H28: 0 | I28: .190
A29: Juan Centeno | B29: Tex - C | C29: 1455 | D29: 12/52 | E29: 5 | F29: 2 | G29: 4 | H29: 0 | I29: .231
A30: Josh Phegley | B30: Oak - C | C30: 1467 | D30: 30/149 | E30: 14 | F30: 3 | G30: 10 | H30: 0 | I30: .201
A31: Curt Casali | B31: Tex - C | C31: 1472 | D31: 3/9 | E31: 2 | F31: 1 | G31: 3 | H31: 0 | I31: .333
A32: Chance Sisco | B32: Bal - C | C32: 1484 | D32: 6/18 | E32: 3 | F32: 2 | G32: 4 | H32: 0 | I32: .333
A33: Tim Federowicz | B33: Hou - C | C33: 1506 | D33: 3/13 | E33: 3 | F33: 2 | G33: 3 | H33: 0 | I33: .231
A34: Carlos Pérez | B34: LAA - C | C34: 1518 | D34: 2/20 | E34: 1 | F34: 1 | G34: 3 | H34: 0 | I34: .100
A35: Dustin Garneau | B35: Oak - C | C35: 1519 | D35: 21/112 | E35: 10 | F35: 2 | G35: 9 | H35: 0 | I35: .188
A36: Max Stassi | B36: Hou - C | C36: 1523 | D36: 4/24 | E36: 5 | F36: 2 | G36: 4 | H36: 0 | I36: .167
A37: Cam Gallagher | B37: KC - C | C37: 1524 | D37: 6/24 | E37: 2 | F37: 1 | G37: 5 | H37: 0 | I37: .250
A38: Anthony Recker | B38: Ari - C | C38: 1538 | D38: 1/7 | E38: 1 | F38: 0 | G38: 0 | H38: 0 | I38: .143
A39: Mike Marjama | B39: Sea - C | C39: 1539 | D39: 3/9 | E39: 1 | F39: 1 | G39: 1 | H39: 0 | I39: .333
A40: Juan Graterol | B40: LAA - C | C40: 1540 | D40: 17/84 | E40: 5 | F40: 0 | G40: 10 | H40: 0 | I40: .202
A41: Blake Swihart | B41: Bos - C | C41: 1554 | D41: 1/5 | E41: 1 | F41: 0 | G41: 0 | H41: 0 | I41: .200
A42: David Freitas | B42: Sea - C | C42: 1559 | D42: 4/17 | E42: 2 | F42: 0 | G42: 2 | H42: 0 | I42: .235
A43: Jarrod Saltalamacchia | B43: Tor - C | C43: 1573 | D43: 1/25 | E43: 1 | F43: 0 | G43: 0 | H43: 0 | I43: .040
A44: Mitch Garver | B44: Min - C | C44: 1577 | D44: 9/46 | E44: 5 | F44: 0 | G44: 3 | H44: 0 | I44: .196
A45: Mike Ohlman | B45: Tex - C | C45: 1588 | D45: 3/13 | E45: 1 | F45: 0 | G45: 1 | H45: 0 | I45: .231
A46: Oscar Hernandez | B46: Bos - C | C46: 1594 | D46: -/- | E46: - | F46: - | G46: - | H46: - | I46: -
A47: Erik Kratz | B47: NYY - C | C47: 1600 | D47: 2/2 | E47: 0 | F47: 0 | G47: 2 | H47: 0 | I47: 1.000
A48: Sean Murphy | B48: Oak - C | C48: 1636 | D48: -/- | E48: - | F48: - | G48: - | H48: - | I48: -
A49: Miguel Gonzalez | B49: Det - C | C49: 1644 | D49: -/- | E49: - | F49: - | G49: - | H49: - | I49: -
A50: Garrett Stubbs | B50: Hou - C | C50: 1648 | D50: -/- | E50: - | F50: - | G50: - | H50: - | I50: -
A51: Reese McGuire | B51: Tor - C | C51: 1651 | D51: -/- | E51: - | F51: - | G51: - | H51: - | I51: -
A52: Zack Collins | B52: CWS - C | C52: 1655 | D52: -/- | E52: - | F52: - | G52: - | H52: - | I52: -
A53: Ben Rortvedt | B53: Min - C | C53: 1657 | D53: -/- | E53: - | F53: - | G53: - | H53: - | I53: -
A54: Max Pentecost | B54: Tor - C | C54: 1700 | D54: -/- | E54: - | F54: - | G54: - | H54: - | I54: -
A55: MJ Melendez | B55: KC - C | C55: 1703 | D55: -/- | E55: - | F55: - | G55: - | H55: - | I55: -
A56: Taylor Ward | B56: LAA - C | C56: 1713 | D56: -/- | E56: - | F56: - | G56: - | H56: - | I56: -
A57: Chase Vallot | B57: KC - C | C57: 1738 | D57: -/- | E57: - | F57: - | G57: - | H57: - | I57: -
A58: Jake Rogers | B58: Det - C | C58: 1771 | D58: -/- | E58: - | F58: - | G58: - | H58: - | I58: -
A59: Danny Jansen | B59: Tor - C | C59: 1785 | D59: -/- | E59: - | F59: - | G59: - | H59: - | I59: -
A60: Luke Maile | B60: Tor - C | C60: 1843 | D60: 19/130 | E60: 10 | F60: 2 | G60: 7 | H60: 1 | I60: .146
A61: Andrew Susac | B61: Bal - C | C61: 1855 | D61: 1/12 | E61: 0 | F61: 0 | G61: 0 | H61: 0 | I61: .083
A62: A.J. Jimenez | B62: Tex - C | C62: 1867 | D62: 1/12 | E62: 0 | F62: 0 | G62: 0 | H62: 0 | I62: .083
A63: Kyle Higashioka | B63: NYY - C | C63: 1870 | D63: 0/18 | E63: 2 | F63: 0 | G63: 0 | H63: 0 | I63: .000
A64: Tuffy Gosewisch | B64: Sea - C | C64: 1872 | D64: 2/28 | E64: 1 | F64: 0 | G64: 0 | H64: 0 | I64: .071

Sheet 1st Base
A1: Player | B1: Team | C1: Rank | D1: H/AB | E1: R | F1: HR | G1: RBI | H1: SB | I1: Avg.
A2: Edwin Encarnacion | B2: Cle - 1B | C2: 42 | D2: 143/554 | E2: 96 | F2: 38 | G2: 107 | H2: 2 | I2: .258
A3: Miguel Cabrera | B3: Det - 1B | C3: 66 | D3: 117/469 | E3: 50 | F3: 16 | G3: 60 | H3: 0 | I3: .249
A4: Chris Davis | B4: Bal - 1B | C4: 149 | D4: 98/456 | E4: 65 | F4: 26 | G4: 61 | H4: 1 | I4: .215
A5: Hanley Ramirez | B5: Bos - 1B | C5: 250 | D5: 120/496 | E5: 58 | F5: 23 | G5: 62 | H5: 1 | I5: .242
A6: Neil Walker | B6: NYY - 1B,2B | C6: 255 | D6: 102/385 | E6: 59 | F6: 14 | G6: 49 | H6: 0 | I6: .265
A7: Kendrys Morales | B7: Tor - 1B | C7: 256 | D7: 139/557 | E7: 67 | F7: 28 | G7: 85 | H7: 0 | I7: .250
A8: Logan Morrison | B8: Min - 1B | C8: 296 | D8: 126/512 | E8: 75 | F8: 38 | G8: 85 | H8: 2 | I8: .246
A9: Albert Pujols | B9: LAA - 1B | C9: 302 | D9: 143/593 | E9: 53 | F9: 23 | G9: 101 | H9: 3 | I9: .241
A10: Joe Mauer | B10: Min - 1B | C10: 320 | D10: 160/525 | E10: 69 | F10: 7 | G10: 71 | H10: 2 | I10: .305
A11: Mitch Moreland | B11: Bos - 1B | C11: 335 | D11: 125/508 | E11: 73 | F11: 22 | G11: 79 | H11: 0 | I11: .246
A12: Mike Napoli | B12: Cle - 1B | C12: 461 | D12: 82/425 | E12: 60 | F12: 29 | G12: 66 | H12: 1 | I12: .193
A13: Danny Valencia | B13: Bal - 1B,OF | C13: 468 | D13: 115/450 | E13: 54 | F13: 15 | G13: 66 | H13: 2 | I13: .256
A14: Adam Lind | B14: NYY - 1B,OF | C14: 506 | D14: 81/267 | E14: 39 | F14: 14 | G14: 59 | H14: 1 | I14: .303
A15: Matt Holliday | B15: NYY - 1B | C15: 589 | D15: 86/373 | E15: 50 | F15: 19 | G15: 64 | H15: 1 | I15: .231
A16: C.J. Cron | B16: TB - 1B | C16: 614 | D16: 84/339 | E16: 39 | F16: 16 | G16: 56 | H16: 3 | I16: .248
A17: Lucas Duda | B17: KC - 1B | C17: 1004 | D17: 92/423 | E17: 50 | F17: 30 | G17: 64 | H17: 0 | I17: .217
A18: Brandon Moss | B18: Oak - 1B | C18: 1101 | D18: 75/362 | E18: 41 | F18: 22 | G18: 50 | H18: 2 | I18: .207
A19: Luis Valbuena | B19: LAA - 1B,3B | C19: 1144 | D19: 69/347 | E19: 42 | F19: 22 | G19: 65 | H19: 0 | I19: .199
A20: Steve Pearce | B20: Tor - 1B,OF | C20: 1214 | D20: 79/313 | E20: 38 | F20: 13 | G20: 37 | H20: 0 | I20: .252
A21: Kennys Vargas | B21: Min - 1B | C21: 1245 | D21: 61/241 | E21: 33 | F21: 11 | G21: 41 | H21: 0 | I21: .253
A22: Chris Carter | B22: LAA - 1B | C22: 1267 | D22: 37/184 | E22: 20 | F22: 8 | G22: 26 | H22: 0 | I22: .201
A23: Andrew Romine | B23: Sea - 1B,2B,3B,SS,OF | C23: 1289 | D23: 74/318 | E23: 45 | F23: 4 | G23: 25 | H23: 6 | I23: .233
A24: Taylor Motter | B24: Sea - 1B,2B,SS,OF | C24: 1330 | D24: 51/258 | E24: 29 | F24: 7 | G24: 26 | H24: 12 | I24: .198
A25: John Hicks | B25: Det - C,1B | C25: 1331 | D25: 46/173 | E25: 25 | F25: 6 | G25: 22 | H25: 2 | I25: .266
A26: Trevor Plouffe | B26: Tex - 1B,3B | C26: 1341 | D26: 56/283 | E26: 31 | F26: 9 | G26: 19 | H26: 1 | I26: .198
A27: Ryan Rua | B27: Tex - 1B,OF | C27: 1362 | D27: 28/129 | E27: 17 | F27: 3 | G27: 12 | H27: 2 | I27: .217
A28: Jace Peterson | B28: NYY - 1B,2B,3B,OF | C28: 1374 | D28: 40/186 | E28: 15 | F28: 2 | G28: 17 | H28: 3 | I28: .215
A29: Jefry Marte | B29: LAA - 1B,3B | C29: 1395 | D29: 22/127 | E29: 10 | F29: 4 | G29: 14 | H29: 1 | I29: .173
A30: Rickie Weeks Jr. | B30: TB - 1B | C30: 1400 | D30: 21/97 | E30: 13 | F30: 2 | G30: 8 | H30: 1 | I30: .216
A31: Tyler White | B31: Hou - 1B | C31: 1402 | D31: 17/61 | E31: 7 | F31: 3 | G31: 10 | H31: 0 | I31: .279
A32: Austin Romine | B32: NYY - C,1B | C32: 1408 | D32: 50/229 | E32: 19 | F32: 2 | G32: 21 | H32: 0 | I32: .218
A33: Tyler Austin | B33: NYY - 1B | C33: 1456 | D33: 9/40 | E33: 4 | F33: 2 | G33: 8 | H33: 0 | I33: .225
A34: James Loney | B34: Tex - 1B | C34: 1458 | D34: -/- | E34: - | F34: - | G34: - | H34: - | I34: -
A35: Sam Travis | B35: Bos - 1B | C35: 1468 | D35: 20/76 | E35: 13 | F35: 0 | G35: 1 | H35: 1 | I35: .263
A36: Chris Johnson | B36: Bal - 1B,3B | C36: 1529 | D36: -/- | E36: - | F36: - | G36: - | H36: - | I36: -
A37: Richie Shaffer | B37: Cle - 1B,3B | C37: 1568 | D37: -/- | E37: - | F37: - | G37: - | H37: - | I37: -
A38: Brock Stassi | B38: Min - 1B | C38: 1570 | D38: 13/78 | E38: 6 | F38: 2 | G38: 7 | H38: 0 | I38: .167
A39: Lewin Díaz | B39: Min - 1B | C39: 1637 | D39: -/- | E39: - | F39: - | G39: - | H39: - | I39: -
A40: Brendan McKay | B40: TB - 1B | C40: 1638 | D40: -/- | E40: - | F40: - | G40: - | H40: - | I40: -
A41: Gavin Sheets | B41: CWS - 1B | C41: 1664 | D41: -/- | E41: - | F41: - | G41: - | H41: - | I41: -
A42: Daniel Palka | B42: CWS - 1B,OF | C42: 1682 | D42: -/- | E42: - | F42: - | G42: - | H42: - | I42: -
A43: Evan White | B43: Sea - 1B | C43: 1704 | D43: -/- | E43: - | F43: - | G43: - | H43: - | I43: -
A44: Bobby Bradley | B44: Cle - 1B | C44: 1725 | D44: -/- | E44: - | F44: - | G44: - | H44: - | I44: -
A45: Rowdy Tellez | B45: Tor - 1B | C45: 1741 | D45: -/- | E45: - | F45: - | G45: - | H45: - | I45: -
A46: Ryan O'Hearn | B46: KC - 1B | C46: 1749 | D46: -/- | E46: - | F46: - | G46: - | H46: - | I46: -
A47: Nick Pratto | B47: KC - 1B | C47: 1756 | D47: -/- | E47: - | F47: - | G47: - | H47: - | I47: -
A48: Ronald Guzman | B48: Tex - 1B | C48: 1766 | D48: -/- | E48: - | F48: - | G48: - | H48: - | I48: -
A49: Josh Ockimey | B49: Bos - 1B | C49: 1800 | D49: -/- | E49: - | F49: - | G49: - | H49: - | I49: -
A50: Jake Bauers | B50: TB - 1B | C50: 1806 | D50: -/- | E50: - | F50: - | G50: - | H50: - | I50: -
A51: Matt Thaiss | B51: LAA - 1B | C51: 1818 | D51: -/- | E51: - | F51: - | G51: - | H51: - | I51: -
A52: Casey Gillaspie | B52: CWS - 1B | C52: 1824 | D52: -/- | E52: - | F52: - | G52: - | H52: - | I52: -
A53: Daniel Vogelbach | B53: Sea - 1B | C53: 1851 | D53: 6/28 | E53: 0 | F53: 0 | G53: 2 | H53: 0 | I53: .214

Sheet 2nd Base
A1: Player | B1: Team | C1: Rank | D1: H/AB | E1: R | F1: HR | G1: RBI | H1: SB | I1: Avg.
A2: Dee Gordon | B2: Sea - 2B | C2: 36 | D2: 201/653 | E2: 114 | F2: 2 | G2: 33 | H2: 60 | I2: .308
A3: Ian Kinsler | B3: LAA - 2B | C3: 143 | D3: 130/551 | E3: 90 | F3: 22 | G3: 52 | H3: 14 | I3: .236
A4: Jason Kipnis | B4: Cle - 2B,OF | C4: 190 | D4: 78/336 | E4: 43 | F4: 12 | G4: 35 | H4: 6 | I4: .232
A5: Dustin Pedroia | B5: Bos - 2B | C5: 220 | D5: 119/406 | E5: 46 | F5: 7 | G5: 62 | H5: 4 | I5: .293
A6: Neil Walker | B6: NYY - 1B,2B | C6: 255 | D6: 102/385 | E6: 59 | F6: 14 | G6: 49 | H6: 0 | I6: .265
A7: Devon Travis | B7: Tor - 2B | C7: 307 | D7: 48/185 | E7: 22 | F7: 5 | G7: 24 | H7: 4 | I7: .259
A8: Jed Lowrie | B8: Oak - 2B | C8: 329 | D8: 157/567 | E8: 86 | F8: 14 | G8: 69 | H8: 0 | I8: .277
A9: Adalberto Mondesi | B9: KC - 2B | C9: 343 | D9: 9/53 | E9: 4 | F9: 1 | G9: 3 | H9: 5 | I9: .170
A10: Brandon Phillips | B10: LAA - 2B,3B | C10: 362 | D10: 163/572 | E10: 81 | F10: 13 | G10: 60 | H10: 11 | I10: .285
A11: Eduardo Escobar | B11: Min - 2B,3B,SS | C11: 449 | D11: 116/457 | E11: 62 | F11: 21 | G11: 73 | H11: 5 | I11: .254
A12: Yangervis Solarte | B12: Tor - 2B,3B,SS | C12: 473 | D12: 119/466 | E12: 49 | F12: 18 | G12: 64 | H12: 3 | I12: .255
A13: Yolmer Sánchez | B13: CWS - 2B,3B | C13: 541 | D13: 129/484 | E13: 63 | F13: 12 | G13: 59 | H13: 8 | I13: .267
A14: Brandon Drury | B14: NYY - 2B | C14: 562 | D14: 119/445 | E14: 41 | F14: 13 | G14: 63 | H14: 1 | I14: .267
A15: Ronald Torreyes | B15: NYY - 2B,3B,SS | C15: 1251 | D15: 92/315 | E15: 35 | F15: 3 | G15: 36 | H15: 2 | I15: .292
A16: Chad Pinder | B16: Oak - 2B,SS,OF | C16: 1256 | D16: 67/282 | E16: 36 | F16: 15 | G16: 42 | H16: 2 | I16: .238
A17: Ryan Goins | B17: KC - 2B,SS | C17: 1260 | D17: 99/418 | E17: 37 | F17: 9 | G17: 62 | H17: 3 | I17: .237
A18: Andrew Romine | B18: Sea - 1B,2B,3B,SS,OF | C18: 1289 | D18: 74/318 | E18: 45 | F18: 4 | G18: 25 | H18: 6 | I18: .233
A19: Darwin Barney | B19: Tex - 2B,3B,SS | C19: 1297 | D19: 78/336 | E19: 34 | F19: 6 | G19: 25 | H19: 7 | I19: .232
A20: Danny Espinosa | B20: NYY - 2B | C20: 1314 | D20: 46/266 | E20: 30 | F20: 6 | G20: 31 | H20: 4 | I20: .173
A21: Taylor Motter | B21: Sea - 1B,2B,SS,OF | C21: 1330 | D21: 51/258 | E21: 29 | F21: 7 | G21: 26 | H21: 12 | I21: .198
A22: Deven Marrero | B22: Bos - 2B,3B | C22: 1339 | D22: 36/171 | E22: 32 | F22: 4 | G22: 27 | H22: 5 | I22: .211
A23: Alexi Amarista | B23: Det - 2B,SS,OF | C23: 1364 | D23: 40/168 | E23: 22 | F23: 3 | G23: 19 | H23: 1 | I23: .238
A24: Jace Peterson | B24: NYY - 1B,2B,3B,OF | C24: 1374 | D24: 40/186 | E24: 15 | F24: 2 | G24: 17 | H24: 3 | I24: .215
A25: Erik González | B25: Cle - 2B,SS | C25: 1390 | D25: 28/110 | E25: 18 | F25: 4 | G25: 11 | H25: 1 | I25: .255
A26: Kaleb Cowart | B26: LAA - 2B,3B | C26: 1393 | D26: 23/102 | E26: 18 | F26: 3 | G26: 11 | H26: 4 | I26: .225
A27: Brock Holt | B27: Bos - 2B,3B,OF | C27: 1396 | D27: 28/140 | E27: 20 | F27: 0 | G27: 7 | H27: 2 | I27: .200
A28: Dixon Machado | B28: Det - 2B,SS | C28: 1418 | D28: 43/166 | E28: 17 | F28: 1 | G28: 11 | H28: 1 | I28: .259
A29: Tyler Saladino | B29: CWS - 2B,3B,SS | C29: 1420 | D29: 45/253 | E29: 23 | F29: 0 | G29: 10 | H29: 5 | I29: .178
A30: Daniel Robertson | B30: TB - 2B,3B,SS | C30: 1421 | D30: 45/218 | E30: 22 | F30: 5 | G30: 19 | H30: 1 | I30: .206
A31: Brett Lawrie | B31: CWS - 2B | C31: 1441 | D31: -/- | E31: - | F31: - | G31: - | H31: - | I31: -
A32: Matt Duffy | B32: TB - 2B,3B | C32: 1444 | D32: -/- | E32: - | F32: - | G32: - | H32: - | I32: -
A33: Joey Wendle | B33: TB - 2B | C33: 1463 | D33: 4/13 | E33: 3 | F33: 1 | G33: 5 | H33: 0 | I33: .308
A34: Taylor Featherston | B34: Min - 2B | C34: 1490 | D34: 7/39 | E34: 6 | F34: 2 | G34: 6 | H34: 1 | I34: .179
A35: Gift Ngoepe | B35: Tor - 2B | C35: 1492 | D35: 12/54 | E35: 10 | F35: 0 | G35: 6 | H35: 0 | I35: .222
A36: Ramón Torres | B36: KC - 2B,3B | C36: 1493 | D36: 18/74 | E36: 9 | F36: 0 | G36: 4 | H36: 1 | I36: .243
A37: Tzu-Wei Lin | B37: Bos - 2B,3B,SS | C37: 1496 | D37: 15/56 | E37: 7 | F37: 0 | G37: 2 | H37: 1 | I37: .268
A38: Rob Refsnyder | B38: Cle - 2B,OF | C38: 1515 | D38: 15/88 | E38: 8 | F38: 0 | G38: 0 | H38: 4 | I38: .170
A39: Travis Blankenhorn | B39: Min - 2B | C39: 1628 | D39: -/- | E39: - | F39: - | G39: - | H39: - | I39: -
A40: Willi Castro | B40: Cle - 2B,SS | C40: 1667 | D40: -/- | E40: - | F40: - | G40: - | H40: - | I40: -
A41: Nick Solak | B41: TB - 2B | C41: 1778 | D41: -/- | E41: - | F41: - | G41: - | H41: - | I41: -
A42: Jonathan Arauz | B42: Hou - 2B,SS | C42: 1792 | D42: -/- | E42: - | F42: - | G42: - | H42: - | I42: -
A43: Andy Ibanez | B43: Tex - 2B | C43: 1794 | D43: -/- | E43: - | F43: - | G43: - | H43: - | I43: -
A44: Max Schrock | B44: Oak - 2B | C44: 1799 | D44: -/- | E44: - | F44: - | G44: - | H44: - | I44: -
A45: Tyler Wade | B45: NYY - 2B | C45: 1835 | D45: 9/58 | E45: 7 | F45: 0 | G45: 2 | H45: 1 | I45: .155
A46: Hanser Alberto | B46: Tex - 2B,SS | C46: 1837 | D46: -/- | E46: - | F46: - | G46: - | H46: - | I46: -
A47: Michael Martínez | B47: Cle - 2B | C47: 1842 | D47: 6/37 | E47: 2 | F47: 0 | G47: 0 | H47: 0 | I47: .162
A48: Nolan Fontana | B48: LAA - 2B | C48: 1847 | D48: 1/20 | E48: 1 | F48: 1 | G48: 1 | H48: 1 | I48: .050
A49: Steve Lombardozzi | B49: Oak - 2B | C49: 1866 | D49: 0/8 | E49: 0 | F49: 0 | G49: 0 | H49: 0 | I49: .000
A50: Niko Goodrum | B50: Det - 2B | C50: 1868 | D50: 1/17 | E50: 1 | F50: 0 | G50: 0 | H50: 0 | I50: .059

Sheet 3rd Base
A1: Player | B1: Team | C1: Rank | D1: H/AB | E1: R | F1: HR | G1: RBI | H1: SB | I1: Avg.
A2: Manny Machado | B2: Bal - 3B | C2: 22 | D2: 163/630 | E2: 81 | F2: 33 | G2: 95 | H2: 9 | I2: .259
A3: Josh Donaldson | B3: Tor - 3B | C3: 30 | D3: 112/415 | E3: 65 | F3: 33 | G3: 78 | H3: 2 | I3: .270
A4: Adrián Béltre | B4: Tex - 3B | C4: 96 | D4: 106/340 | E4: 47 | F4: 17 | G4: 71 | H4: 1 | I4: .312
A5: Kyle Seager | B5: Sea - 3B | C5: 102 | D5: 144/578 | E5: 72 | F5: 27 | G5: 88 | H5: 2 | I5: .249
A6: Matt Chapman | B6: Oak - 3B | C6: 252 | D6: 68/290 | E6: 39 | F6: 14 | G6: 40 | H6: 0 | I6: .234
A7: Russell Martin | B7: Tor - C,3B | C7: 290 | D7: 68/307 | E7: 49 | F7: 13 | G7: 35 | H7: 1 | I7: .221
A8: Brandon Phillips | B8: LAA - 2B,3B | C8: 362 | D8: 163/572 | E8: 81 | F8: 13 | G8: 60 | H8: 11 | I8: .285
A9: Eduardo Escobar | B9: Min - 2B,3B,SS | C9: 449 | D9: 116/457 | E9: 62 | F9: 21 | G9: 73 | H9: 5 | I9: .254
A10: Yangervis Solarte | B10: Tor - 2B,3B,SS | C10: 473 | D10: 119/466 | E10: 49 | F10: 18 | G10: 64 | H10: 3 | I10: .255
A11: Yolmer Sánchez | B11: CWS - 2B,3B | C11: 541 | D11: 129/484 | E11: 63 | F11: 12 | G11: 59 | H11: 8 | I11: .267
A12: Brandon Drury | B12: NYY - 2B | C12: 563 | D12: 102/385 | E12: 59 | F12: 14 | G12: 49 | H12: 0 | I12: .265
A13: Luis Valbuena | B13: LAA - 1B,3B | C13: 1144 | D13: 69/347 | E13: 42 | F13: 22 | G13: 65 | H13: 0 | I13: .199
A14: Yunel Escobar | B14: LAA - 3B | C14: 1157 | D14: 96/350 | E14: 43 | F14: 7 | G14: 31 | H14: 1 | I14: .274
A15: Ronald Torreyes | B15: NYY - 2B,3B,SS | C15: 1251 | D15: 92/315 | E15: 35 | F15: 3 | G15: 36 | H15: 2 | I15: .292
A16: Andrew Romine | B16: Sea - 1B,2B,3B,SS,OF | C16: 1289 | D16: 74/318 | E16: 45 | F16: 4 | G16: 25 | H16: 6 | I16: .233
A17: Darwin Barney | B17: Tex - 2B,3B,SS | C17: 1297 | D17: 78/336 | E17: 34 | F17: 6 | G17: 25 | H17: 7 | I17: .232
A18: Ehire Adrianza | B18: Min - 3B,SS,OF | C18: 1300 | D18: 43/162 | E18: 30 | F18: 2 | G18: 24 | H18: 8 | I18: .265
A19: Ryan Schimpf | B19: Atl - 3B | C19: 1306 | D19: 26/165 | E19: 24 | F19: 14 | G19: 25 | H19: 0 | I19: .158
A20: Deven Marrero | B20: Bos - 2B,3B | C20: 1339 | D20: 36/171 | E20: 32 | F20: 4 | G20: 27 | H20: 5 | I20: .211
A21: Trevor Plouffe | B21: Tex - 1B,3B | C21: 1341 | D21: 56/283 | E21: 31 | F21: 9 | G21: 19 | H21: 1 | I21: .198
A22: Cheslor Cuthbert | B22: KC - 3B | C22: 1358 | D22: 33/143 | E22: 10 | F22: 2 | G22: 18 | H22: 0 | I22: .231
A23: Jace Peterson | B23: NYY - 1B,2B,3B,OF | C23: 1374 | D23: 40/186 | E23: 15 | F23: 2 | G23: 17 | H23: 3 | I23: .215
A24: Yandy Díaz | B24: Cle - 3B | C24: 1377 | D24: 41/156 | E24: 25 | F24: 0 | G24: 13 | H24: 2 | I24: .263
A25: Kaleb Cowart | B25: LAA - 2B,3B | C25: 1393 | D25: 23/102 | E25: 18 | F25: 3 | G25: 11 | H25: 4 | I25: .225
A26: Jefry Marte | B26: LAA - 1B,3B | C26: 1395 | D26: 22/127 | E26: 10 | F26: 4 | G26: 14 | H26: 1 | I26: .173
A27: Brock Holt | B27: Bos - 2B,3B,OF | C27: 1396 | D27: 28/140 | E27: 20 | F27: 0 | G27: 7 | H27: 2 | I27: .200
A28: Tyler Saladino | B28: CWS - 2B,3B,SS | C28: 1420 | D28: 45/253 | E28: 23 | F28: 0 | G28: 10 | H28: 5 | I28: .178
A29: Daniel Robertson | B29: TB - 2B,3B,SS | C29: 1421 | D29: 45/218 | E29: 22 | F29: 5 | G29: 19 | H29: 1 | I29: .206
A30: Drew Robinson | B30: Tex - 3B,OF | C30: 1423 | D30: 24/107 | E30: 11 | F30: 6 | G30: 13 | H30: 0 | I30: .224
A31: Matt Duffy | B31: TB - 2B,3B | C31: 1444 | D31: -/- | E31: - | F31: - | G31: - | H31: - | I31: -
A32: J.D. Davis | B32: Hou - 3B | C32: 1447 | D32: 14/62 | E32: 8 | F32: 4 | G32: 7 | H32: 1 | I32: .226
A33: Giovanny Urshela | B33: Cle - 3B | C33: 1462 | D33: 35/156 | E33: 14 | F33: 1 | G33: 15 | H33: 0 | I33: .224
A34: Marco Hernández | B34: Bos - 3B,SS | C34: 1474 | D34: 16/58 | E34: 7 | F34: 0 | G34: 2 | H34: 0 | I34: .276
A35: Chris Coghlan | B35: Tor - 3B,OF | C35: 1480 | D35: 15/75 | E35: 7 | F35: 1 | G35: 5 | H35: 0 | I35: .200
A36: Christian Arroyo | B36: TB - 3B,SS | C36: 1489 | D36: 24/125 | E36: 9 | F36: 3 | G36: 14 | H36: 1 | I36: .192
A37: Ramón Torres | B37: KC - 2B,3B | C37: 1493 | D37: 18/74 | E37: 9 | F37: 0 | G37: 4 | H37: 1 | I37: .243
A38: Tzu-Wei Lin | B38: Bos - 2B,3B,SS | C38: 1496 | D38: 15/56 | E38: 7 | F38: 0 | G38: 2 | H38: 1 | I38: .268
A39: Miguel Andújar | B39: NYY - 3B | C39: 1508 | D39: 4/7 | E39: 0 | F39: 0 | G39: 4 | H39: 1 | I39: .571
A40: Chris Johnson | B40: Bal - 1B,3B | C40: 1529 | D40: -/- | E40: - | F40: - | G40: - | H40: - | I40: -
A41: Steve Selsky | B41: Bos - 3B | C41: 1553 | D41: 1/9 | E41: 0 | F41: 0 | G41: 0 | H41: 0 | I41: .111
A42: Richie Shaffer | B42: Cle - 1B,3B | C42: 1568 | D42: -/- | E42: - | F42: - | G42: - | H42: - | I42: -
A43: Hunter Dozier | B43: KC - 3B | C43: 1591 | D43: -/- | E43: - | F43: - | G43: - | H43: - | I43: -
A44: Josh Lowe | B44: TB - 3B | C44: 1609 | D44: -/- | E44: - | F44: - | G44: - | H44: - | I44: -
A45: Jomar Reyes | B45: Bal - 3B | C45: 1630 | D45: -/- | E45: - | F45: - | G45: - | H45: - | I45: -
A46: Vladimir Guerrero Jr. | B46: Tor - 3B | C46: 1650 | D46: -/- | E46: - | F46: - | G46: - | H46: - | I46: -
A47: Nolan Jones | B47: Cle - 3B | C47: 1659 | D47: -/- | E47: - | F47: - | G47: - | H47: - | I47: -
A48: Sheldon Neuse | B48: Oak - 3B | C48: 1720 | D48: -/- | E48: - | F48: - | G48: - | H48: - | I48: -
A49: Joe Rizzo | B49: Sea - 3B | C49: 1722 | D49: -/- | E49: - | F49: - | G49: - | H49: - | I49: -
A50: Michael Chavis | B50: Bos - 3B | C50: 1733 | D50: -/- | E50: - | F50: - | G50: - | H50: - | I50: -
A51: Dawel Lugo | B51: Det - 3B,SS | C51: 1746 | D51: -/- | E51: - | F51: - | G51: - | H51: - | I51: -
A52: Trey Michalczewski | B52: CWS - 3B | C52: 1790 | D52: -/- | E52: - | F52: - | G52: - | H52: - | I52: -
A53: Jake Burger | B53: CWS - 3B | C53: 1815 | D53: -/- | E53: - | F53: - | G53: - | H53: - | I53: -
A54: Pete Kozma | B54: Det - 3B,SS | C54: 1854 | D54: 5/45 | E54: 6 | F54: 1 | G54: 2 | H54: 0 | I54: .111

Sheet Short Stop
A1: Player | B1: Team | C1: Rank | D1: H/AB | E1: R | F1: HR | G1: RBI | H1: SB | I1: Avg.
A2: Elvis Andrus | B2: Tex - SS | C2: 60 | D2: 191/643 | E2: 100 | F2: 20 | G2: 88 | H2: 25 | I2: .297
A3: Jean Segura | B3: Sea - SS | C3: 90 | D3: 157/524 | E3: 80 | F3: 11 | G3: 45 | H3: 22 | I3: .300
A4: Andrelton Simmons | B4: LAA - SS | C4: 198 | D4: 164/589 | E4: 77 | F4: 14 | G4: 69 | H4: 19 | I4: .278
A5: Zack Cozart | B5: LAA - SS | C5: 225 | D5: 130/438 | E5: 80 | F5: 24 | G5: 63 | H5: 3 | I5: .297
A6: Jorge Polanco | B6: Min - SS | C6: 267 | D6: 125/488 | E6: 60 | F6: 13 | G6: 74 | H6: 13 | I6: .256
A7: Eduardo Escobar | B7: Min - 2B,3B,SS | C7: 449 | D7: 116/457 | E7: 62 | F7: 21 | G7: 73 | H7: 5 | I7: .254
A8: Yangervis Solarte | B8: Tor - 2B,3B,SS | C8: 473 | D8: 119/466 | E8: 49 | F8: 18 | G8: 64 | H8: 3 | I8: .255
A9: Alcides Escobar | B9: KC - SS | C9: 609 | D9: 150/599 | E9: 71 | F9: 6 | G9: 54 | H9: 4 | I9: .250
A10: José Iglesias | B10: Det - SS | C10: 979 | D10: 118/463 | E10: 56 | F10: 6 | G10: 54 | H10: 7 | I10: .255
A11: Aledmys Díaz | B11: Tor - SS | C11: 1219 | D11: 74/286 | E11: 31 | F11: 7 | G11: 20 | H11: 4 | I11: .259
A12: Adeiny Hechavarria | B12: TB - SS | C12: 1250 | D12: 86/330 | E12: 37 | F12: 8 | G12: 30 | H12: 4 | I12: .261
A13: Ronald Torreyes | B13: NYY - 2B,3B,SS | C13: 1251 | D13: 92/315 | E13: 35 | F13: 3 | G13: 36 | H13: 2 | I13: .292
A14: Chad Pinder | B14: Oak - 2B,SS,OF | C14: 1256 | D14: 67/282 | E14: 36 | F14: 15 | G14: 42 | H14: 2 | I14: .238
A15: Ryan Goins | B15: KC - 2B,SS | C15: 1260 | D15: 99/418 | E15: 37 | F15: 9 | G15: 62 | H15: 3 | I15: .237
A16: Erick Aybar | B16: Min - SS | C16: 1273 | D16: 78/333 | E16: 37 | F16: 7 | G16: 22 | H16: 11 | I16: .234
A17: Troy Tulowitzki | B17: Tor - SS | C17: 1282 | D17: 60/241 | E17: 16 | F17: 7 | G17: 26 | H17: 0 | I17: .249
A18: Andrew Romine | B18: Sea - 1B,2B,3B,SS,OF | C18: 1289 | D18: 74/318 | E18: 45 | F18: 4 | G18: 25 | H18: 6 | I18: .233
A19: Darwin Barney | B19: Tex - 2B,3B,SS | C19: 1297 | D19: 78/336 | E19: 34 | F19: 6 | G19: 25 | H19: 7 | I19: .232
A20: Ehire Adrianza | B20: Min - 3B,SS,OF | C20: 1300 | D20: 43/162 | E20: 30 | F20: 2 | G20: 24 | H20: 8 | I20: .265
A21: Taylor Motter | B21: Sea - 1B,2B,SS,OF | C21: 1330 | D21: 51/258 | E21: 29 | F21: 7 | G21: 26 | H21: 12 | I21: .198
A22: J.J. Hardy | B22: Bal - SS | C22: 1344 | D22: 55/254 | E22: 24 | F22: 4 | G22: 24 | H22: 0 | I22: .217
A23: Alexi Amarista | B23: Det - 2B,SS,OF | C23: 1364 | D23: 40/168 | E23: 22 | F23: 3 | G23: 19 | H23: 1 | I23: .238
A24: Erik González | B24: Cle - 2B,SS | C24: 1390 | D24: 28/110 | E24: 18 | F24: 4 | G24: 11 | H24: 1 | I24: .255
A25: Dixon Machado | B25: Det - 2B,SS | C25: 1418 | D25: 43/166 | E25: 17 | F25: 1 | G25: 11 | H25: 1 | I25: .259
A26: Tyler Saladino | B26: CWS - 2B,3B,SS | C26: 1420 | D26: 45/253 | E26: 23 | F26: 0 | G26: 10 | H26: 5 | I26: .178
A27: Daniel Robertson | B27: TB - 2B,3B,SS | C27: 1421 | D27: 45/218 | E27: 22 | F27: 5 | G27: 19 | H27: 1 | I27: .206
A28: Marco Hernández | B28: Bos - 3B,SS | C28: 1474 | D28: 16/58 | E28: 7 | F28: 0 | G28: 2 | H28: 0 | I28: .276
A29: Rubén Tejada | B29: Bal - SS | C29: 1475 | D29: 26/113 | E29: 17 | F29: 0 | G29: 5 | H29: 0 | I29: .230
A30: Christian Arroyo | B30: TB - 3B,SS | C30: 1489 | D30: 24/125 | E30: 9 | F30: 3 | G30: 14 | H30: 1 | I30: .192
A31: Tzu-Wei Lin | B31: Bos - 2B,3B,SS | C31: 1496 | D31: 15/56 | E31: 7 | F31: 0 | G31: 2 | H31: 1 | I31: .268
A32: Richard Ureña | B32: Tor - SS | C32: 1537 | D32: 14/68 | E32: 6 | F32: 1 | G32: 4 | H32: 1 | I32: .206
A33: Royce Lewis | B33: Min - SS | C33: 1613 | D33: -/- | E33: - | F33: - | G33: - | H33: - | I33: -
A34: Lucius Fox | B34: TB - SS | C34: 1615 | D34: -/- | E34: - | F34: - | G34: - | H34: - | I34: -
A35: Andrew Velazquez | B35: TB - SS | C35: 1618 | D35: -/- | E35: - | F35: - | G35: - | H35: - | I35: -
A36: Thairo Estrada | B36: NYY - SS | C36: 1647 | D36: -/- | E36: - | F36: - | G36: - | H36: - | I36: -
A37: Willi Castro | B37: Cle - 2B,SS | C37: 1667 | D37: -/- | E37: - | F37: - | G37: - | H37: - | I37: -
A38: Richie Martin | B38: Oak - SS | C38: 1671 | D38: -/- | E38: - | F38: - | G38: - | H38: - | I38: -
A39: Miguelangel Sierra | B39: Hou - SS | C39: 1675 | D39: -/- | E39: - | F39: - | G39: - | H39: - | I39: -
A40: Éngelb Vielma | B40: Bal - SS | C40: 1686 | D40: -/- | E40: - | F40: - | G40: - | H40: - | I40: -
A41: Logan Warmoth | B41: Tor - SS | C41: 1695 | D41: -/- | E41: - | F41: - | G41: - | H41: - | I41: -
A42: Roberto Baldoquín | B42: LAA - SS | C42: 1711 | D42: -/- | E42: - | F42: - | G42: - | H42: - | I42: -
A43: Nonie Williams | B43: LAA - SS | C43: 1712 | D43: -/- | E43: - | F43: - | G43: - | H43: - | I43: -
A44: Ryan Mountcastle | B44: Bal - SS | C44: 1717 | D44: -/- | E44: - | F44: - | G44: - | H44: - | I44: -
A45: Isaac Paredes | B45: Det - SS | C45: 1742 | D45: -/- | E45: - | F45: - | G45: - | H45: - | I45: -
A46: Dawel Lugo | B46: Det - 3B,SS | C46: 1746 | D46: -/- | E46: - | F46: - | G46: - | H46: - | I46: -
A47: Bo Bichette | B47: Tor - SS | C47: 1747 | D47: -/- | E47: - | F47: - | G47: - | H47: - | I47: -
A48: Nick Gordon | B48: Min - SS | C48: 1748 | D48: -/- | E48: - | F48: - | G48: - | H48: - | I48: -
A49: Chris Seise | B49: Tex - SS | C49: 1769 | D49: -/- | E49: - | F49: - | G49: - | H49: - | I49: -
A50: Wander Javier | B50: Min - SS | C50: 1774 | D50: -/- | E50: - | F50: - | G50: - | H50: - | I50: -
A51: Carlos Vargas | B51: TB - SS | C51: 1788 | D51: -/- | E51: - | F51: - | G51: - | H51: - | I51: -
A52: Jonathan Arauz | B52: Hou - 2B,SS | C52: 1792 | D52: -/- | E52: - | F52: - | G52: - | H52: - | I52: -
A53: Yu Chang | B53: Cle - SS | C53: 1798 | D53: -/- | E53: - | F53: - | G53: - | H53: - | I53: -
A54: Jorge Mateo | B54: Oak - SS | C54: 1808 | D54: -/- | E54: - | F54: - | G54: - | H54: - | I54: -
A55: David Fletcher | B55: LAA - SS | C55: 1810 | D55: -/- | E55: - | F55: - | G55: - | H55: - | I55: -
A56: Brendan Ryan | B56: Det - SS | C56: 1834 | D56: -/- | E56: - | F56: - | G56: - | H56: - | I56: -
A57: Hanser Alberto | B57: Tex - 2B,SS | C57: 1837 | D57: -/- | E57: - | F57: - | G57: - | H57: - | I57: -
A58: José Rondón | B58: CWS - SS | C58: 1838 | D58: -/- | E58: - | F58: - | G58: - | H58: - | I58: -
A59: Pete Kozma | B59: Det - 3B,SS | C59: 1854 | D59: 5/45 | E59: 6 | F59: 1 | G59: 2 | H59: 0 | I59: .111

Sheet Outfield
A1: Player | B1: Team | C1: Rank | D1: H/AB | E1: R | F1: HR | G1: RBI | H1: SB | I1: Avg.
A2: Giancarlo Stanton | B2: NYY - OF | C2: 10 | D2: 168/597 | E2: 123 | F2: 59 | G2: 132 | H2: 2 | I2: .281
A3: J.D. Martinez | B3: Bos - OF | C3: 16 | D3: 131/432 | E3: 85 | F3: 45 | G3: 104 | H3: 4 | I3: .303
A4: George Springer | B4: Hou - OF | C4: 23 | D4: 155/548 | E4: 112 | F4: 34 | G4: 85 | H4: 5 | I4: .283
A5: Nelson Cruz | B5: Sea - OF | C5: 37 | D5: 160/556 | E5: 91 | F5: 39 | G5: 119 | H5: 1 | I5: .288
A6: Khris Davis | B6: Oak - OF | C6: 65 | D6: 140/566 | E6: 91 | F6: 43 | G6: 110 | H6: 4 | I6: .247
A7: Adam Jones | B7: Bal - OF | C7: 94 | D7: 170/597 | E7: 82 | F7: 26 | G7: 73 | H7: 2 | I7: .285
A8: Eddie Rosario | B8: Min - OF | C8: 137 | D8: 157/542 | E8: 79 | F8: 27 | G8: 78 | H8: 9 | I8: .290
A9: Avisaíl García | B9: CWS - OF | C9: 166 | D9: 171/518 | E9: 75 | F9: 18 | G9: 80 | H9: 5 | I9: .330
A10: Jason Kipnis | B10: Cle - 2B,OF | C10: 190 | D10: 78/336 | E10: 43 | F10: 12 | G10: 35 | H10: 6 | I10: .232
A11: Aaron Hicks | B11: NYY - OF | C11: 213 | D11: 80/301 | E11: 54 | F11: 15 | G11: 52 | H11: 10 | I11: .266
A12: Shin-soo Choo | B12: Tex - OF | C12: 214 | D12: 142/544 | E12: 96 | F12: 22 | G12: 78 | H12: 12 | I12: .261
A13: Max Kepler | B13: Min - OF | C13: 234 | D13: 124/511 | E13: 67 | F13: 19 | G13: 69 | H13: 6 | I13: .243
A14: Stephen Piscotty | B14: Oak - OF | C14: 239 | D14: 80/341 | E14: 40 | F14: 9 | G14: 39 | H14: 3 | I14: .235
A15: Michael Brantley | B15: Cle - OF | C15: 241 | D15: 101/338 | E15: 47 | F15: 9 | G15: 52 | H15: 11 | I15: .299
A16: Kole Calhoun | B16: LAA - OF | C16: 247 | D16: 139/569 | E16: 77 | F16: 19 | G16: 71 | H16: 5 | I16: .244
A17: Mallex Smith | B17: TB - OF | C17: 258 | D17: 69/256 | E17: 33 | F17: 2 | G17: 12 | H17: 16 | I17: .270
A18: Willie Calhoun | B18: Tex - OF | C18: 266 | D18: 9/34 | E18: 3 | F18: 1 | G18: 4 | H18: 0 | I18: .265
A19: José Bautista | B19: Tor - OF | C19: 304 | D19: 119/587 | E19: 92 | F19: 23 | G19: 65 | H19: 6 | I19: .203
A20: Teoscar Hernández | B20: Tor - OF | C20: 319 | D20: 23/88 | E20: 16 | F20: 8 | G20: 20 | H20: 0 | I20: .261
A21: Carlos Gómez | B21: TB - OF | C21: 326 | D21: 94/368 | E21: 51 | F21: 17 | G21: 51 | H21: 13 | I21: .255
A22: Melky Cabrera | B22: KC - OF | C22: 341 | D22: 177/620 | E22: 78 | F22: 17 | G22: 85 | H22: 1 | I22: .285
A23: Randal Grichuk | B23: Tor - OF | C23: 346 | D23: 98/412 | E23: 53 | F23: 22 | G23: 59 | H23: 6 | I23: .238
A24: Matt Joyce | B24: Oak - OF | C24: 402 | D24: 114/469 | E24: 78 | F24: 25 | G24: 68 | H24: 4 | I24: .243
A25: Denard Span | B25: TB - OF | C25: 407 | D25: 135/497 | E25: 73 | F25: 12 | G25: 43 | H25: 12 | I25: .272
A26: Jacoby Ellsbury | B26: NYY - OF | C26: 412 | D26: 94/356 | E26: 65 | F26: 7 | G26: 39 | H26: 22 | I26: .264
A27: Curtis Granderson | B27: Tor - OF | C27: 415 | D27: 95/449 | E27: 74 | F27: 26 | G27: 64 | H27: 6 | I27: .212
A28: Danny Valencia | B28: Bal - 1B,OF | C28: 468 | D28: 115/450 | E28: 54 | F28: 15 | G28: 66 | H28: 2 | I28: .256
A29: Rajai Davis | B29: Cle - OF | C29: 483 | D29: 79/336 | E29: 56 | F29: 5 | G29: 20 | H29: 29 | I29: .235
A30: Adam Lind | B30: NYY - 1B,OF | C30: 506 | D30: 81/267 | E30: 39 | F30: 14 | G30: 59 | H30: 1 | I30: .303
A31: Ben Gamel | B31: Sea - OF | C31: 552 | D31: 140/509 | E31: 68 | F31: 11 | G31: 59 | H31: 4 | I31: .275
A32: Jon Jay | B32: KC - OF | C32: 600 | D32: 12/379 | E32: 65 | F32: 2 | G32: 34 | H32: 6 | I32: .296
A33: Lonnie Chisenhall | B33: Cle - OF | C33: 639 | D33: 68/236 | E33: 34 | F33: 12 | G33: 53 | H33: 2 | I33: .288
A34: Robbie Grossman | B34: Min - OF | C34: 1005 | D34: 94/382 | E34: 62 | F34: 9 | G34: 45 | H34: 3 | I34: .246
A35: Jake Marisnick | B35: Hou - OF | C35: 1042 | D35: 56/230 | E35: 50 | F35: 16 | G35: 35 | H35: 9 | I35: .243
A36: Seth Smith | B36: Bal - OF | C36: 1053 | D36: 85/330 | E36: 50 | F36: 13 | G36: 32 | H36: 2 | I36: .258
A37: Mikie Mahtook | B37: Det - OF | C37: 1131 | D37: 96/348 | E37: 50 | F37: 12 | G37: 38 | H37: 6 | I37: .276
A38: Ezequiel Carrera | B38: Tor - OF | C38: 1184 | D38: 81/287 | E38: 38 | F38: 8 | G38: 20 | H38: 10 | I38: .282
A39: Jorge Bonifacio | B39: KC - OF | C39: 1185 | D39: 98/384 | E39: 55 | F39: 17 | G39: 40 | H39: 1 | I39: .255
A40: Steve Pearce | B40: Tor - 1B,OF | C40: 1214 | D40: 79/313 | E40: 38 | F40: 13 | G40: 37 | H40: 0 | I40: .252
A41: Leury García | B41: CWS - OF | C41: 1225 | D41: 81/300 | E41: 41 | F41: 9 | G41: 33 | H41: 8 | I41: .270
A42: Alex Gordon | B42: KC - OF | C42: 1246 | D42: 99/476 | E42: 52 | F42: 9 | G42: 45 | H42: 7 | I42: .208
A43: Chad Pinder | B43: Oak - 2B,SS,OF | C43: 1256 | D43: 67/282 | E43: 36 | F43: 15 | G43: 42 | H43: 2 | I43: .238
A44: Alex Presley | B44: Bal - OF | C44: 1271 | D44: 77/245 | E44: 30 | F44: 3 | G44: 20 | H44: 5 | I44: .314
A45: Colby Rasmus | B45: Bal - OF | C45: 1286 | D45: 34/121 | E45: 17 | F45: 9 | G45: 23 | H45: 1 | I45: .281
A46: Andrew Romine | B46: Sea - 1B,2B,3B,SS,OF | C46: 1289 | D46: 74/318 | E46: 45 | F46: 4 | G46: 25 | H46: 6 | I46: .233
A47: Chris Young | B47: LAA - OF | C47: 1291 | D47: 57/243 | E47: 30 | F47: 7 | G47: 25 | H47: 3 | I47: .235
A48: Ehire Adrianza | B48: Min - 3B,SS,OF | C48: 1300 | D48: 43/162 | E48: 30 | F48: 2 | G48: 24 | H48: 8 | I48: .265
A49: Joey Rickard | B49: Bal - OF | C49: 1301 | D49: 63/261 | E49: 29 | F49: 4 | G49: 19 | H49: 8 | I49: .241
A50: Eric Young Jr. | B50: LAA - OF | C50: 1304 | D50: 29/110 | E50: 24 | F50: 4 | G50: 16 | H50: 12 | I50: .264
A51: Guillermo Heredia | B51: Sea - OF | C51: 1307 | D51: 96/386 | E51: 43 | F51: 6 | G51: 24 | H51: 1 | I51: .249
A52: Michael Saunders | B52: KC - OF | C52: 1310 | D52: 44/218 | E52: 26 | F52: 6 | G52: 21 | H52: 0 | I52: .202
A53: Nicky Delmonico | B53: CWS - OF | C53: 1313 | D53: 37/141 | E53: 25 | F53: 9 | G53: 23 | H53: 2 | I53: .262
A54: Brandon Guyer | B54: Cle - OF | C54: 1329 | D54: 39/165 | E54: 23 | F54: 2 | G54: 20 | H54: 2 | I54: .236
A55: Taylor Motter | B55: Sea - 1B,2B,SS,OF | C55: 1330 | D55: 51/258 | E55: 29 | F55: 7 | G55: 26 | H55: 12 | I55: .198
A56: Leonys Martin | B56: Det - OF | C56: 1332 | D56: 22/128 | E56: 14 | F56: 3 | G56: 9 | H56: 7 | I56: .172
A57: Abraham Almonte | B57: Cle - OF | C57: 1348 | D57: 40/172 | E57: 26 | F57: 3 | G57: 14 | H57: 2 | I57: .233
A58: Ryan Rua | B58: Tex - 1B,OF | C58: 1362 | D58: 28/129 | E58: 17 | F58: 3 | G58: 12 | H58: 2 | I58: .217
A59: Alexi Amarista | B59: Det - 2B,SS,OF | C59: 1364 | D59: 40/168 | E59: 22 | F59: 3 | G59: 19 | H59: 1 | I59: .238
A60: Paulo Orlando | B60: KC - OF | C60: 1366 | D60: 17/86 | E60: 9 | F60: 2 | G60: 6 | H60: 1 | I60: .198
A61: Boog Powell | B61: Oak - OF | C61: 1367 | D61: 33/117 | E61: 24 | F61: 3 | G61: 12 | H61: 0 | I61: .282
A62: Melvin Upton Jr. | B62: Cle - OF | C62: 1369 | D62: -/- | E62: - | F62: - | G62: - | H62: - | I62: -
A63: Jace Peterson | B63: NYY - 1B,2B,3B,OF | C63: 1374 | D63: 40/186 | E63: 15 | F63: 2 | G63: 17 | H63: 3 | I63: .215
A64: Craig Gentry | B64: Bal - OF | C64: 1381 | D64: 26/101 | E64: 17 | F64: 2 | G64: 11 | H64: 5 | I64: .257
A65: Derek Fisher | B65: Hou - OF | C65: 1384 | D65: 31/146 | E65: 21 | F65: 5 | G65: 17 | H65: 3 | I65: .212
A66: Jabari Blash | B66: LAA - OF | C66: 1391 | D66: 35/164 | E66: 24 | F66: 5 | G66: 16 | H66: 1 | I66: .213
A67: Tyler Naquin | B67: Cle - OF | C67: 1392 | D67: 8/37 | E67: 4 | F67: 0 | G67: 1 | H67: 0 | I67: .216
A68: Brock Holt | B68: Bos - 2B,3B,OF | C68: 1396 | D68: 28/140 | E68: 20 | F68: 0 | G68: 7 | H68: 2 | I68: .200
A69: Jaycob Brugman | B69: Bal - OF | C69: 1411 | D69: 38/143 | E69: 12 | F69: 3 | G69: 12 | H69: 1 | I69: .266
A70: Michael Bourn | B70: Bal - OF | C70: 1415 | D70: -/- | E70: - | F70: - | G70: - | H70: - | I70: -
A71: Tyler Collins | B71: KC - OF | C71: 1416 | D71: 29/150 | E71: 18 | F71: 5 | G71: 14 | H71: 0 | I71: .193
A72: Zack Granite | B72: Min - OF | C72: 1419 | D72: 22/93 | E72: 14 | F72: 1 | G72: 13 | H72: 2 | I72: .237
A73: Adam Engel | B73: CWS - OF | C73: 1422 | D73: 50/301 | E73: 34 | F73: 6 | G73: 21 | H73: 8 | I73: .166
A74: Drew Robinson | B74: Tex - 3B,OF | C74: 1423 | D74: 24/107 | E74: 11 | F74: 6 | G74: 13 | H74: 0 | I74: .224
A75: Mark Canha | B75: Oak - OF | C75: 1426 | D75: 36/173 | E75: 16 | F75: 5 | G75: 14 | H75: 2 | I75: .208
A76: Willy García | B76: CWS - OF | C76: 1430 | D76: 25/105 | E76: 15 | F76: 2 | G76: 12 | H76: 0 | I76: .238
A77: Jim Adduci | B77: Det - OF | C77: 1436 | D77: 20/83 | E77: 14 | F77: 1 | G77: 10 | H77: 1 | I77: .241
A78: JaCoby Jones | B78: Det - OF | C78: 1448 | D78: 24/141 | E78: 14 | F78: 3 | G78: 13 | H78: 6 | I78: .170
A79: Kirk Nieuwenhuis | B79: Sea - OF | C79: 1454 | D79: 3/26 | E79: 3 | F79: 1 | G79: 1 | H79: 0 | I79: .115
A80: Jurickson Profar | B80: Tex - OF | C80: 1461 | D80: 10/58 | E80: 8 | F80: 0 | G80: 5 | H80: 1 | I80: .172
A81: Billy Burns | B81: KC - OF | C81: 1470 | D81: 1/6 | E81: 1 | F81: 0 | G81: 0 | H81: 0 | I81: .167
A82: Greg Allen | B82: Cle - OF | C82: 1476 | D82: 8/35 | E82: 7 | F82: 1 | G82: 6 | H82: 1 | I82: .229
A83: Brett Eibner | B83: Tex - OF | C83: 1478 | D83: 6/33 | E83: 3 | F83: 2 | G83: 6 | H83: 0 | I83: .182
A84: Chris Coghlan | B84: Tor - 3B,OF | C84: 1480 | D84: 15/75 | E84: 7 | F84: 1 | G84: 5 | H84: 0 | I84: .200
A85: Jorge Soler | B85: KC - OF | C85: 1482 | D85: 14/97 | E85: 7 | F85: 2 | G85: 6 | H85: 0 | I85: .144
A86: Jake Smolinski | B86: Oak - OF | C86: 1486 | D86: 7/27 | E86: 1 | F86: 0 | G86: 0 | H86: 0 | I86: .259
A87: Tony Kemp | B87: Hou - OF | C87: 1487 | D87: 8/37 | E87: 6 | F87: 0 | G87: 4 | H87: 1 | I87: .216
A88: Shane Robinson | B88: NYY - OF | C88: 1488 | D88: 6/31 | E88: 7 | F88: 0 | G88: 1 | H88: 2 | I88: .194
A89: Rymer Liriano | B89: LAA - OF | C89: 1500 | D89: 9/41 | E89: 4 | F89: 1 | G89: 6 | H89: 1 | I89: .220
A90: Chris Heisey | B90: Min - OF | C90: 1502 | D90: 12/74 | E90: 8 | F90: 1 | G90: 5 | H90: 0 | I90: .162
A91: Dwight Smith Jr. | B91: Tor - OF | C91: 1505 | D91: 10/27 | E91: 2 | F91: 0 | G91: 1 | H91: 1 | I91: .370
A92: Rob Refsnyder | B92: Cle - 2B,OF | C92: 1515 | D92: 15/88 | E92: 8 | F92: 0 | G92: 0 | H92: 4 | I92: .170
A93: Darrell Ceciliani | B93: Tor - OF | C93: 1532 | D93: 2/5 | E93: 2 | F93: 1 | G93: 3 | H93: 0 | I93: .400
A94: Cameron Perkins | B94: Sea - OF | C94: 1543 | D94: 16/88 | E94: 9 | F94: 1 | G94: 8 | H94: 0 | I94: .182
A95: Chad Huffman | B95: Det - OF | C95: 1551 | D95: 4/14 | E95: 3 | F95: 0 | G95: 0 | H95: 0 | I95: .286
A96: Renato Núñez | B96: Oak - OF | C96: 1555 | D96: 3/15 | E96: 1 | F96: 1 | G96: 3 | H96: 0 | I96: .200
A97: Micah Johnson | B97: TB - OF | C97: 1558 | D97: 2/10 | E97: 2 | F97: 0 | G97: 0 | H97: 1 | I97: .200
A98: Anthony Santander | B98: Bal - OF | C98: 1565 | D98: 8/30 | E98: 1 | F98: 0 | G98: 2 | H98: 0 | I98: .267
A99: Jason Coats | B99: TB - OF | C99: 1566 | D99: -/- | E99: - | F99: - | G99: - | H99: - | I99: -
A100: Drew Stubbs | B100: Tex - OF | C100: 1580 | D100: 2/22 | E100: 0 | F100: 0 | G100: 0 | H100: 0 | I100: .091
A101: Dalton Pompey | B101: Tor - OF | C101: 1582 | D101: -/- | E101: - | F101: - | G101: - | H101: - | I101: -
A102: Destin Hood | B102: Tex - OF | C102: 1583 | D102: -/- | E102: - | F102: - | G102: - | H102: - | I102: -
A103: Rusney Castillo | B103: Bos - OF | C103: 1590 | D103: -/- | E103: - | F103: - | G103: - | H103: - | I103: -
A104: Charlie Tilson | B104: CWS - OF | C104: 1601 | D104: -/- | E104: - | F104: - | G104: - | H104: - | I104: -
A105: Dariel Álvarez | B105: Bal - OF | C105: 1602 | D105: -/- | E105: - | F105: - | G105: - | H105: - | I105: -
A106: Michael Gigliotti | B106: KC - OF | C106: 1607 | D106: -/- | E106: - | F106: - | G106: - | H106: - | I106: -
A107: Jose Azocar | B107: Det - OF | C107: 1611 | D107: -/- | E107: - | F107: - | G107: - | H107: - | I107: -
A108: Justin Williams | B108: TB - OF | C108: 1623 | D108: -/- | E108: - | F108: - | G108: - | H108: - | I108: -
A109: Lazaro Armenteros | B109: Oak - OF | C109: 1626 | D109: -/- | E109: - | F109: - | G109: - | H109: - | I109: -
A110: Jo Adell | B110: LAA - OF | C110: 1631 | D110: -/- | E110: - | F110: - | G110: - | H110: - | I110: -
A111: Victor Reyes | B111: Det - OF | C111: 1635 | D111: -/- | E111: - | F111: - | G111: - | H111: - | I111: -
A112: Lourdes Gurriel | B112: Tor - OF | C112: 1639 | D112: -/- | E112: - | F112: - | G112: - | H112: - | I112: -
A113: Bubba Thompson | B113: Tex - OF | C113: 1640 | D113: -/- | E113: - | F113: - | G113: - | H113: - | I113: -
A114: Michael Hermosillo | B114: LAA - OF | C114: 1642 | D114: -/- | E114: - | F114: - | G114: - | H114: - | I114: -
A115: Mike Gerber | B115: Det - OF | C115: 1652 | D115: -/- | E115: - | F115: - | G115: - | H115: - | I115: -
A116: Blake Rutherford | B116: NYY - OF | C116: 1674 | D116: -/- | E116: - | F116: - | G116: - | H116: - | I116: -
A117: Austin Beck | B117: Oak - OF | C117: 1680 | D117: -/- | E117: - | F117: - | G117: - | H117: - | I117: -
A118: Daniel Palka | B118: CWS - 1B,OF | C118: 1682 | D118: -/- | E118: - | F118: - | G118: - | H118: - | I118: -
A119: Travis Snider | B119: Tex - OF | C119: 1685 | D119: -/- | E119: - | F119: - | G119: - | H119: - | I119: -
A120: Harold Ramírez | B120: Tor - OF | C120: 1688 | D120: -/- | E120: - | F120: - | G120: - | H120: - | I120: -
A121: Akil Baddoo | B121: Min - OF | C121: 1689 | D121: -/- | E121: - | F121: - | G121: - | H121: - | I121: -
A122: Donnie Dewees | B122: KC - OF | C122: 1694 | D122: -/- | E122: - | F122: - | G122: - | H122: - | I122: -
A123: Jahmai Jones | B123: LAA - OF | C123: 1698 | D123: -/- | E123: - | F123: - | G123: - | H123: - | I123: -
A124: Will Benson | B124: Cle - OF | C124: 1709 | D124: -/- | E124: - | F124: - | G124: - | H124: - | I124: -
A125: Cedric Mullins | B125: Bal - OF | C125: 1710 | D125: -/- | E125: - | F125: - | G125: - | H125: - | I125: -
A126: Eloy Jiménez | B126: CWS - OF | C126: 1715 | D126: -/- | E126: - | F126: - | G126: - | H126: - | I126: -
A127: Mike Yastrzemski | B127: Bal - OF | C127: 1716 | D127: -/- | E127: - | F127: - | G127: - | H127: - | I127: -
A128: Leody Taveras | B128: Tex - OF | C128: 1718 | D128: -/- | E128: - | F128: - | G128: - | H128: - | I128: -
A129: Yordan Álvarez | B129: Hou - OF | C129: 1719 | D129: -/- | E129: - | F129: - | G129: - | H129: - | I129: -
A130: Luis Robert | B130: CWS - OF | C130: 1721 | D130: -/- | E130: - | F130: - | G130: - | H130: - | I130: -
A131: Miguel Aparicio | B131: Tex - OF | C131: 1727 | D131: -/- | E131: - | F131: - | G131: - | H131: - | I131: -
A132: Kyle Lewis | B132: Sea - OF | C132: 1732 | D132: -/- | E132: - | F132: - | G132: - | H132: - | I132: -
A133: James Ramsey | B133: Min - OF | C133: 1743 | D133: -/- | E133: - | F133: - | G133: - | H133: - | I133: -
A134: Alex Kirilloff | B134: Min - OF | C134: 1750 | D134: -/- | E134: - | F134: - | G134: - | H134: - | I134: -
A135: Khalil Lee | B135: KC - OF | C135: 1753 | D135: -/- | E135: - | F135: - | G135: - | H135: - | I135: -
A136: Jesús Sánchez | B136: TB - OF | C136: 1758 | D136: -/- | E136: - | F136: - | G136: - | H136: - | I136: -
A137: Luis Basabe | B137: CWS - OF | C137: 1765 | D137: -/- | E137: - | F137: - | G137: - | H137: - | I137: -
A138: Garrett Whitley | B138: TB - OF | C138: 1767 | D138: -/- | E138: - | F138: - | G138: - | H138: - | I138: -
A139: Ryan Cordell | B139: CWS - OF | C139: 1770 | D139: -/- | E139: - | F139: - | G139: - | H139: - | I139: -
A140: Christin Stewart | B140: Det - OF | C140: 1779 | D140: -/- | E140: - | F140: - | G140: - | H140: - | I140: -
A141: Bubba Starling | B141: KC - OF | C141: 1780 | D141: -/- | E141: - | F141: - | G141: - | H141: - | I141: -
A142: Conner Capel | B142: Cle - OF | C142: 1781 | D142: -/- | E142: - | F142: - | G142: - | H142: - | I142: -
A143: Brent Rooker | B143: Min - OF | C143: 1782 | D143: -/- | E143: - | F143: - | G143: - | H143: - | I143: -
A144: Brandon Marsh | B144: LAA - OF | C144: 1801 | D144: -/- | E144: - | F144: - | G144: - | H144: - | I144: -
A145: Estevan Florial | B145: NYY - OF | C145: 1802 | D145: -/- | E145: - | F145: - | G145: - | H145: - | I145: -
A146: Elier Hernandez | B146: KC - OF | C146: 1807 | D146: -/- | E146: - | F146: - | G146: - | H146: - | I146: -
A147: Billy McKinney | B147: NYY - OF | C147: 1812 | D147: -/- | E147: - | F147: - | G147: - | H147: - | I147: -
A148: Seuly Matias | B148: KC - OF | C148: 1819 | D148: -/- | E148: - | F148: - | G148: - | H148: - | I148: -
A149: Eric Jenkins | B149: Tex - OF | C149: 1822 | D149: -/- | E149: - | F149: - | G149: - | H149: - | I149: -
A150: Daz Cameron | B150: Det - OF | C150: 1826 | D150: -/- | E150: - | F150: - | G150: - | H150: - | I150: -
A151: Ian Parmley | B151: Tor - OF | C151: 1840 | D151: 0/3 | E151: 0 | F151: 0 | G151: 0 | H151: 0 | I151: .000
A152: Anthony Alford | B152: Tor - OF | C152: 1849 | D152: 1/8 | E152: 0 | F152: 0 | G152: 0 | H152: 0 | I152: .125
A153: David Washington | B153: Bal - OF | C153: 1856 | D153: 0/6 | E153: 0 | F153: 0 | G153: 0 | H153: 0 | I153: .000
A154: Ryan LaMarre | B154: Min - OF | C154: 1865 | D154: 0/7 | E154: 0 | F154: 0 | G154: 0 | H154: 0 | I154: .000
A155: Jacob May | B155: CWS - OF | C155: 1873 | D155: 2/36 | E155: 2 | F155: 0 | G155: 3 | H155: 0 | I155: .056

Sheet DH
A1: Player | B1: Team | C1: Rank | D1: H/AB | E1: R | F1: HR | G1: RBI | H1: SB | I1: Avg.
A2: Victor Martinez | B2: Det - Uti | C2: 342 | D2: 100/392 | E2: 38 | F2: 10 | G2: 47 | H2: 0 | I2: .255

Sheet Pitchers
A1: Player | B1: Team | C1: Rank | D1: IP | E1: W | F1: S | G1: K | H1: ERA | I1: WHIP
A2: Corey Kluber | B2: Cle - SP | C2: 14 | D2: 203.2 | E2: 18 | F2: 0 | G2: 265 | H2: 2.25 | I2: 0.87
A3: Luis Severino | B3: NYY - SP | C3: 47 | D3: 193.1 | E3: 14 | F3: 0 | G3: 230 | H3: 2.98 | I3: 1.04
A4: Chris Archer | B4: TB - SP | C4: 67 | D4: 201.0 | E4: 10 | F4: 0 | G4: 249 | H4: 4.07 | I4: 1.26
A5: Gerrit Cole | B5: Hou - SP | C5: 78 | D5: 203.0 | E5: 12 | F5: 0 | G5: 196 | H5: 4.26 | I5: 1.25
A6: Lance McCullers Jr. | B6: Hou - SP | C6: 91 | D6: 118.2 | E6: 7 | F6: 0 | G6: 132 | H6: 4.25 | I6: 1.30
A7: Masahiro Tanaka | B7: NYY - SP | C7: 93 | D7: 178.1 | E7: 13 | F7: 0 | G7: 194 | H7: 4.74 | I7: 1.24
A8: Shohei Ohtani (Pitcher) | B8: LAA - SP | C8: 95 | D8: - | E8: - | F8: - | G8: - | H8: - | I8: -
A9: Marcus Stroman | B9: Tor - SP | C9: 129 | D9: 201.0 | E9: 13 | F9: 0 | G9: 164 | H9: 3.09 | I9: 1.31
A10: Danny Salazar | B10: Cle - SP | C10: 161 | D10: 103.0 | E10: 5 | F10: 0 | G10: 145 | H10: 4.28 | I10: 1.34
A11: Garrett Richards | B11: LAA - SP | C11: 186 | D11: 27.2 | E11: 0 | F11: 0 | G11: 27 | H11: 2.28 | I11: 0.90
A12: Drew Pomeranz | B12: Bos - SP | C12: 192 | D12: 173.2 | E12: 17 | F12: 0 | G12: 174 | H12: 3.32 | I12: 1.35
A13: Lance Lynn | B13: Min - SP | C13: 233 | D13: 186.1 | E13: 11 | F13: 0 | G13: 153 | H13: 3.43 | I13: 1.23
A14: Jake Odorizzi | B14: Min - SP | C14: 248 | D14: 143.1 | E14: 10 | F14: 0 | G14: 127 | H14: 4.14 | I14: 1.24
A15: Félix Hernández | B15: Sea - SP | C15: 260 | D15: 86.2 | E15: 6 | F15: 0 | G15: 78 | H15: 4.36 | I15: 1.29
A16: Matt Shoemaker | B16: LAA - SP | C16: 286 | D16: 77.2 | E16: 6 | F16: 0 | G16: 69 | H16: 4.52 | I16: 1.30
A17: Eduardo Rodríguez | B17: Bos - SP | C17: 292 | D17: 137.1 | E17: 6 | F17: 0 | G17: 150 | H17: 4.19 | I17: 1.28
A18: Marco Estrada | B18: Tor - SP | C18: 299 | D18: 186.0 | E18: 10 | F18: 0 | G18: 176 | H18: 4.98 | I18: 1.38
A19: Daniel Mengden | B19: Oak - SP | C19: 331 | D19: 43.0 | E19: 3 | F19: 0 | G19: 29 | H19: 3.14 | I19: 1.05
A20: Andrew Heaney | B20: LAA - SP | C20: 354 | D20: 21.2 | E20: 1 | F20: 0 | G20: 27 | H20: 7.06 | I20: 1.66
A21: Parker Bridwell | B21: LAA - SP | C21: 398 | D21: 121.0 | E21: 10 | F21: 0 | G21: 73 | H21: 3.64 | I21: 1.20
A22: Mike Leake | B22: Sea - SP | C22: 434 | D22: 186.0 | E22: 10 | F22: 0 | G22: 130 | H22: 3.92 | I22: 1.28
A23: Erasmo Ramírez | B23: Sea - SP,RP | C23: 436 | D23: 131.1 | E23: 5 | F23: 1 | G23: 109 | H23: 4.39 | I23: 1.17
A24: Jakob Junis | B24: KC - SP | C24: 448 | D24: 98.1 | E24: 9 | F24: 0 | G24: 80 | H24: 4.30 | I24: 1.28
A25: Andrew Cashner | B25: Bal - SP | C25: 451 | D25: 166.2 | E25: 11 | F25: 0 | G25: 86 | H25: 3.40 | I25: 1.32
A26: J.C. Ramírez | B26: LAA - SP | C26: 455 | D26: 147.1 | E26: 11 | F26: 0 | G26: 105 | H26: 4.15 | I26: 1.34
A27: Michael Pineda | B27: Min - SP | C27: 459 | D27: 96.1 | E27: 8 | F27: 0 | G27: 92 | H27: 4.39 | I27: 1.29
A28: Tyler Thornburg | B28: Bos - SP,RP | C28: 465 | D28: - | E28: - | F28: - | G28: - | H28: - | I28: -
A29: Josh Tomlin | B29: Cle - SP | C29: 488 | D29: 141.0 | E29: 10 | F29: 0 | G29: 109 | H29: 4.98 | I29: 1.28
A30: Hector Velázquez | B30: Bos - SP,RP | C30: 489 | D30: 24.2 | E30: 3 | F30: 0 | G30: 19 | H30: 2.92 | I30: 1.14
A31: Alex Meyer | B31: LAA - SP | C31: 497 | D31: 67.1 | E31: 4 | F31: 0 | G31: 75 | H31: 3.74 | I31: 1.34
A32: Paul Blackburn | B32: Oak - SP | C32: 521 | D32: 58.2 | E32: 3 | F32: 0 | G32: 22 | H32: 3.22 | I32: 1.26
A33: Matt Andriese | B33: TB - SP | C33: 523 | D33: 86.0 | E33: 5 | F33: 1 | G33: 76 | H33: 4.50 | I33: 1.37
A34: Ryan Merritt | B34: Cle - SP | C34: 524 | D34: 20.2 | E34: 2 | F34: 0 | G34: 7 | H34: 1.74 | I34: 1.45
A35: Andrew Triggs | B35: Oak - SP | C35: 526 | D35: 65.1 | E35: 5 | F35: 0 | G35: 50 | H35: 4.27 | I35: 1.33
A36: Nate Karns | B36: KC - SP | C36: 531 | D36: 45.1 | E36: 2 | F36: 0 | G36: 51 | H36: 4.17 | I36: 1.19
A37: Troy Scribner | B37: LAA - SP,RP | C37: 548 | D37: 23.2 | E37: 2 | F37: 0 | G37: 18 | H37: 4.18 | I37: 1.14
A38: Carson Fulmer | B38: CWS - SP | C38: 554 | D38: 23.1 | E38: 3 | F38: 0 | G38: 19 | H38: 3.86 | I38: 1.24
A39: Ariel Miranda | B39: Sea - SP | C39: 563 | D39: 160.0 | E39: 8 | F39: 0 | G39: 137 | H39: 5.12 | I39: 1.27
A40: Dillon Gee | B40: Min - SP,RP | C40: 566 | D40: 49.1 | E40: 3 | F40: 1 | G40: 41 | H40: 3.47 | I40: 1.40
A41: Kendall Graveman | B41: Oak - SP | C41: 583 | D41: 105.1 | E41: 6 | F41: 0 | G41: 70 | H41: 4.19 | I41: 1.39
A42: Luke Hochevar | B42: KC - SP,RP | C42: 598 | D42: - | E42: - | F42: - | G42: - | H42: - | I42: -
A43: Gavin Floyd | B43: Tor - SP,RP | C43: 606 | D43: - | E43: - | F43: - | G43: - | H43: - | I43: -
A44: Hisashi Iwakuma | B44: Sea - SP | C44: 607 | D44: 31.0 | E44: 0 | F44: 0 | G44: 16 | H44: 4.35 | I44: 1.26
A45: Tyler Danish | B45: CWS - SP | C45: 615 | D45: 5.0 | E45: 1 | F45: 0 | G45: 6 | H45: 0.00 | I45: 1.80
A46: Eddie Gamboa | B46: Bal - SP,RP | C46: 640 | D46: - | E46: - | F46: - | G46: - | H46: - | I46: -
A47: Carlos Frías | B47: Cle - SP,RP | C47: 650 | D47: - | E47: - | F47: - | G47: - | H47: - | I47: -
A48: Nick Tropeano | B48: LAA - SP,RP | C48: 654 | D48: - | E48: - | F48: - | G48: - | H48: - | I48: -
A49: Sam Gaviglio | B49: KC - SP | C49: 655 | D49: 74.1 | E49: 4 | F49: 0 | G49: 49 | H49: 4.36 | I49: 1.37
A50: Nathan Eovaldi | B50: TB - SP | C50: 656 | D50: - | E50: - | F50: - | G50: - | H50: - | I50: -
A51: Brian Johnson | B51: Bos - SP | C51: 662 | D51: 27.0 | E51: 2 | F51: 0 | G51: 21 | H51: 4.33 | I51: 1.48
A52: Reynaldo López | B52: CWS - SP | C52: 668 | D52: 47.2 | E52: 3 | F52: 0 | G52: 30 | H52: 4.72 | I52: 1.32
A53: Gabriel Ynoa | B53: Bal - SP,RP | C53: 670 | D53: 34.2 | E53: 2 | F53: 0 | G53: 26 | H53: 4.15 | I53: 1.36
A54: Gregory Soto | B54: Det - SP | C54: 671 | D54: - | E54: - | F54: - | G54: - | H54: - | I54: -
A55: Sean Reid-Foley | B55: Tor - SP | C55: 673 | D55: - | E55: - | F55: - | G55: - | H55: - | I55: -
A56: Clayton Blackburn | B56: Tex - SP | C56: 677 | D56: - | E56: - | F56: - | G56: - | H56: - | I56: -
A57: Nate Pearson | B57: Tor - SP | C57: 680 | D57: - | E57: - | F57: - | G57: - | H57: - | I57: -
A58: Ariel Jurado | B58: Tex - SP | C58: 684 | D58: - | E58: - | F58: - | G58: - | H58: - | I58: -
A59: Bryan Mata | B59: Bos - SP | C59: 687 | D59: - | E59: - | F59: - | G59: - | H59: - | I59: -
A60: Nolan Watson | B60: KC - SP | C60: 690 | D60: - | E60: - | F60: - | G60: - | H60: - | I60: -
A61: Matthias Dietz | B61: Bal - SP | C61: 693 | D61: - | E61: - | F61: - | G61: - | H61: - | I61: -
A62: Nate Smith | B62: LAA - SP | C62: 695 | D62: - | E62: - | F62: - | G62: - | H62: - | I62: -
A63: Justus Sheffield | B63: NYY - SP | C63: 696 | D63: - | E63: - | F63: - | G63: - | H63: - | I63: -
A64: Spencer Adams | B64: CWS - SP | C64: 704 | D64: - | E64: - | F64: - | G64: - | H64: - | I64: -
A65: Austin Franklin | B65: TB - SP | C65: 706 | D65: - | E65: - | F65: - | G65: - | H65: - | I65: -
A66: Grayson Long | B66: LAA - SP | C66: 708 | D66: - | E66: - | F66: - | G66: - | H66: - | I66: -
A67: Brady Aiken | B67: Cle - SP | C67: 711 | D67: - | E67: - | F67: - | G67: - | H67: - | I67: -
A68: Trey Ball | B68: Bos - SP | C68: 712 | D68: - | E68: - | F68: - | G68: - | H68: - | I68: -
A69: Jake Thompson | B69: Bos - SP | C69: 714 | D69: - | E69: - | F69: - | G69: - | H69: - | I69: -
A70: A.J. Puckett | B70: KC - SP | C70: 718 | D70: - | E70: - | F70: - | G70: - | H70: - | I70: -
A71: Richard Lovelady | B71: KC - SP | C71: 721 | D71: - | E71: - | F71: - | G71: - | H71: - | I71: -
A72: Darwinzon Hernandez | B72: Bos - SP | C72: 722 | D72: - | E72: - | F72: - | G72: - | H72: - | I72: -
A73: Kyle Funkhouser | B73: Det - SP | C73: 726 | D73: - | E73: - | F73: - | G73: - | H73: - | I73: -
A74: Jaime Barria | B74: LAA - SP | C74: 727 | D74: - | E74: - | F74: - | G74: - | H74: - | I74: -
A75: Travis Lakins | B75: Bos - SP | C75: 728 | D75: - | E75: - | F75: - | G75: - | H75: - | I75: -
A76: Scott Blewett | B76: KC - SP | C76: 729 | D76: - | E76: - | F76: - | G76: - | H76: - | I76: -
A77: Connor Sadzeck | B77: Tex - SP | C77: 730 | D77: - | E77: - | F77: - | G77: - | H77: - | I77: -
A78: Kohl Stewart | B78: Min - SP | C78: 733 | D78: - | E78: - | F78: - | G78: - | H78: - | I78: -
A79: A.J. Puk | B79: Oak - SP | C79: 734 | D79: - | E79: - | F79: - | G79: - | H79: - | I79: -
A80: Freicer Pérez | B80: NYY - SP | C80: 735 | D80: - | E80: - | F80: - | G80: - | H80: - | I80: -
A81: J.B. Bukauskas | B81: Hou - SP | C81: 737 | D81: - | E81: - | F81: - | G81: - | H81: - | I81: -
A82: Fernando Romero | B82: Min - SP | C82: 742 | D82: - | E82: - | F82: - | G82: - | H82: - | I82: -
A83: Dane Dunning | B83: CWS - SP | C83: 745 | D83: - | E83: - | F83: - | G83: - | H83: - | I83: -
A84: Cody Sedlock | B84: Bal - SP | C84: 749 | D84: - | E84: - | F84: - | G84: - | H84: - | I84: -
A85: Ryan Borucki | B85: Tor - SP | C85: 750 | D85: - | E85: - | F85: - | G85: - | H85: - | I85: -
A86: Tyler Alexander | B86: Det - SP | C86: 754 | D86: - | E86: - | F86: - | G86: - | H86: - | I86: -
A87: Mike Shawaryn | B87: Bos - SP | C87: 755 | D87: - | E87: - | F87: - | G87: - | H87: - | I87: -
A88: Brad Keller | B88: KC - SP | C88: 756 | D88: - | E88: - | F88: - | G88: - | H88: - | I88: -
A89: Brett Martin | B89: Tex - SP | C89: 757 | D89: - | E89: - | F89: - | G89: - | H89: - | I89: -
A90: Ryan Yarbrough | B90: TB - SP | C90: 758 | D90: - | E90: - | F90: - | G90: - | H90: - | I90: -
A91: Chris Rodríguez | B91: LAA - SP | C91: 760 | D91: - | E91: - | F91: - | G91: - | H91: - | I91: -
A92: Jason Groome | B92: Bos - SP | C92: 761 | D92: - | E92: - | F92: - | G92: - | H92: - | I92: -
A93: Kyle Cody | B93: Tex - SP | C93: 765 | D93: - | E93: - | F93: - | G93: - | H93: - | I93: -
A94: Ashe Russell | B94: KC - SP | C94: 766 | D94: - | E94: - | F94: - | G94: - | H94: - | I94: -
A95: Hunter Harvey | B95: Bal - SP | C95: 768 | D95: - | E95: - | F95: - | G95: - | H95: - | I95: -
A96: Joe Gatto | B96: LAA - SP | C96: 769 | D96: - | E96: - | F96: - | G96: - | H96: - | I96: -
A97: Cionel Pérez | B97: Hou - SP | C97: 772 | D97: - | E97: - | F97: - | G97: - | H97: - | I97: -
A98: Kevin Gadea | B98: TB - SP | C98: 775 | D98: - | E98: - | F98: - | G98: - | H98: - | I98: -
A99: Tanner Houck | B99: Bos - SP | C99: 776 | D99: - | E99: - | F99: - | G99: - | H99: - | I99: -
A100: Taylor Guerrieri | B100: Tor - SP | C100: 777 | D100: - | E100: - | F100: - | G100: - | H100: - | I100: -
A101: Norge Ruiz | B101: Oak - SP | C101: 778 | D101: - | E101: - | F101: - | G101: - | H101: - | I101: -
A102: Hans Crouse | B102: Tex - SP | C102: 782 | D102: - | E102: - | F102: - | G102: - | H102: - | I102: -
A103: Chance Adams | B103: NYY - SP | C103: 784 | D103: - | E103: - | F103: - | G103: - | H103: - | I103: -
A104: Shane Bieber | B104: Cle - SP | C104: 786 | D104: - | E104: - | F104: - | G104: - | H104: - | I104: -
A105: Jon Harris | B105: Tor - SP | C105: 787 | D105: - | E105: - | F105: - | G105: - | H105: - | I105: -
A106: DL Hall | B106: Bal - SP | C106: 789 | D106: - | E106: - | F106: - | G106: - | H106: - | I106: -
A107: Keegan Akin | B107: Bal - SP | C107: 792 | D107: - | E107: - | F107: - | G107: - | H107: - | I107: -
A108: Albert Abreu | B108: NYY - SP | C108: 793 | D108: - | E108: - | F108: - | G108: - | H108: - | I108: -
A109: Dylan Cease | B109: CWS - SP | C109: 794 | D109: - | E109: - | F109: - | G109: - | H109: - | I109: -
A110: Rob Kaminsky | B110: Cle - SP | C110: 797 | D110: - | E110: - | F110: - | G110: - | H110: - | I110: -
A111: Forrest Whitley | B111: Hou - SP | C111: 798 | D111: - | E111: - | F111: - | G111: - | H111: - | I111: -
A112: Dillon Tate | B112: NYY - SP | C112: 802 | D112: - | E112: - | F112: - | G112: - | H112: - | I112: -
A113: Matt Manning | B113: Det - SP | C113: 803 | D113: - | E113: - | F113: - | G113: - | H113: - | I113: -
A114: Stephen Gonsalves | B114: Min - SP | C114: 808 | D114: - | E114: - | F114: - | G114: - | H114: - | I114: -
A115: Aaron Civale | B115: Cle - SP | C115: 817 | D115: - | E115: - | F115: - | G115: - | H115: - | I115: -
A116: Alec Hansen | B116: CWS - SP | C116: 820 | D116: - | E116: - | F116: - | G116: - | H116: - | I116: -
A117: Triston McKenzie | B117: Cle - SP | C117: 821 | D117: - | E117: - | F117: - | G117: - | H117: - | I117: -
A118: Jalen Beeks | B118: Bos - SP | C118: 822 | D118: - | E118: - | F118: - | G118: - | H118: - | I118: -
A119: Dakota Chalmers | B119: Oak - SP | C119: 824 | D119: - | E119: - | F119: - | G119: - | H119: - | I119: -
A120: Josh Staumont | B120: KC - SP | C120: 826 | D120: - | E120: - | F120: - | G120: - | H120: - | I120: -
A121: Griffin Canning | B121: LAA - SP | C121: 827 | D121: - | E121: - | F121: - | G121: - | H121: - | I121: -
A122: T.J. Zeuch | B122: Tor - SP | C122: 832 | D122: - | E122: - | F122: - | G122: - | H122: - | I122: -
A123: Grant Holmes | B123: Oak - SP | C123: 833 | D123: - | E123: - | F123: - | G123: - | H123: - | I123: -
A124: David Hess | B124: Bal - SP | C124: 834 | D124: - | E124: - | F124: - | G124: - | H124: - | I124: -
A125: Alex Speas | B125: Tex - SP | C125: 835 | D125: - | E125: - | F125: - | G125: - | H125: - | I125: -
A126: Burch Smith | B126: KC - SP,RP | C126: 838 | D126: - | E126: - | F126: - | G126: - | H126: - | I126: -
A127: Kyle Zimmer | B127: KC - SP | C127: 841 | D127: - | E127: - | F127: - | G127: - | H127: - | I127: -
A128: Brent Honeywell | B128: TB - SP | C128: 844 | D128: - | E128: - | F128: - | G128: - | H128: - | I128: -
A129: Beau Burrows | B129: Det - SP | C129: 849 | D129: - | E129: - | F129: - | G129: - | H129: - | I129: -
A130: Tim Cooney | B130: Cle - SP | C130: 852 | D130: - | E130: - | F130: - | G130: - | H130: - | I130: -
A131: James Kaprielian | B131: NYY - SP | C131: 854 | D131: - | E131: - | F131: - | G131: - | H131: - | I131: -
A132: Justin Masterson | B132: Bos - SP | C132: 857 | D132: - | E132: - | F132: - | G132: - | H132: - | I132: -
A133: Foster Griffin | B133: KC - SP | C133: 860 | D133: - | E133: - | F133: - | G133: - | H133: - | I133: -
A134: Rogelio Armenteros | B134: Hou - SP | C134: 862 | D134: - | E134: - | F134: - | G134: - | H134: - | I134: -
A135: Spencer Turnbull | B135: Det - SP | C135: 863 | D135: - | E135: - | F135: - | G135: - | H135: - | I135: -
A136: Nick Neidert | B136: Sea - SP | C136: 865 | D136: - | E136: - | F136: - | G136: - | H136: - | I136: -
A137: Cole Ragans | B137: Tex - SP | C137: 866 | D137: - | E137: - | F137: - | G137: - | H137: - | I137: -
A138: Ty Buttrey | B138: Bos - SP | C138: 875 | D138: - | E138: - | F138: - | G138: - | H138: - | I138: -
A139: Roniel Raudes | B139: Bos - SP | C139: 876 | D139: - | E139: - | F139: - | G139: - | H139: - | I139: -
A140: Jaime Schultz | B140: TB - SP | C140: 877 | D140: - | E140: - | F140: - | G140: - | H140: - | I140: -
A141: Clarke Schmidt | B141: NYY - SP | C141: 879 | D141: - | E141: - | F141: - | G141: - | H141: - | I141: -
A142: Franklin Perez | B142: Hou - SP | C142: 880 | D142: - | E142: - | F142: - | G142: - | H142: - | I142: -
A143: Ian Clarkin | B143: CWS - SP | C143: 883 | D143: - | E143: - | F143: - | G143: - | H143: - | I143: -
A144: Austin Bibens-Dirkx | B144: Tex - SP,RP | C144: 886 | D144: 69.1 | E144: 5 | F144: 0 | G144: 38 | H144: 4.67 | I144: 1.36
A145: Ryan Weber | B145: TB - SP | C145: 914 | D145: 3.2 | E145: 0 | F145: 0 | G145: 0 | H145: 2.45 | I145: 0.82
A146: Jeremy Hellickson | B146: Bal - SP | C146: 922 | D146: 164.0 | E146: 8 | F146: 0 | G146: 96 | H146: 5.43 | I146: 1.26
A147: Anthony Banda | B147: TB - SP | C147: 949 | D147: 25.2 | E147: 2 | F147: 0 | G147: 25 | H147: 5.96 | I147: 1.40
A148: Francis Martes | B148: Hou - SP,RP | C148: 959 | D148: 54.1 | E148: 5 | F148: 0 | G148: 69 | H148: 5.80 | I148: 1.51
A149: James Russell | B149: Det - SP,RP | C149: 975 | D149: - | E149: - | F149: - | G149: - | H149: - | I149: -
A150: Aaron Slegers | B150: Min - SP | C150: 992 | D150: 15.1 | E150: 0 | F150: 0 | G150: 9 | H150: 6.46 | I150: 1.17
A151: Chris Bassitt | B151: Oak - SP,RP | C151: 994 | D151: - | E151: - | F151: - | G151: - | H151: - | I151: -
A152: Ian Kennedy | B152: KC - SP | C152: 1002 | D152: 154.0 | E152: 5 | F152: 0 | G152: 131 | H152: 5.38 | I152: 1.32
A153: Tyler Skaggs | B153: LAA - SP | C153: 1003 | D153: 85.0 | E153: 2 | F153: 0 | G153: 76 | H153: 4.55 | I153: 1.39
A154: Doug Fister | B154: Tex - SP | C154: 1006 | D154: 90.1 | E154: 5 | F154: 0 | G154: 83 | H154: 4.88 | I154: 1.38
A155: Luis Cessa | B155: NYY - SP,RP | C155: 1008 | D155: 36.0 | E155: 0 | F155: 0 | G155: 30 | H155: 4.75 | I155: 1.47
A156: Chi Chi González | B156: Tex - SP | C156: 1010 | D156: - | E156: - | F156: - | G156: - | H156: - | I156: -
A157: Andrew Moore | B157: Sea - SP | C157: 1024 | D157: 59.0 | E157: 1 | F157: 0 | G157: 31 | H157: 5.34 | I157: 1.15
A158: Alec Asher | B158: Bal - SP,RP | C158: 1027 | D158: 60.0 | E158: 2 | F158: 0 | G158: 47 | H158: 5.25 | I158: 1.40
A159: Ross Detwiler | B159: Oak - SP,RP | C159: 1041 | D159: - | E159: - | F159: - | G159: - | H159: - | I159: -
A160: David Paulino | B160: Hou - SP | C160: 1049 | D160: 29.0 | E160: 2 | F160: 0 | G160: 34 | H160: 6.52 | I160: 1.48
A161: Miguel González | B161: CWS - SP | C161: 1055 | D161: 156.0 | E161: 8 | F161: 0 | G161: 100 | H161: 4.62 | I161: 1.42
A162: Brett Oberholtzer | B162: Tor - SP,RP | C162: 1062 | D162: - | E162: - | F162: - | G162: - | H162: - | I162: -
A163: Jaime García | B163: Tor - SP | C163: 1072 | D163: 157.0 | E163: 5 | F163: 0 | G163: 129 | H163: 4.41 | I163: 1.41
A164: Cody Anderson | B164: Cle - SP | C164: 1077 | D164: - | E164: - | F164: - | G164: - | H164: - | I164: -
A165: Austin Pruitt | B165: TB - SP,RP | C165: 1078 | D165: 83.0 | E165: 7 | F165: 1 | G165: 66 | H165: 5.31 | I165: 1.51
A166: Christian Bergman | B166: Sea - SP,RP | C166: 1085 | D166: 54.0 | E166: 4 | F166: 0 | G166: 33 | H166: 5.00 | I166: 1.41
A167: Felix Jorge | B167: Min - SP | C167: 1086 | D167: 7.2 | E167: 1 | F167: 0 | G167: 4 | H167: 10.57 | I167: 2.09
A168: Trevor Cahill | B168: KC - SP,RP | C168: 1088 | D168: 84.0 | E168: 4 | F168: 0 | G168: 87 | H168: 4.93 | I168: 1.62
A169: Jonathon Niese | B169: NYY - SP | C169: 1092 | D169: - | E169: - | F169: - | G169: - | H169: - | I169: -
A170: Nick Tepesch | B170: Tor - SP | C170: 1097 | D170: 15.2 | E170: 1 | F170: 0 | G170: 9 | H170: 5.17 | I170: 1.98
A171: Steven Wright | B171: Bos - SP | C171: 1111 | D171: 24.0 | E171: 1 | F171: 0 | G171: 13 | H171: 8.25 | I171: 1.88
A172: Jharel Cotton | B172: Oak - SP | C172: 1120 | D172: 129.0 | E172: 9 | F172: 0 | G172: 105 | H172: 5.58 | I172: 1.44
A173: Edinson Volquez | B173: Tex - SP | C173: 1125 | D173: 92.1 | E173: 4 | F173: 0 | G173: 81 | H173: 4.19 | I173: 1.42
A174: Chris Rowley | B174: Tor - SP | C174: 1127 | D174: 18.2 | E174: 1 | F174: 0 | G174: 11 | H174: 6.75 | I174: 1.82
A175: Mat Latos | B175: Tor - SP | C175: 1138 | D175: 15.0 | E175: 0 | F175: 0 | G175: 10 | H175: 6.60 | I175: 1.80
A176: Mike Fiers | B176: Det - SP | C176: 1140 | D176: 153.1 | E176: 8 | F176: 0 | G176: 146 | H176: 5.22 | I176: 1.43
A177: Tim Lincecum | B177: LAA - SP | C177: 1143 | D177: - | E177: - | F177: - | G177: - | H177: - | I177: -
A178: Buck Farmer | B178: Det - SP | C178: 1146 | D178: 48.0 | E178: 5 | F178: 0 | G178: 49 | H178: 6.75 | I178: 1.56
A179: Héctor Santiago | B179: CWS - SP | C179: 1148 | D179: 70.1 | E179: 4 | F179: 0 | G179: 51 | H179: 5.63 | I179: 1.44
A180: Asher Wojciechowski | B180: Bal - SP,RP | C180: 1153 | D180: 62.1 | E180: 4 | F180: 0 | G180: 64 | H180: 6.50 | I180: 1.44
A181: Adalberto Mejía | B181: Min - SP | C181: 1156 | D181: 98.0 | E181: 4 | F181: 0 | G181: 85 | H181: 4.50 | I181: 1.57
A182: Raul Alcantara | B182: Oak - SP | C182: 1158 | D182: 24.0 | E182: 1 | F182: 0 | G182: 12 | H182: 7.13 | I182: 1.42
A183: Jesse Chávez | B183: Tex - SP,RP | C183: 1163 | D183: 138.0 | E183: 7 | F183: 0 | G183: 119 | H183: 5.35 | I183: 1.40
A184: Jason Hammel | B184: KC - SP | C184: 1166 | D184: 180.1 | E184: 8 | F184: 0 | G184: 145 | H184: 5.29 | I184: 1.43
A185: Chase De Jong | B185: Sea - SP | C185: 1173 | D185: 28.1 | E185: 0 | F185: 0 | G185: 13 | H185: 6.35 | I185: 1.55
A186: Joe Biagini | B186: Tor - SP,RP | C186: 1174 | D186: 119.2 | E186: 3 | F186: 1 | G186: 97 | H186: 5.34 | I186: 1.40
A187: Kyle Kendrick | B187: Bos - SP | C187: 1189 | D187: 8.1 | E187: 0 | F187: 0 | G187: 3 | H187: 12.96 | I187: 2.52
A188: David Holmberg | B188: Bal - SP,RP | C188: 1197 | D188: 57.2 | E188: 2 | F188: 0 | G188: 33 | H188: 4.68 | I188: 1.68
A189: Jesse Hahn | B189: KC - SP | C189: 1210 | D189: 69.2 | E189: 3 | F189: 0 | G189: 55 | H189: 5.30 | I189: 1.51
A190: Phil Hughes | B190: Min - SP,RP | C190: 1218 | D190: 53.2 | E190: 4 | F190: 0 | G190: 38 | H190: 5.87 | I190: 1.58
A191: César Valdez | B191: Tor - SP,RP | C191: 1220 | D191: 30.2 | E191: 1 | F191: 0 | G191: 21 | H191: 7.63 | I191: 1.70
A192: Daniel Norris | B192: Det - SP | C192: 1227 | D192: 101.2 | E192: 5 | F192: 0 | G192: 86 | H192: 5.31 | I192: 1.61
A193: Eric Skoglund | B193: KC - SP | C193: 1229 | D193: 18.0 | E193: 1 | F193: 0 | G193: 14 | H193: 9.50 | I193: 2.33
A194: Ricky Nolasco | B194: LAA - SP | C194: 1231 | D194: 181.0 | E194: 6 | F194: 0 | G194: 143 | H194: 4.92 | I194: 1.45
A195: Chris Smith | B195: Oak - SP,RP | C195: 1244 | D195: 55.2 | E195: 0 | F195: 0 | G195: 31 | H195: 6.79 | I195: 1.47
A196: Kyle Gibson | B196: Min - SP | C196: 1247 | D196: 158.0 | E196: 12 | F196: 0 | G196: 121 | H196: 5.07 | I196: 1.53
A197: Brett Anderson | B197: Tor - SP | C197: 1248 | D197: 55.1 | E197: 4 | F197: 0 | G197: 38 | H197: 6.34 | I197: 1.70
A198: Lisalverto Bonilla | B198: Cle - SP,RP | C198: 1249 | D198: 36.2 | E198: 1 | F198: 0 | G198: 28 | H198: 8.10 | I198: 1.75
A199: Matthew Boyd | B199: Det - SP | C199: 1252 | D199: 135.0 | E199: 6 | F199: 0 | G199: 110 | H199: 5.27 | I199: 1.56
A200: Francisco Liriano | B200: Det - SP,RP | C200: 1253 | D200: 97.0 | E200: 6 | F200: 0 | G200: 85 | H200: 5.66 | I200: 1.63
... 14 more rows

Sheet Relief Pitchers
A1: Player | B1: Team | C1: Rank | D1: IP | E1: W | F1: S | G1: K | H1: ERA | I1: WHIP
A2: Craig Kimbrel | B2: Bos - RP | C2: 68 | D2: 69.0 | E2: 5 | F2: 35 | G2: 126 | H2: 1.43 | I2: 0.68
A3: Roberto Osuna | B3: Tor - RP | C3: 88 | D3: 64.0 | E3: 3 | F3: 39 | G3: 83 | H3: 3.38 | I3: 0.86
A4: Ken Giles | B4: Hou - RP | C4: 111 | D4: 62.2 | E4: 1 | F4: 34 | G4: 83 | H4: 2.30 | I4: 1.04
A5: Brad Brach | B5: Bal - RP | C5: 204 | D5: 68.0 | E5: 4 | F5: 18 | G5: 70 | H5: 3.18 | I5: 1.13
A6: Fernando Rodney | B6: Min - RP | C6: 221 | D6: 55.1 | E6: 5 | F6: 39 | G6: 65 | H6: 4.23 | I6: 1.19
A7: Zach Britton | B7: Bal - RP | C7: 268 | D7: 37.1 | E7: 2 | F7: 15 | G7: 29 | H7: 2.89 | I7: 1.53
A8: David Robertson | B8: NYY - RP | C8: 303 | D8: 68.1 | E8: 9 | F8: 14 | G8: 98 | H8: 1.84 | I8: 0.85
A9: Joakim Soria | B9: CWS - RP | C9: 342 | D9: 56.0 | E9: 4 | F9: 1 | G9: 64 | H9: 3.70 | I9: 1.23
A10: Juan Minaya | B10: CWS - RP | C10: 348 | D10: 43.2 | E10: 3 | F10: 9 | G10: 51 | H10: 4.53 | I10: 1.33
A11: Chad Green | B11: NYY - RP | C11: 352 | D11: 69.0 | E11: 5 | F11: 0 | G11: 103 | H11: 1.83 | I11: 0.74
A12: Mychal Givens | B12: Bal - RP | C12: 360 | D12: 78.2 | E12: 8 | F12: 0 | G12: 88 | H12: 2.75 | I12: 1.04
A13: Yusmeiro Petit | B13: Oak - RP | C13: 361 | D13: 91.1 | E13: 5 | F13: 4 | G13: 101 | H13: 2.76 | I13: 0.95
A14: Mike Minor | B14: Tex - RP | C14: 364 | D14: 77.2 | E14: 6 | F14: 6 | G14: 88 | H14: 2.55 | I14: 1.02
A15: Juan Nicasio | B15: Sea - RP | C15: 367 | D15: 72.1 | E15: 5 | F15: 6 | G15: 72 | H15: 2.61 | I15: 1.08
A16: Ryan Buchter | B16: Oak - RP | C16: 373 | D16: 65.1 | E16: 4 | F16: 1 | G16: 65 | H16: 2.89 | I16: 1.07
A17: Adam Warren | B17: NYY - RP | C17: 374 | D17: 57.1 | E17: 3 | F17: 1 | G17: 54 | H17: 2.35 | I17: 0.87
A18: Will Harris | B18: Hou - RP | C18: 376 | D18: 45.1 | E18: 3 | F18: 2 | G18: 52 | H18: 2.98 | I18: 0.97
A19: Seung Hwan Oh | B19: Tor - RP | C19: 377 | D19: 59.1 | E19: 1 | F19: 20 | G19: 54 | H19: 4.10 | I19: 1.40
A20: Tommy Kahnle | B20: NYY - RP | C20: 391 | D20: 62.2 | E20: 2 | F20: 0 | G20: 96 | H20: 2.59 | I20: 1.12
A21: Santiago Casilla | B21: Oak - RP | C21: 394 | D21: 59.0 | E21: 4 | F21: 16 | G21: 57 | H21: 4.27 | I21: 1.36
A22: Keone Kela | B22: Tex - RP | C22: 396 | D22: 38.2 | E22: 4 | F22: 2 | G22: 51 | H22: 2.79 | I22: 0.91
A23: Joe Smith | B23: Hou - RP | C23: 400 | D23: 54.0 | E23: 3 | F23: 1 | G23: 71 | H23: 3.33 | I23: 1.04
A24: Dan Otero | B24: Cle - RP | C24: 401 | D24: 60.0 | E24: 3 | F24: 0 | G24: 38 | H24: 2.85 | I24: 1.20
A25: Jim Johnson | B25: LAA - RP | C25: 404 | D25: 56.2 | E25: 6 | F25: 22 | G25: 61 | H25: 5.56 | I25: 1.48
A26: Matt Barnes | B26: Bos - RP | C26: 406 | D26: 69.2 | E26: 7 | F26: 1 | G26: 83 | H26: 3.88 | I26: 1.22
A27: Darren O'Day | B27: Bal - RP | C27: 409 | D27: 60.1 | E27: 2 | F27: 2 | G27: 76 | H27: 3.43 | I27: 1.08
A28: David Phelps | B28: Sea - RP | C28: 410 | D28: 55.2 | E28: 4 | F28: 0 | G28: 62 | H28: 3.40 | I28: 1.38
A29: Taylor Rogers | B29: Min - RP | C29: 416 | D29: 55.2 | E29: 7 | F29: 0 | G29: 49 | H29: 3.07 | I29: 1.31
A30: Emilio Pagán | B30: Oak - RP | C30: 419 | D30: 50.1 | E30: 2 | F30: 0 | G30: 56 | H30: 3.22 | I30: 0.93
A31: Zach McAllister | B31: Cle - RP | C31: 420 | D31: 62.0 | E31: 2 | F31: 0 | G31: 66 | H31: 2.61 | I31: 1.19
A32: Nick Vincent | B32: Sea - RP | C32: 421 | D32: 64.2 | E32: 3 | F32: 0 | G32: 50 | H32: 3.20 | I32: 1.16
A33: Sergio Romo | B33: TB - RP | C33: 424 | D33: 55.2 | E33: 3 | F33: 0 | G33: 59 | H33: 3.56 | I33: 1.10
A34: Héctor Rondón | B34: Hou - RP | C34: 425 | D34: 57.1 | E34: 4 | F34: 0 | G34: 69 | H34: 4.24 | I34: 1.22
A35: Matt Belisle | B35: Cle - RP | C35: 427 | D35: 60.1 | E35: 2 | F35: 9 | G35: 54 | H35: 4.03 | I35: 1.16
A36: Nick Goody | B36: Cle - RP | C36: 432 | D36: 54.2 | E36: 1 | F36: 0 | G36: 72 | H36: 2.80 | I36: 1.08
A37: Richard Bleier | B37: Bal - RP | C37: 433 | D37: 63.1 | E37: 2 | F37: 0 | G37: 26 | H37: 1.99 | I37: 1.18
A38: Erasmo Ramírez | B38: Sea - SP,RP | C38: 436 | D38: 131.1 | E38: 5 | F38: 1 | G38: 109 | H38: 4.39 | I38: 1.17
A39: Joe Kelly | B39: Bos - RP | C39: 437 | D39: 58.0 | E39: 4 | F39: 0 | G39: 52 | H39: 2.79 | I39: 1.19
A40: Danny Barnes | B40: Tor - RP | C40: 438 | D40: 66.0 | E40: 3 | F40: 0 | G40: 62 | H40: 3.55 | I40: 1.09
A41: Trevor Hildenberger | B41: Min - RP | C41: 439 | D41: 42.0 | E41: 3 | F41: 1 | G41: 44 | H41: 3.21 | I41: 1.05
A42: Keynan Middleton | B42: LAA - RP | C42: 446 | D42: 58.1 | E42: 6 | F42: 3 | G42: 63 | H42: 3.86 | I42: 1.34
A43: Wade LeBlanc | B43: NYY - RP | C43: 456 | D43: 68.0 | E43: 5 | F43: 1 | G43: 54 | H43: 4.50 | I43: 1.19
A44: Tyler Olson | B44: Cle - RP | C44: 457 | D44: 20.0 | E44: 1 | F44: 1 | G44: 18 | H44: 0.00 | I44: 0.95
A45: Liam Hendriks | B45: Oak - RP | C45: 458 | D45: 64.0 | E45: 4 | F45: 1 | G45: 78 | H45: 4.22 | I45: 1.25
A46: Alan Busenitz | B46: Min - RP | C46: 464 | D46: 31.2 | E46: 1 | F46: 0 | G46: 23 | H46: 1.99 | I46: 0.98
A47: Tyler Thornburg | B47: Bos - SP,RP | C47: 465 | D47: - | E47: - | F47: - | G47: - | H47: - | I47: -
A48: Gregory Infante | B48: CWS - RP | C48: 470 | D48: 54.2 | E48: 2 | F48: 0 | G48: 49 | H48: 3.13 | I48: 1.19
A49: Chasen Shreve | B49: NYY - RP | C49: 472 | D49: 45.1 | E49: 4 | F49: 0 | G49: 58 | H49: 3.77 | I49: 1.32
A50: Robby Scott | B50: Bos - RP | C50: 474 | D50: 35.2 | E50: 2 | F50: 0 | G50: 31 | H50: 3.79 | I50: 0.98
A51: Ryan Dull | B51: Oak - RP | C51: 475 | D51: 42.0 | E51: 2 | F51: 0 | G51: 45 | H51: 5.14 | I51: 1.26
A52: Luis Avilán | B52: CWS - RP | C52: 476 | D52: 46.0 | E52: 2 | F52: 0 | G52: 52 | H52: 2.93 | I52: 1.39
A53: Dan Jennings | B53: TB - RP | C53: 477 | D53: 62.2 | E53: 3 | F53: 0 | G53: 51 | H53: 3.45 | I53: 1.34
A54: Dustin McGowan | B54: TB - RP | C54: 480 | D54: 77.2 | E54: 8 | F54: 0 | G54: 64 | H54: 4.75 | I54: 1.34
A55: Tyler Clippard | B55: Hou - RP | C55: 485 | D55: 60.1 | E55: 2 | F55: 5 | G55: 72 | H55: 4.77 | I55: 1.29
A56: Hector Velázquez | B56: Bos - SP,RP | C56: 489 | D56: 24.2 | E56: 3 | F56: 0 | G56: 19 | H56: 2.92 | I56: 1.14
A57: Austin Maddox | B57: Bos - RP | C57: 495 | D57: 17.1 | E57: 0 | F57: 0 | G57: 14 | H57: 0.52 | I57: 0.87
A58: Zach Putnam | B58: CWS - RP | C58: 502 | D58: 8.2 | E58: 0 | F58: 0 | G58: 9 | H58: 1.04 | I58: 0.35
A59: Carlos Ramírez | B59: Tor - RP | C59: 504 | D59: 16.2 | E59: 0 | F59: 0 | G59: 14 | H59: 2.70 | I59: 0.54
A60: Ryan Pressly | B60: Min - RP | C60: 505 | D60: 61.1 | E60: 2 | F60: 0 | G60: 61 | H60: 4.70 | I60: 1.16
A61: Zach Duke | B61: Min - RP | C61: 507 | D61: 18.1 | E61: 1 | F61: 0 | G61: 12 | H61: 3.93 | I61: 1.04
A62: James Pazos | B62: Sea - RP | C62: 511 | D62: 53.2 | E62: 4 | F62: 0 | G62: 65 | H62: 3.86 | I62: 1.40
A63: Andrew Bailey | B63: LAA - RP | C63: 512 | D63: 4.0 | E63: 2 | F63: 0 | G63: 2 | H63: 0.00 | I63: 0.25
A64: Brandon Workman | B64: Bos - RP | C64: 514 | D64: 39.2 | E64: 1 | F64: 0 | G64: 37 | H64: 3.18 | I64: 1.21
A65: Heath Hembree | B65: Bos - RP | C65: 515 | D65: 62.0 | E65: 2 | F65: 0 | G65: 70 | H65: 3.63 | I65: 1.45
A66: Miguel Castro | B66: Bal - RP | C66: 516 | D66: 66.1 | E66: 3 | F66: 0 | G66: 38 | H66: 3.53 | I66: 1.22
A67: José Leclerc | B67: Tex - RP | C67: 517 | D67: 45.2 | E67: 2 | F67: 2 | G67: 60 | H67: 3.94 | I67: 1.38
A68: Daniel Coulombe | B68: Oak - RP | C68: 518 | D68: 51.2 | E68: 2 | F68: 0 | G68: 39 | H68: 3.48 | I68: 1.32
A69: Jake Diekman | B69: Tex - RP | C69: 520 | D69: 10.2 | E69: 0 | F69: 1 | G69: 13 | H69: 2.53 | I69: 1.31
A70: Danny Farquhar | B70: CWS - RP | C70: 522 | D70: 49.1 | E70: 4 | F70: 0 | G70: 45 | H70: 4.20 | I70: 1.36
A71: Ben Heller | B71: NYY - RP | C71: 532 | D71: 11.0 | E71: 1 | F71: 0 | G71: 9 | H71: 0.82 | I71: 1.00
A72: Deolis Guerra | B72: Tex - RP | C72: 538 | D72: 25.0 | E72: 2 | F72: 0 | G72: 22 | H72: 4.68 | I72: 1.28
A73: Chih-Wei Hu | B73: TB - RP | C73: 544 | D73: 10.0 | E73: 1 | F73: 0 | G73: 9 | H73: 2.70 | I73: 0.90
A74: Al Alburquerque | B74: Tor - RP | C74: 546 | D74: 18.0 | E74: 0 | F74: 0 | G74: 14 | H74: 2.50 | I74: 1.00
A75: Troy Scribner | B75: LAA - SP,RP | C75: 548 | D75: 23.2 | E75: 2 | F75: 0 | G75: 18 | H75: 4.18 | I75: 1.14
A76: Chaz Roe | B76: TB - RP | C76: 550 | D76: 10.2 | E76: 0 | F76: 0 | G76: 13 | H76: 2.53 | I76: 1.13
A77: Chasen Bradford | B77: Sea - RP | C77: 551 | D77: 33.2 | E77: 2 | F77: 0 | G77: 27 | H77: 3.74 | I77: 1.28
A78: José Alvarado | B78: TB - RP | C78: 555 | D78: 29.2 | E78: 0 | F78: 0 | G78: 29 | H78: 3.64 | I78: 1.11
A79: James Hoyt | B79: Hou - RP | C79: 558 | D79: 49.1 | E79: 1 | F79: 0 | G79: 66 | H79: 4.38 | I79: 1.32
A80: Luis Santos | B80: Tor - RP | C80: 560 | D80: 16.2 | E80: 0 | F80: 1 | G80: 16 | H80: 2.70 | I80: 1.14
A81: Dillon Gee | B81: Min - SP,RP | C81: 566 | D81: 49.1 | E81: 3 | F81: 1 | G81: 41 | H81: 3.47 | I81: 1.40
A82: Andrew Kittredge | B82: TB - RP | C82: 567 | D82: 15.1 | E82: 0 | F82: 0 | G82: 14 | H82: 1.76 | I82: 1.24
A83: Donnie Hart | B83: Bal - RP | C83: 570 | D83: 43.2 | E83: 2 | F83: 0 | G83: 29 | H83: 3.71 | I83: 1.40
A84: Carlos Torres | B84: Cle - RP | C84: 571 | D84: 72.2 | E84: 4 | F84: 1 | G84: 56 | H84: 4.21 | I84: 1.53
A85: Noé Ramírez | B85: LAA - RP | C85: 572 | D85: 13.0 | E85: 0 | F85: 0 | G85: 14 | H85: 2.77 | I85: 0.85
A86: Brandon Maurer | B86: KC - RP | C86: 573 | D86: 59.1 | E86: 3 | F86: 22 | G86: 59 | H86: 6.52 | I86: 1.55
A87: Dan Altavilla | B87: Sea - RP | C87: 578 | D87: 46.2 | E87: 1 | F87: 0 | G87: 52 | H87: 4.24 | I87: 1.35
A88: Brian Flynn | B88: KC - RP | C88: 580 | D88: 2.1 | E88: 0 | F88: 0 | G88: 0 | H88: 3.86 | I88: 1.29
A89: Jean Machi | B89: CWS - RP | C89: 582 | D89: 7.2 | E89: 1 | F89: 0 | G89: 4 | H89: 1.17 | I89: 1.43
A90: Chris Hatcher | B90: Oak - RP | C90: 585 | D90: 59.2 | E90: 1 | F90: 1 | G90: 63 | H90: 4.22 | I90: 1.32
A91: Alex Wilson | B91: Det - RP | C91: 588 | D91: 60.0 | E91: 2 | F91: 2 | G91: 42 | H91: 4.50 | I91: 1.37
A92: José Álvarez | B92: LAA - RP | C92: 590 | D92: 48.2 | E92: 0 | F92: 1 | G92: 45 | H92: 3.88 | I92: 1.27
A93: Simon Castro | B93: Oak - RP | C93: 594 | D93: 37.0 | E93: 1 | F93: 0 | G93: 35 | H93: 4.38 | I93: 1.24
A94: Luke Hochevar | B94: KC - SP,RP | C94: 598 | D94: - | E94: - | F94: - | G94: - | H94: - | I94: -
A95: Jonathan Holder | B95: NYY - RP | C95: 602 | D95: 39.1 | E95: 1 | F95: 0 | G95: 40 | H95: 3.89 | I95: 1.35
A96: Matt Dermody | B96: Tor - RP | C96: 603 | D96: 22.1 | E96: 2 | F96: 0 | G96: 15 | H96: 4.43 | I96: 1.25
A97: Gavin Floyd | B97: Tor - SP,RP | C97: 606 | D97: - | E97: - | F97: - | G97: - | H97: - | I97: -
A98: Huston Street | B98: LAA - RP | C98: 610 | D98: 4.0 | E98: 0 | F98: 0 | G98: 3 | H98: 0.00 | I98: 0.75
A99: Domingo Germán | B99: NYY - RP | C99: 618 | D99: 14.1 | E99: 0 | F99: 0 | G99: 18 | H99: 3.14 | I99: 1.40
A100: Gabriel Moya | B100: Min - RP | C100: 623 | D100: 6.1 | E100: 0 | F100: 1 | G100: 5 | H100: 4.26 | I100: 1.11
A101: Tyler Wagner | B101: Tex - RP | C101: 625 | D101: - | E101: - | F101: - | G101: - | H101: - | I101: -
A102: Thyago Vieira | B102: CWS - RP | C102: 627 | D102: 1.0 | E102: 0 | F102: 0 | G102: 1 | H102: 0.00 | I102: 0.00
A103: Aaron Bummer | B103: CWS - RP | C103: 631 | D103: 22.0 | E103: 1 | F103: 0 | G103: 17 | H103: 4.50 | I103: 1.27
A104: Kevin McCarthy | B104: KC - RP | C104: 635 | D104: 45.0 | E104: 1 | F104: 0 | G104: 27 | H104: 3.20 | I104: 1.40
A105: Aaron Loup | B105: Tor - RP | C105: 636 | D105: 57.2 | E105: 2 | F105: 0 | G105: 64 | H105: 3.75 | I105: 1.53
A106: Eddie Gamboa | B106: Bal - SP,RP | C106: 640 | D106: - | E106: - | F106: - | G106: - | H106: - | I106: -
A107: Shawn Armstrong | B107: Sea - RP | C107: 643 | D107: 24.2 | E107: 1 | F107: 0 | G107: 20 | H107: 4.38 | I107: 1.34
A108: Eduardo Paredes | B108: LAA - RP | C108: 644 | D108: 22.1 | E108: 0 | F108: 1 | G108: 17 | H108: 4.43 | I108: 1.21
A109: Marc Rzepczynski | B109: Sea - RP | C109: 649 | D109: 31.1 | E109: 2 | F109: 1 | G109: 25 | H109: 4.02 | I109: 1.56
A110: Carlos Frías | B110: Cle - SP,RP | C110: 650 | D110: - | E110: - | F110: - | G110: - | H110: - | I110: -
A111: Ryan O'Rourke | B111: Bal - RP | C111: 651 | D111: - | E111: - | F111: - | G111: - | H111: - | I111: -
A112: José Ruiz | B112: CWS - RP | C112: 653 | D112: 1.0 | E112: 0 | F112: 0 | G112: 1 | H112: 0.00 | I112: 1.00
A113: Nick Tropeano | B113: LAA - SP,RP | C113: 654 | D113: - | E113: - | F113: - | G113: - | H113: - | I113: -
A114: Hunter Wood | B114: TB - RP | C114: 660 | D114: 0.1 | E114: 0 | F114: 0 | G114: 0 | H114: 0.00 | I114: 0.00
A115: Trevor May | B115: Min - RP | C115: 661 | D115: - | E115: - | F115: - | G115: - | H115: - | I115: -
A116: Vicente Campos | B116: LAA - RP | C116: 665 | D116: - | E116: - | F116: - | G116: - | H116: - | I116: -
A117: Gabriel Ynoa | B117: Bal - SP,RP | C117: 670 | D117: 34.2 | E117: 2 | F117: 0 | G117: 26 | H117: 4.15 | I117: 1.36
A118: Ryne Harper | B118: Sea - RP | C118: 679 | D118: - | E118: - | F118: - | G118: - | H118: - | I118: -
A119: Adam Ravenelle | B119: Det - RP | C119: 698 | D119: - | E119: - | F119: - | G119: - | H119: - | I119: -
A120: Zack Burdi | B120: CWS - RP | C120: 700 | D120: - | E120: - | F120: - | G120: - | H120: - | I120: -
A121: Alex Faedo | B121: Det - RP | C121: 707 | D121: - | E121: - | F121: - | G121: - | H121: - | I121: -
A122: Nestor Cortes Jr. | B122: Bal - RP | C122: 709 | D122: - | E122: - | F122: - | G122: - | H122: - | I122: -
A123: Jon Keller | B123: Bal - RP | C123: 713 | D123: - | E123: - | F123: - | G123: - | H123: - | I123: -
A124: Jake Reed | B124: Min - RP | C124: 717 | D124: - | E124: - | F124: - | G124: - | H124: - | I124: -
A125: Paul Fry | B125: Bal - RP | C125: 741 | D125: - | E125: - | F125: - | G125: - | H125: - | I125: -
A126: Chris Lee | B126: Bal - RP | C126: 779 | D126: - | E126: - | F126: - | G126: - | H126: - | I126: -
A127: Nick Rumbelow | B127: Sea - RP | C127: 810 | D127: - | E127: - | F127: - | G127: - | H127: - | I127: -
A128: Jason García | B128: Bal - RP | C128: 813 | D128: - | E128: - | F128: - | G128: - | H128: - | I128: -
A129: Chris Martin | B129: Tex - RP | C129: 816 | D129: - | E129: - | F129: - | G129: - | H129: - | I129: -
A130: Tyler Jay | B130: Min - RP | C130: 830 | D130: - | E130: - | F130: - | G130: - | H130: - | I130: -
A131: Burch Smith | B131: KC - SP,RP | C131: 838 | D131: - | E131: - | F131: - | G131: - | H131: - | I131: -
A132: Giovanni Soto | B132: CWS - RP | C132: 839 | D132: - | E132: - | F132: - | G132: - | H132: - | I132: -
A133: Anthony Gose | B133: Hou - RP | C133: 842 | D133: - | E133: - | F133: - | G133: - | H133: - | I133: -
A134: Héctor Pérez | B134: Hou - RP | C134: 843 | D134: - | E134: - | F134: - | G134: - | H134: - | I134: -
A135: Alex Scherff | B135: Bos - RP | C135: 851 | D135: - | E135: - | F135: - | G135: - | H135: - | I135: -
A136: Domingo Acevedo | B136: NYY - RP | C136: 864 | D136: - | E136: - | F136: - | G136: - | H136: - | I136: -
A137: Austin Bibens-Dirkx | B137: Tex - SP,RP | C137: 886 | D137: 69.1 | E137: 5 | F137: 0 | G137: 38 | H137: 4.67 | I137: 1.36
A138: Chad Girodo | B138: Tor - RP | C138: 887 | D138: - | E138: - | F138: - | G138: - | H138: - | I138: -
A139: Ryan Garton | B139: Sea - RP | C139: 888 | D139: 22.0 | E139: 0 | F139: 0 | G139: 16 | H139: 4.91 | I139: 1.09
A140: Jeanmar Gómez | B140: CWS - RP | C140: 893 | D140: 22.1 | E140: 3 | F140: 2 | G140: 21 | H140: 7.25 | I140: 1.70
A141: Ashur Tolliver | B141: Sea - RP | C141: 898 | D141: 5.0 | E141: 0 | F141: 0 | G141: 5 | H141: 3.60 | I141: 1.60
A142: Buddy Boshers | B142: Hou - RP | C142: 899 | D142: 35.0 | E142: 1 | F142: 0 | G142: 28 | H142: 4.89 | I142: 1.34
A143: Ronald Herrera | B143: Tex - RP | C143: 900 | D143: 3.0 | E143: 0 | F143: 0 | G143: 3 | H143: 6.00 | I143: 1.33
A144: Tony Barnette | B144: Tex - RP | C144: 902 | D144: 57.1 | E144: 2 | F144: 2 | G144: 57 | H144: 5.49 | I144: 1.50
A145: Giovanny Gallegos | B145: NYY - RP | C145: 903 | D145: 20.1 | E145: 0 | F145: 0 | G145: 22 | H145: 4.87 | I145: 1.28
A146: Kyle Martin | B146: Bos - RP | C146: 904 | D146: 2.1 | E146: 0 | F146: 0 | G146: 1 | H146: 3.86 | I146: 1.71
A147: Seth Maness | B147: KC - RP | C147: 905 | D147: 9.2 | E147: 1 | F147: 0 | G147: 4 | H147: 3.72 | I147: 1.86
A148: Adam Plutko | B148: Cle - RP | C148: 907 | D148: - | E148: - | F148: - | G148: - | H148: - | I148: -
A149: Perci Garner | B149: Bal - RP | C149: 910 | D149: - | E149: - | F149: - | G149: - | H149: - | I149: -
A150: Rob Scahill | B150: CWS - RP | C150: 912 | D150: 22.1 | E150: 1 | F150: 0 | G150: 10 | H150: 4.43 | I150: 1.39
A151: Jimmy Yacabonis | B151: Bal - RP | C151: 920 | D151: 20.2 | E151: 2 | F151: 0 | G151: 8 | H151: 4.35 | I151: 1.55
A152: Andrew Faulkner | B152: Bal - RP | C152: 927 | D152: - | E152: - | F152: - | G152: - | H152: - | I152: -
A153: TJ House | B153: CWS - RP | C153: 930 | D153: 2.0 | E153: 0 | F153: 0 | G153: 1 | H153: 4.50 | I153: 2.00
A154: Bobby Wahl | B154: Oak - RP | C154: 932 | D154: 7.2 | E154: 0 | F154: 0 | G154: 8 | H154: 4.70 | I154: 1.57
A155: Logan Ondrusek | B155: Bal - RP | C155: 939 | D155: - | E155: - | F155: - | G155: - | H155: - | I155: -
A156: Greg Mahle | B156: LAA - RP | C156: 940 | D156: - | E156: - | F156: - | G156: - | H156: - | I156: -
A157: Daniel Hudson | B157: TB - RP | C157: 942 | D157: 61.2 | E157: 2 | F157: 0 | G157: 66 | H157: 4.38 | I157: 1.46
A158: Adam Kolarek | B158: TB - RP | C158: 946 | D158: 8.1 | E158: 1 | F158: 0 | G158: 4 | H158: 6.48 | I158: 1.56
A159: Daniel Stumpf | B159: Det - RP | C159: 951 | D159: 37.2 | E159: 0 | F159: 0 | G159: 33 | H159: 3.82 | I159: 1.38
A160: Enrique Burgos | B160: Det - RP | C160: 952 | D160: - | E160: - | F160: - | G160: - | H160: - | I160: -
A161: Shawn Morimando | B161: Cle - RP | C161: 953 | D161: - | E161: - | F161: - | G161: - | H161: - | I161: -
A162: Tanner Scott | B162: Bal - RP | C162: 955 | D162: 1.2 | E162: 0 | F162: 0 | G162: 2 | H162: 10.80 | I162: 2.40
A163: Dan Runzler | B163: TB - RP | C163: 956 | D163: 4.0 | E163: 0 | F163: 0 | G163: 4 | H163: 4.50 | I163: 2.25
A164: Jairo Labourt | B164: Oak - RP | C164: 958 | D164: 6.0 | E164: 0 | F164: 0 | G164: 4 | H164: 4.50 | I164: 1.83
A165: Francis Martes | B165: Hou - SP,RP | C165: 959 | D165: 54.1 | E165: 5 | F165: 0 | G165: 69 | H165: 5.80 | I165: 1.51
A166: Xavier Cedeño | B166: CWS - RP | C166: 961 | D166: 3.0 | E166: 1 | F166: 0 | G166: 0 | H166: 12.00 | I166: 3.67
A167: Kevin Chapman | B167: Min - RP | C167: 963 | D167: - | E167: - | F167: - | G167: - | H167: - | I167: -
A168: Erik Goeddel | B168: Tex - RP | C168: 965 | D168: 29.0 | E168: 0 | F168: 0 | G168: 33 | H168: 5.28 | I168: 1.34
A169: José De León | B169: TB - RP | C169: 967 | D169: 2.2 | E169: 1 | F169: 0 | G169: 2 | H169: 10.13 | I169: 2.63
A170: James Russell | B170: Det - SP,RP | C170: 975 | D170: - | E170: - | F170: - | G170: - | H170: - | I170: -
A171: Jandel Gustave | B171: Hou - RP | C171: 978 | D171: 5.0 | E171: 0 | F171: 0 | G171: 2 | H171: 5.40 | I171: 2.40
A172: Josh Smith | B172: Oak - RP | C172: 983 | D172: 35.0 | E172: 2 | F172: 0 | G172: 25 | H172: 4.89 | I172: 1.43
A173: Shawn Tolleson | B173: Tex - RP | C173: 984 | D173: - | E173: - | F173: - | G173: - | H173: - | I173: -
A174: Jason Gurka | B174: Bal - RP | C174: 986 | D174: 0.2 | E174: 0 | F174: 0 | G174: 0 | H174: 0.00 | I174: 4.50
A175: Josh Edgin | B175: Bal - RP | C175: 987 | D175: 37.0 | E175: 0 | F175: 1 | G175: 27 | H175: 3.65 | I175: 1.54
A176: Preston Claiborne | B176: Cle - RP | C176: 988 | D176: 2.0 | E176: 0 | F176: 0 | G176: 2 | H176: 13.50 | I176: 2.50
A177: John Curtiss | B177: Min - RP | C177: 989 | D177: 8.2 | E177: 0 | F177: 0 | G177: 10 | H177: 8.31 | I177: 1.27
A178: Roenis Elías | B178: Bos - RP | C178: 993 | D178: 0.1 | E178: 0 | F178: 0 | G178: 1 | H178: 0.00 | I178: 3.00
A179: Chris Bassitt | B179: Oak - SP,RP | C179: 994 | D179: - | E179: - | F179: - | G179: - | H179: - | I179: -
A180: Kevin Jepsen | B180: Tex - RP | C180: 998 | D180: - | E180: - | F180: - | G180: - | H180: - | I180: -
A181: Yohander Méndez | B181: Tex - RP | C181: 1000 | D181: 12.1 | E181: 0 | F181: 0 | G181: 7 | H181: 5.11 | I181: 1.30
A182: Luis Cessa | B182: NYY - SP,RP | C182: 1008 | D182: 36.0 | E182: 0 | F182: 0 | G182: 30 | H182: 4.75 | I182: 1.47
A183: Ian Krol | B183: LAA - RP | C183: 1009 | D183: 49.0 | E183: 2 | F183: 0 | G183: 44 | H183: 5.33 | I183: 1.45
A184: Jason Grilli | B184: Tex - RP | C184: 1012 | D184: 40.0 | E184: 2 | F184: 1 | G184: 48 | H184: 6.30 | I184: 1.60
A185: Johnny Barbato | B185: Det - RP | C185: 1019 | D185: 28.2 | E185: 0 | F185: 0 | G185: 23 | H185: 4.08 | I185: 1.50
A186: Tim Mayza | B186: Tor - RP | C186: 1020 | D186: 17.0 | E186: 1 | F186: 0 | G186: 27 | H186: 6.88 | I186: 1.65
A187: Ben Taylor | B187: Cle - RP | C187: 1021 | D187: 17.1 | E187: 0 | F187: 1 | G187: 18 | H187: 5.19 | I187: 1.67
A188: Evan Scribner | B188: TB - RP | C188: 1022 | D188: 7.1 | E188: 0 | F188: 0 | G188: 6 | H188: 11.05 | I188: 1.77
A189: Brady Rodgers | B189: Hou - RP | C189: 1025 | D189: - | E189: - | F189: - | G189: - | H189: - | I189: -
A190: Austin Adams | B190: LAA - RP | C190: 1026 | D190: - | E190: - | F190: - | G190: - | H190: - | I190: -
A191: Alec Asher | B191: Bal - SP,RP | C191: 1027 | D191: 60.0 | E191: 2 | F191: 0 | G191: 47 | H191: 5.25 | I191: 1.40
A192: Max Povse | B192: Sea - RP | C192: 1028 | D192: 3.2 | E192: 0 | F192: 0 | G192: 2 | H192: 7.36 | I192: 2.73
A193: Ricky Rodríguez | B193: Tex - RP | C193: 1031 | D193: 13.0 | E193: 0 | F193: 1 | G193: 11 | H193: 6.23 | I193: 1.62
A194: Felix Peña | B194: LAA - RP | C194: 1032 | D194: 34.1 | E194: 1 | F194: 0 | G194: 37 | H194: 5.24 | I194: 1.54
A195: Jeff Beliveau | B195: Cle - RP | C195: 1033 | D195: 15.2 | E195: 1 | F195: 0 | G195: 17 | H195: 7.47 | I195: 1.47
A196: Miguel Almonte | B196: KC - RP | C196: 1040 | D196: 2.0 | E196: 0 | F196: 0 | G196: 0 | H196: 13.50 | I196: 3.50
A197: Ross Detwiler | B197: Oak - SP,RP | C197: 1041 | D197: - | E197: - | F197: - | G197: - | H197: - | I197: -
A198: Cody Martin | B198: Sea - RP | C198: 1045 | D198: 2.0 | E198: 0 | F198: 0 | G198: 0 | H198: 13.50 | I198: 3.50
A199: Jhan Maríñez | B199: Bal - RP | C199: 1051 | D199: 58.1 | E199: 0 | F199: 0 | G199: 45 | H199: 3.70 | I199: 1.54
A200: Pat Light | B200: Sea - RP | C200: 1056 | D200: - | E200: - | F200: - | G200: - | H200: - | I200: -
... 67 more rows

Sheet Data
A1: Owners | B1: Position
A2: Lightning (Mike Goodman) | B2: Catcher
A3: Evolution (Bruce) | B3: 1st Base
A4: Miggy Pop (Colin) | B4: 2nd Base
A5: Woap (Mike) | B5: 3rd Base
A6: The Dominant Brand (Brandon) | B6: Short Stop
A7: Guzzlers (Rhonda) | B7: Outfield #1
A8: Moneyballers (Rob) | B8: Outfield #2
A9: Booya's (Cathy) | B9: Outfield #3
A10: Freebirds (Todd) | B10: DH
A11: Numbats (Tom) | B11: Starting Pitcher #1
A12: TheDunnShow (Dave) | B12: Starting Pitcher #2
B13: Starting Pitcher #3
B14: Starting Pitcher #4
B15: Starting Pitcher #5
B16: Relief Pitcher #1
B17: Relief Pitcher #2
B18: Relief Pitcher #3
B19: Relief Pitcher #4
B20: Reserve Roster #1
B21: Reserve Roster #2
B22: Reserve Roster #3
B23: Reserve Roster #4
B24: Reserve Roster #5
B25: Reserve Roster #6
B26: Reserve Roster #7
A28: Make sure every year to select all the players for each position and recreate the bookmark name (delete name first, then recreate name) to ensure all players get listed. | C28: catchers | D28: first | E28: second | F28: third | G28: ss | H28: outfield | I28: dh | J28: pitchers | K28: relief
A29: Ensure that all players are listed when clicking on the button.
B31: Change Draft Order Yearly
A33: Moneyballers (Rob) | B33: 1
A34: Booya's (Cathy) | B34: 2
A35: Freebirds (Todd) | B35: 3
A36: Evolution (Bruce) | B36: 4
A37: The Dominant Brand (Brandon) | B37: 5
A38: Woap (Mike) | B38: 6
A39: Miggy Pop (Colin) | B39: 7
A40: Numbats (Tom) | B40: 8
A41: TheDunnShow (Dave) | B41: 9
A42: Guzzlers (Rhonda) | B42: 10
A43: Lightning (Mike Goodman) | B43: 11
A47: Formulas to Retreive Name and Position
A48: =RIGHT(A1,LEN(A1)+ 5-FIND("-",A1)) | B48: Position
A49: =LEFT(A1,FIND("-",A1) -5) | B49: Name
A50: =Trim(cell) | B50: Trim the positions for extra space
